Body Name,Trans. Date,Department Code,Department,Expense Area Code,Expense Area,Expense type code,Expense type,Amount Paid (�),Supplier name,Extended description,TransNo,Period
Rother District Council,30/12/2019,101RESOURCES,Resources,20216,Cost Of Collection,D2513,Hired and Contracted services,20.00,Stanford and Green Ltd,Hired and contracted services - Bailiff Fees-Council Tax,2022122,202011
Rother District Council,23/03/2020,101RESOURCES,Resources,20216,Cost Of Collection,D2513,Hired and Contracted services,3.83,Stanford and Green Ltd,Hired and contracted services - Bailiff Fees-Council Tax,2021954,202011
Rother District Council,01/04/2020,031RESOURCES,Chief Executive & Corporate Core,20162,Electoral Registration,D1203,Books And Publications,132.50,Thomson Reuters Ltd,Books And Publications - Miscellaneous Legal Reference Books,2022030,202010
Rother District Council,01/04/2020,031RESOURCES,Chief Executive & Corporate Core,20162,Electoral Registration,D1203,Books And Publications,132.50,Thomson Reuters Ltd,Books And Publications - Miscellaneous Legal Reference Books,2022030,202010
Rother District Council,09/04/2020,031RESOURCES,Chief Executive & Corporate Core,20156,Representing Local Interest,D2312,Refreshments,32.55,Lloyds Bank,Refreshments - Catering/Refreshments for Meetings,2023493,202012
Rother District Council,09/04/2020,101RESOURCES,Resources,20239,Computer Services,D2633,Computer Equipment,505.00,Lloyds Bank,Computer Licences - Computer Licence Renewal,2023492,202012
Rother District Council,09/04/2020,101RESOURCES,Resources,20242,Communications-Phones,D2633,Computer Equipment,764.00,Lloyds Bank,Computer Licences - Computer Licence Renewal,2023492,202012
Rother District Council,09/04/2020,101RESOURCES,Resources,20239,Computer Services,D2635,Computer Licences,9.25,Lloyds Bank,Computer Licences - Domain Name Renewal,2023493,202012
Rother District Council,09/04/2020,091HOUSING,Housing and Community Services,20206,Syrians,D2513,Hired and Contracted services,"1,995.01",Lloyds Bank,Hired and contracted services - Syrian Misc,2023491,202012
Rother District Council,09/04/2020,031RESOURCES,Chief Executive & Corporate Core,20156,Representing Local Interest,D1201,Equipment & Materials,28.95,Lloyds Bank,Equipment & Materials - Purchase of Tools,2023493,202012
Rother District Council,28/04/2020,101RESOURCES,Resources,20222,Accountancy,D1203,Books And Publications,150.45,Indicator - FL Memo Ltd,Books And Publications - Reference Books/Publications,2021904,202010
Rother District Council,28/04/2020,101RESOURCES,Resources,20222,Accountancy,D1203,Books And Publications,12.75,Indicator - FL Memo Ltd,Books And Publications - Reference Books/Publications,2021904,202010
Rother District Council,09/06/2020,101RESOURCES,Resources,20239,Computer Services,D2633,Computer Equipment,-478.50,Lloyds Bank,Computer Equipment - New - Computer Hardware,2023514,202012
Rother District Council,09/06/2020,101RESOURCES,Resources,20239,Computer Services,D2633,Computer Equipment,416.50,Lloyds Bank,Computer Equipment - New - Computer Hardware,2023514,202012
Rother District Council,09/06/2020,101RESOURCES,Resources,20239,Computer Services,D2633,Computer Equipment,93.60,Lloyds Bank,Computer Equipment - New - Computer Hardware,2023514,202012
Rother District Council,09/06/2020,031RESOURCES,Chief Executive & Corporate Core,20276,COVID19 RDC expenditure,D1201,Equipment & Materials,149.00,Lloyds Bank,Equipment & materials - Miscellaneous,2023518,202012
Rother District Council,09/06/2020,031RESOURCES,Chief Executive & Corporate Core,20156,Representing Local Interest,D2513,Hired and Contracted services,53.50,Lloyds Bank,Hired and contracted services - Independent Remuneration Panal Expenses,2023523,202012
Rother District Council,09/06/2020,091HOUSING,Housing and Community Services,20137,Car Parks,B1100,Repairs to Premises,570.29,Lloyds Bank,Repairs to Premises - Purchase of Materials - Build Maint,2023502,202012
Rother District Council,09/06/2020,091HOUSING,Housing and Community Services,20206,Syrians,D2513,Hired and Contracted services,465.93,Lloyds Bank,Hired and contracted services - Syrian Misc,2023513,202012
Rother District Council,09/06/2020,091HOUSING,Housing and Community Services,20261,"TA Purchases (prev - 41 Jameson Mews, Bexhill on Sea)",N1009,Furniture & Fittings,108.00,Lloyds Bank,Furniture & Fittings,2023502,202012
Rother District Council,09/06/2020,091HOUSING,Housing and Community Services,20261,"TA Purchases (prev - 41 Jameson Mews, Bexhill on Sea)",N1009,Furniture & Fittings,238.00,Lloyds Bank,Furniture & Fittings,2023502,202012
Rother District Council,01/07/2020,101RESOURCES,Resources,20209,Corporate management,D2513,Hired and Contracted services,5.20,Lloyds Bank,Bank Charges,2022077,202010
Rother District Council,01/07/2020,101RESOURCES,Resources,20209,Corporate management,D2513,Hired and Contracted services,5.20,Lloyds Bank,Bank Charges,2022077,202010
Rother District Council,01/07/2020,101RESOURCES,Resources,20209,Corporate management,D2513,Hired and Contracted services,10.40,Lloyds Bank,Bank Charges,2022077,202010
Rother District Council,01/07/2020,101RESOURCES,Resources,20209,Corporate management,D2513,Hired and Contracted services,5.40,Lloyds Bank,Bank Charges,2022077,202010
Rother District Council,01/07/2020,101RESOURCES,Resources,20209,Corporate management,D2513,Hired and Contracted services,10.40,Lloyds Bank,Bank Charges,2022077,202010
Rother District Council,01/07/2020,101RESOURCES,Resources,20209,Corporate management,D2513,Hired and Contracted services,10.40,Lloyds Bank,Bank Charges,2022077,202010
Rother District Council,01/07/2020,101RESOURCES,Resources,20209,Corporate management,D2513,Hired and Contracted services,5.40,Lloyds Bank,Bank Charges,2022077,202010
Rother District Council,07/08/2020,071STRAT,Strategy and Planning,20246,Planning Applications,D2519,Statutory Advertising,823.50,JPIMedia Publishing Ltd,Statutory Advertising - Planadv - Rye+Battle Observer,2021492,202010
Rother District Council,10/08/2020,999NOREPORT,"Acquisitions, Transformation and Regeneration",70736,Capital - 18-40 Beeching Close Refurbishment,N1002,Land & Property fees,249.90,Lloyds Bank,Land & Property fees Capital-Land and Propty - Fees Etc.,2023538,202012
Rother District Council,10/08/2020,101RESOURCES,Resources,20239,Computer Services,D2633,Computer Equipment,"1,380.00",Lloyds Bank,Computer Consumables - Laser Labels,2023530,202012
Rother District Council,10/08/2020,031RESOURCES,Chief Executive & Corporate Core,20276,COVID19 RDC expenditure,D1201,Equipment & Materials,188.94,Lloyds Bank,Equipment & materials - Miscellaneous,2023533,202012
Rother District Council,10/08/2020,031RESOURCES,Chief Executive & Corporate Core,20276,COVID19 RDC expenditure,D1201,Equipment & Materials,399.80,Lloyds Bank,Equipment & materials - Miscellaneous,2023533,202012
Rother District Council,10/08/2020,031RESOURCES,Chief Executive & Corporate Core,20276,COVID19 RDC expenditure,D1201,Equipment & Materials,208.30,Lloyds Bank,Equipment & materials - Miscellaneous,2023533,202012
Rother District Council,10/08/2020,031RESOURCES,Chief Executive & Corporate Core,20173,Administrative Offices - Town Hall,B1100,Repairs to Premises,81.00,Lloyds Bank,Repairs to Premises - Purchase of Materials - Build Maint,2023532,202012
Rother District Council,10/08/2020,031RESOURCES,Chief Executive & Corporate Core,20175,Administrative Offices - T.H. Annex (NOT CHP),B1100,Repairs to Premises,549.43,Lloyds Bank,Repairs to Premises - Purchase of Materials - Build Maint,2023532,202012
Rother District Council,10/08/2020,091HOUSING,Housing and Community Services,20108,Bexhill Promenade & Foreshore,B1100,Repairs to Premises,70.81,Lloyds Bank,Repairs to Premises - Purchase of Materials - Build Maint,2023532,202012
Rother District Council,10/08/2020,031RESOURCES,Chief Executive & Corporate Core,20173,Administrative Offices - Town Hall,D2513,Hired and Contracted services,41.06,Lloyds Bank,Hired and contracted services - web site HOST FEE,2023526,202012
Rother District Council,10/08/2020,091HOUSING,Housing and Community Services,20206,Syrians,D2513,Hired and Contracted services,-838.48,Lloyds Bank,Hired and Contracted services,2023529,202012
Rother District Council,27/08/2020,071STRAT,Strategy and Planning,20246,Planning Applications,D2519,Statutory Advertising,777.75,JPIMedia Publishing Ltd,Statutory Advertising - Planadv - Rye+Battle Observer,2021493,202010
Rother District Council,09/09/2020,081ACQUISIT,"Acquisitions, Transformation and Regeneration",20144,Property Management,D2518,Advertising,37.50,Lloyds Bank,Advertising - ADVERT WEBSITE,2023541,202012
Rother District Council,09/09/2020,031RESOURCES,Chief Executive & Corporate Core,32132,Joint Waste Contract Client Unit,A2203,Training,300.00,Lloyds Bank,Training,2023541,202012
Rother District Council,09/09/2020,091HOUSING,Housing and Community Services,20206,Syrians,D2513,Hired and Contracted services,828.23,Lloyds Bank,Hired and contracted services - Syrian Misc,2023540,202012
Rother District Council,10/09/2020,041ENVIRON,Environmental Services,32144,EH Environmental Services Admin R + W Partnership,D2513,Hired and Contracted services,960.00,Rocksure Systems Ltd,Hired and Contracted services,2019447,202011
Rother District Council,22/09/2020,101RESOURCES,Resources,20239,Computer Services,D2635,Computer Licences,434.23,Civica UK Ltd,Computer Licences - Website Management,2023619,202012
Rother District Council,29/09/2020,031RESOURCES,Chief Executive & Corporate Core,20276,COVID19 RDC expenditure,D2513,Hired and Contracted services,"35,000.00",De La Warr Pavilion Charitable Trust,Hired and Contracted Services � Covid19 Support to partner organisations,2022228,202010
Rother District Council,01/10/2020,091HOUSING,Housing and Community Services,20133,Refuse Collection,E2302,Third party payment private contractors,250.00,LoadFast Waste Disposal,Third party payment private contractors - Waste Collection Contract Variable cost to RDC,2021825,202010
Rother District Council,05/10/2020,041ENVIRON,Environmental Services,32134,EH Pollution R + W Partnership,D2923,Grants made,"2,100.00",Hastings and Rother Mediation Service,Grants made - Hastings+Rother Mediation Service,2022653,202011
Rother District Council,07/10/2020,101RESOURCES,Resources,20209,Corporate management,D2513,Hired and Contracted services,190.47,Capita Business Services Ltd,Bank Charges,2022068,202010
Rother District Council,09/10/2020,081ACQUISIT,"Acquisitions, Transformation and Regeneration",20144,Property Management,D2518,Advertising,37.50,Lloyds Bank,Advertising - ADVERT WEBSITE,2023546,202012
Rother District Council,09/10/2020,091HOUSING,Housing and Community Services,20236,Customer Services and Development,D2626,Postages,24.00,Lloyds Bank,Postages - Carriage of Supplies,2023546,202012
Rother District Council,09/10/2020,091HOUSING,Housing and Community Services,20236,Customer Services and Development,D2626,Postages,5.00,Lloyds Bank,Postages - Carriage of Supplies,2023546,202012
Rother District Council,09/10/2020,101RESOURCES,Resources,20239,Computer Services,D2635,Computer Licences,49.95,Lloyds Bank,Computer Licences - Website Management,2023542,202012
Rother District Council,09/10/2020,101RESOURCES,Resources,20239,Computer Services,D2635,Computer Licences,9.99,Lloyds Bank,Computer Licences - Domain Name Renewal,2023546,202012
Rother District Council,09/10/2020,101RESOURCES,Resources,20239,Computer Services,D2633,Computer Equipment,29.10,Lloyds Bank,Computer Equipment - Computer peripherals,2023545,202012
Rother District Council,09/10/2020,101RESOURCES,Resources,20239,Computer Services,D2633,Computer Equipment,25.14,Lloyds Bank,Computer Equipment - Computer peripherals,2023545,202012
Rother District Council,09/10/2020,101RESOURCES,Resources,20239,Computer Services,D2633,Computer Equipment,231.08,Lloyds Bank,Computer Equipment - Computer peripherals,2023545,202012
Rother District Council,09/10/2020,101RESOURCES,Resources,20239,Computer Services,D2633,Computer Equipment,184.79,Lloyds Bank,Computer Equipment - Computer peripherals,2023545,202012
Rother District Council,09/10/2020,101RESOURCES,Resources,20239,Computer Services,D2633,Computer Equipment,91.57,Lloyds Bank,Computer Equipment - Computer peripherals,2023545,202012
Rother District Council,09/10/2020,101RESOURCES,Resources,20239,Computer Services,D2633,Computer Equipment,100.57,Lloyds Bank,Computer Equipment - Computer peripherals,2023545,202012
Rother District Council,09/10/2020,101RESOURCES,Resources,20239,Computer Services,D2633,Computer Equipment,-3.44,Lloyds Bank,Computer Equipment - Computer peripherals,2023545,202012
Rother District Council,09/10/2020,101RESOURCES,Resources,20239,Computer Services,D2633,Computer Equipment,21.30,Lloyds Bank,Computer Equipment - Computer peripherals,2023545,202012
Rother District Council,09/10/2020,031RESOURCES,Chief Executive & Corporate Core,20173,Administrative Offices - Town Hall,B1100,Repairs to Premises,90.97,Lloyds Bank,Repairs to Premises - Purchase of Materials - Build Maint,2023544,202012
Rother District Council,09/10/2020,081ACQUISIT,"Acquisitions, Transformation and Regeneration",20153,"Elva Business Centre, Bexhill",B1100,Repairs to Premises,183.25,Lloyds Bank,Repairs to Premises - Purchase of Materials - Build Maint,2023544,202012
Rother District Council,09/10/2020,081ACQUISIT,"Acquisitions, Transformation and Regeneration",20153,"Elva Business Centre, Bexhill",B1100,Repairs to Premises,5.00,Lloyds Bank,Repairs to Premises - Purchase of Materials - Build Maint,2023544,202012
Rother District Council,09/10/2020,091HOUSING,Housing and Community Services,20108,Bexhill Promenade & Foreshore,B1100,Repairs to Premises,"1,045.15",Lloyds Bank,Repairs to Premises - Purchase of Materials - Build Maint,2023544,202012
Rother District Council,09/10/2020,091HOUSING,Housing and Community Services,20236,Customer Services and Development,D1206,Furniture & Fittings,156.00,Lloyds Bank,Furniture & Fittings - New Reception Furniture,2023546,202012
Rother District Council,09/10/2020,091HOUSING,Housing and Community Services,20236,Customer Services and Development,D1206,Furniture & Fittings,99.88,Lloyds Bank,Furniture & Fittings - New Reception Furniture,2023546,202012
Rother District Council,09/10/2020,091HOUSING,Housing and Community Services,20206,Syrians,D2513,Hired and Contracted services,285.22,Lloyds Bank,Hired and contracted services - Syrian Misc,2023543,202012
Rother District Council,13/10/2020,101RESOURCES,Resources,20239,Computer Services,D2635,Computer Licences,487.55,Civica UK Ltd,Computer Licences - Website Management,2023620,202012
Rother District Council,13/10/2020,031RESOURCES,Chief Executive & Corporate Core,20171,Human Resources,D2622,Mobile Phones,10.00,O2 (UK) Ltd,Mobile Phones,2022148,202010
Rother District Council,13/10/2020,031RESOURCES,Chief Executive & Corporate Core,20171,Human Resources,D2622,Mobile Phones,10.00,O2 (UK) Ltd,Mobile Phones,2022148,202010
Rother District Council,13/10/2020,031RESOURCES,Chief Executive & Corporate Core,20158,Committee Service General Exp,D2622,Mobile Phones,10.00,O2 (UK) Ltd,Mobile Phones,2022148,202010
Rother District Council,13/10/2020,031RESOURCES,Chief Executive & Corporate Core,20162,Electoral Registration,D2622,Mobile Phones,10.00,O2 (UK) Ltd,Mobile Phones,2022148,202010
Rother District Council,13/10/2020,031RESOURCES,Chief Executive & Corporate Core,20162,Electoral Registration,D2622,Mobile Phones,10.00,O2 (UK) Ltd,Mobile Phones,2022147,202010
Rother District Council,13/10/2020,031RESOURCES,Chief Executive & Corporate Core,20183,Chief Executive,D2622,Mobile Phones,10.00,O2 (UK) Ltd,Mobile Phones,2022148,202010
Rother District Council,13/10/2020,031RESOURCES,Chief Executive & Corporate Core,20183,Chief Executive,D2622,Mobile Phones,30.00,O2 (UK) Ltd,Mobile Phones,2022148,202010
Rother District Council,13/10/2020,031RESOURCES,Chief Executive & Corporate Core,20183,Chief Executive,D2622,Mobile Phones,10.00,O2 (UK) Ltd,Mobile Phones,2022148,202010
Rother District Council,13/10/2020,031RESOURCES,Chief Executive & Corporate Core,20180,Emergency Planning,D2622,Mobile Phones,10.00,O2 (UK) Ltd,Mobile Phones,2022148,202010
Rother District Council,13/10/2020,031RESOURCES,Chief Executive & Corporate Core,20180,Emergency Planning,D2622,Mobile Phones,10.00,O2 (UK) Ltd,Mobile Phones,2022148,202010
Rother District Council,13/10/2020,031RESOURCES,Chief Executive & Corporate Core,20180,Emergency Planning,D2622,Mobile Phones,4.50,O2 (UK) Ltd,Mobile Phones,2022148,202010
Rother District Council,13/10/2020,031RESOURCES,Chief Executive & Corporate Core,20179,Communications,D2622,Mobile Phones,10.00,O2 (UK) Ltd,Mobile Phones,2022148,202010
Rother District Council,13/10/2020,031RESOURCES,Chief Executive & Corporate Core,32132,Joint Waste Contract Client Unit,D2622,Mobile Phones,10.00,O2 (UK) Ltd,Mobile Phones,2022148,202010
Rother District Council,13/10/2020,031RESOURCES,Chief Executive & Corporate Core,32132,Joint Waste Contract Client Unit,D2622,Mobile Phones,10.00,O2 (UK) Ltd,Mobile Phones,2022148,202010
Rother District Council,13/10/2020,041ENVIRON,Environmental Services,20129,Community Safety,D2622,Mobile Phones,10.00,O2 (UK) Ltd,Mobile Phones,2022147,202010
Rother District Council,13/10/2020,091HOUSING,Housing and Community Services,20120,Neighbourhood Services,D2622,Mobile Phones,10.00,O2 (UK) Ltd,Mobile Phones,2022147,202010
Rother District Council,13/10/2020,091HOUSING,Housing and Community Services,20120,Neighbourhood Services,D2622,Mobile Phones,10.00,O2 (UK) Ltd,Mobile Phones,2022147,202010
Rother District Council,13/10/2020,091HOUSING,Housing and Community Services,20120,Neighbourhood Services,D2622,Mobile Phones,10.00,O2 (UK) Ltd,Mobile Phones,2022147,202010
Rother District Council,13/10/2020,091HOUSING,Housing and Community Services,20120,Neighbourhood Services,D2622,Mobile Phones,10.00,O2 (UK) Ltd,Mobile Phones,2022147,202010
Rother District Council,13/10/2020,091HOUSING,Housing and Community Services,20120,Neighbourhood Services,D2622,Mobile Phones,10.00,O2 (UK) Ltd,Mobile Phones,2022147,202010
Rother District Council,13/10/2020,091HOUSING,Housing and Community Services,20120,Neighbourhood Services,D2622,Mobile Phones,10.00,O2 (UK) Ltd,Mobile Phones,2022147,202010
Rother District Council,13/10/2020,091HOUSING,Housing and Community Services,20120,Neighbourhood Services,D2622,Mobile Phones,10.00,O2 (UK) Ltd,Mobile Phones,2022147,202010
Rother District Council,13/10/2020,091HOUSING,Housing and Community Services,20120,Neighbourhood Services,D2622,Mobile Phones,10.00,O2 (UK) Ltd,Mobile Phones,2022147,202010
Rother District Council,13/10/2020,091HOUSING,Housing and Community Services,20120,Neighbourhood Services,D2622,Mobile Phones,10.00,O2 (UK) Ltd,Mobile Phones,2022147,202010
Rother District Council,13/10/2020,081ACQUISIT,"Acquisitions, Transformation and Regeneration",20149,Residual Housing Land,D2622,Mobile Phones,10.00,O2 (UK) Ltd,Mobile Phones,2022147,202010
Rother District Council,13/10/2020,081ACQUISIT,"Acquisitions, Transformation and Regeneration",20243,Business Improvement,D2622,Mobile Phones,10.00,O2 (UK) Ltd,Mobile Phones,2022145,202010
Rother District Council,13/10/2020,081ACQUISIT,"Acquisitions, Transformation and Regeneration",20243,Business Improvement,D2622,Mobile Phones,10.00,O2 (UK) Ltd,Mobile Phones,2022145,202010
Rother District Council,13/10/2020,081ACQUISIT,"Acquisitions, Transformation and Regeneration",20272,Major Projects unit,D2622,Mobile Phones,10.00,O2 (UK) Ltd,Mobile Phones,2022145,202010
Rother District Council,13/10/2020,081ACQUISIT,"Acquisitions, Transformation and Regeneration",20263,"Head of Service Acquisitions, Transformation and Regeneration",D2622,Mobile Phones,10.00,O2 (UK) Ltd,Mobile Phones,2022145,202010
Rother District Council,13/10/2020,081ACQUISIT,"Acquisitions, Transformation and Regeneration",20122,Economic Development,D2622,Mobile Phones,10.00,O2 (UK) Ltd,Mobile Phones,2022145,202010
Rother District Council,13/10/2020,081ACQUISIT,"Acquisitions, Transformation and Regeneration",20122,Economic Development,D2622,Mobile Phones,10.06,O2 (UK) Ltd,Mobile Phones,2022145,202010
Rother District Council,13/10/2020,081ACQUISIT,"Acquisitions, Transformation and Regeneration",20122,Economic Development,D2622,Mobile Phones,10.00,O2 (UK) Ltd,Mobile Phones,2022145,202010
Rother District Council,13/10/2020,091HOUSING,Housing and Community Services,20109,Sports Development,D2622,Mobile Phones,10.00,O2 (UK) Ltd,Mobile Phones,2022147,202010
Rother District Council,13/10/2020,091HOUSING,Housing and Community Services,20120,Neighbourhood Services,D2622,Mobile Phones,10.00,O2 (UK) Ltd,Mobile Phones,2022147,202010
Rother District Council,13/10/2020,091HOUSING,Housing and Community Services,20120,Neighbourhood Services,D2622,Mobile Phones,10.00,O2 (UK) Ltd,Mobile Phones,2022147,202010
Rother District Council,13/10/2020,091HOUSING,Housing and Community Services,20120,Neighbourhood Services,D2622,Mobile Phones,10.00,O2 (UK) Ltd,Mobile Phones,2022147,202010
Rother District Council,13/10/2020,091HOUSING,Housing and Community Services,20120,Neighbourhood Services,D2622,Mobile Phones,10.00,O2 (UK) Ltd,Mobile Phones,2022147,202010
Rother District Council,13/10/2020,091HOUSING,Housing and Community Services,20120,Neighbourhood Services,D2622,Mobile Phones,10.00,O2 (UK) Ltd,Mobile Phones,2022147,202010
Rother District Council,13/10/2020,091HOUSING,Housing and Community Services,20120,Neighbourhood Services,D2622,Mobile Phones,47.16,O2 (UK) Ltd,Mobile Phones,2022147,202010
Rother District Council,13/10/2020,091HOUSING,Housing and Community Services,20120,Neighbourhood Services,D2622,Mobile Phones,10.00,O2 (UK) Ltd,Mobile Phones,2022147,202010
Rother District Council,13/10/2020,091HOUSING,Housing and Community Services,20120,Neighbourhood Services,D2622,Mobile Phones,10.00,O2 (UK) Ltd,Mobile Phones,2022147,202010
Rother District Council,13/10/2020,091HOUSING,Housing and Community Services,20120,Neighbourhood Services,D2622,Mobile Phones,10.00,O2 (UK) Ltd,Mobile Phones,2022147,202010
Rother District Council,13/10/2020,091HOUSING,Housing and Community Services,20120,Neighbourhood Services,D2622,Mobile Phones,10.00,O2 (UK) Ltd,Mobile Phones,2022147,202010
Rother District Council,13/10/2020,091HOUSING,Housing and Community Services,20120,Neighbourhood Services,D2622,Mobile Phones,10.20,O2 (UK) Ltd,Mobile Phones,2022147,202010
Rother District Council,13/10/2020,091HOUSING,Housing and Community Services,20120,Neighbourhood Services,D2622,Mobile Phones,10.00,O2 (UK) Ltd,Mobile Phones,2022147,202010
Rother District Council,13/10/2020,091HOUSING,Housing and Community Services,20120,Neighbourhood Services,D2622,Mobile Phones,10.00,O2 (UK) Ltd,Mobile Phones,2022147,202010
Rother District Council,13/10/2020,091HOUSING,Housing and Community Services,20120,Neighbourhood Services,D2622,Mobile Phones,10.16,O2 (UK) Ltd,Mobile Phones,2022147,202010
Rother District Council,13/10/2020,091HOUSING,Housing and Community Services,20120,Neighbourhood Services,D2622,Mobile Phones,10.00,O2 (UK) Ltd,Mobile Phones,2022147,202010
Rother District Council,13/10/2020,091HOUSING,Housing and Community Services,20120,Neighbourhood Services,D2622,Mobile Phones,10.00,O2 (UK) Ltd,Mobile Phones,2022147,202010
Rother District Council,13/10/2020,091HOUSING,Housing and Community Services,20120,Neighbourhood Services,D2622,Mobile Phones,10.00,O2 (UK) Ltd,Mobile Phones,2022147,202010
Rother District Council,13/10/2020,091HOUSING,Housing and Community Services,20120,Neighbourhood Services,D2622,Mobile Phones,10.00,O2 (UK) Ltd,Mobile Phones,2022147,202010
Rother District Council,13/10/2020,091HOUSING,Housing and Community Services,20120,Neighbourhood Services,D2622,Mobile Phones,14.77,O2 (UK) Ltd,Mobile Phones,2022147,202010
Rother District Council,13/10/2020,091HOUSING,Housing and Community Services,20120,Neighbourhood Services,D2622,Mobile Phones,23.39,O2 (UK) Ltd,Mobile Phones,2022147,202010
Rother District Council,13/10/2020,091HOUSING,Housing and Community Services,20120,Neighbourhood Services,D2622,Mobile Phones,17.44,O2 (UK) Ltd,Mobile Phones,2022147,202010
Rother District Council,13/10/2020,091HOUSING,Housing and Community Services,20120,Neighbourhood Services,D2622,Mobile Phones,10.00,O2 (UK) Ltd,Mobile Phones,2022147,202010
Rother District Council,13/10/2020,081ACQUISIT,"Acquisitions, Transformation and Regeneration",20122,Economic Development,D2622,Mobile Phones,10.00,O2 (UK) Ltd,Mobile Phones,2022145,202010
Rother District Council,13/10/2020,081ACQUISIT,"Acquisitions, Transformation and Regeneration",20122,Economic Development,D2622,Mobile Phones,10.00,O2 (UK) Ltd,Mobile Phones,2022145,202010
Rother District Council,13/10/2020,081ACQUISIT,"Acquisitions, Transformation and Regeneration",20122,Economic Development,D2622,Mobile Phones,10.00,O2 (UK) Ltd,Mobile Phones,2022145,202010
Rother District Council,13/10/2020,081ACQUISIT,"Acquisitions, Transformation and Regeneration",20121,Programme and Policy Office,D2622,Mobile Phones,10.00,O2 (UK) Ltd,Mobile Phones,2022145,202010
Rother District Council,13/10/2020,081ACQUISIT,"Acquisitions, Transformation and Regeneration",20272,Major Projects unit,D2622,Mobile Phones,10.00,O2 (UK) Ltd,Mobile Phones,2022145,202010
Rother District Council,13/10/2020,091HOUSING,Housing and Community Services,20113,Bexhill Leisure Pool,E2302,Third party payment private contractors,-350.00,GDUK Door Solutions Ltd,Third party payment private contractors,2022211,202010
Rother District Council,13/10/2020,091HOUSING,Housing and Community Services,20262,Head of Service Housing and Community Services,D2622,Mobile Phones,10.00,O2 (UK) Ltd,Mobile Phones,2022147,202010
Rother District Council,13/10/2020,101RESOURCES,Resources,20226,Service Manager Finance and Welfare,D2622,Mobile Phones,10.00,O2 (UK) Ltd,Mobile Phones,2022148,202010
Rother District Council,13/10/2020,101RESOURCES,Resources,20222,Accountancy,D2622,Mobile Phones,10.00,O2 (UK) Ltd,Mobile Phones,2022146,202011
Rother District Council,13/10/2020,101RESOURCES,Resources,20222,Accountancy,D2622,Mobile Phones,10.00,O2 (UK) Ltd,Mobile Phones,2022146,202011
Rother District Council,13/10/2020,091HOUSING,Housing and Community Services,20264,Property Maintenance Team,D2622,Mobile Phones,10.00,O2 (UK) Ltd,Mobile Phones,2022147,202010
Rother District Council,13/10/2020,091HOUSING,Housing and Community Services,20264,Property Maintenance Team,D2622,Mobile Phones,10.00,O2 (UK) Ltd,Mobile Phones,2022147,202010
Rother District Council,13/10/2020,091HOUSING,Housing and Community Services,20264,Property Maintenance Team,D2622,Mobile Phones,10.00,O2 (UK) Ltd,Mobile Phones,2022147,202010
Rother District Council,13/10/2020,091HOUSING,Housing and Community Services,20264,Property Maintenance Team,D2622,Mobile Phones,13.37,O2 (UK) Ltd,Mobile Phones,2022147,202010
Rother District Council,13/10/2020,091HOUSING,Housing and Community Services,20264,Property Maintenance Team,D2622,Mobile Phones,10.00,O2 (UK) Ltd,Mobile Phones,2022147,202010
Rother District Council,13/10/2020,091HOUSING,Housing and Community Services,20264,Property Maintenance Team,D2622,Mobile Phones,10.00,O2 (UK) Ltd,Mobile Phones,2022147,202010
Rother District Council,13/10/2020,091HOUSING,Housing and Community Services,20264,Property Maintenance Team,D2622,Mobile Phones,10.00,O2 (UK) Ltd,Mobile Phones,2022147,202010
Rother District Council,13/10/2020,091HOUSING,Housing and Community Services,20264,Property Maintenance Team,D2622,Mobile Phones,10.00,O2 (UK) Ltd,Mobile Phones,2022147,202010
Rother District Council,13/10/2020,091HOUSING,Housing and Community Services,20204,Housing Administration Account,D2622,Mobile Phones,10.00,O2 (UK) Ltd,Mobile Phones,2022147,202010
Rother District Council,13/10/2020,091HOUSING,Housing and Community Services,20204,Housing Administration Account,D2622,Mobile Phones,10.00,O2 (UK) Ltd,Mobile Phones,2022147,202010
Rother District Council,13/10/2020,091HOUSING,Housing and Community Services,20204,Housing Administration Account,D2622,Mobile Phones,10.00,O2 (UK) Ltd,Mobile Phones,2022147,202010
Rother District Council,13/10/2020,091HOUSING,Housing and Community Services,20204,Housing Administration Account,D2622,Mobile Phones,10.00,O2 (UK) Ltd,Mobile Phones,2022147,202010
Rother District Council,13/10/2020,091HOUSING,Housing and Community Services,20204,Housing Administration Account,D2622,Mobile Phones,10.00,O2 (UK) Ltd,Mobile Phones,2022147,202010
Rother District Council,13/10/2020,091HOUSING,Housing and Community Services,20204,Housing Administration Account,D2622,Mobile Phones,10.00,O2 (UK) Ltd,Mobile Phones,2022147,202010
Rother District Council,13/10/2020,091HOUSING,Housing and Community Services,20204,Housing Administration Account,D2622,Mobile Phones,10.00,O2 (UK) Ltd,Mobile Phones,2022147,202010
Rother District Council,13/10/2020,091HOUSING,Housing and Community Services,20204,Housing Administration Account,D2622,Mobile Phones,10.00,O2 (UK) Ltd,Mobile Phones,2022147,202010
Rother District Council,13/10/2020,091HOUSING,Housing and Community Services,20204,Housing Administration Account,D2622,Mobile Phones,10.00,O2 (UK) Ltd,Mobile Phones,2022147,202010
Rother District Council,13/10/2020,091HOUSING,Housing and Community Services,20204,Housing Administration Account,D2622,Mobile Phones,10.00,O2 (UK) Ltd,Mobile Phones,2022147,202010
Rother District Council,13/10/2020,091HOUSING,Housing and Community Services,20204,Housing Administration Account,D2622,Mobile Phones,10.00,O2 (UK) Ltd,Mobile Phones,2022147,202010
Rother District Council,13/10/2020,091HOUSING,Housing and Community Services,20204,Housing Administration Account,D2622,Mobile Phones,10.00,O2 (UK) Ltd,Mobile Phones,2022147,202010
Rother District Council,13/10/2020,091HOUSING,Housing and Community Services,20204,Housing Administration Account,D2622,Mobile Phones,10.00,O2 (UK) Ltd,Mobile Phones,2022147,202010
Rother District Council,13/10/2020,091HOUSING,Housing and Community Services,20204,Housing Administration Account,D2622,Mobile Phones,10.00,O2 (UK) Ltd,Mobile Phones,2022147,202010
Rother District Council,13/10/2020,091HOUSING,Housing and Community Services,20204,Housing Administration Account,D2622,Mobile Phones,10.00,O2 (UK) Ltd,Mobile Phones,2022147,202010
Rother District Council,13/10/2020,091HOUSING,Housing and Community Services,20204,Housing Administration Account,D2622,Mobile Phones,10.00,O2 (UK) Ltd,Mobile Phones,2022147,202010
Rother District Council,13/10/2020,091HOUSING,Housing and Community Services,20204,Housing Administration Account,D2622,Mobile Phones,10.00,O2 (UK) Ltd,Mobile Phones,2022147,202010
Rother District Council,13/10/2020,091HOUSING,Housing and Community Services,20204,Housing Administration Account,D2622,Mobile Phones,10.00,O2 (UK) Ltd,Mobile Phones,2022147,202010
Rother District Council,13/10/2020,091HOUSING,Housing and Community Services,20204,Housing Administration Account,D2622,Mobile Phones,10.00,O2 (UK) Ltd,Mobile Phones,2022147,202010
Rother District Council,13/10/2020,091HOUSING,Housing and Community Services,20204,Housing Administration Account,D2622,Mobile Phones,10.00,O2 (UK) Ltd,Mobile Phones,2022147,202010
Rother District Council,13/10/2020,091HOUSING,Housing and Community Services,20236,Customer Services and Development,D2622,Mobile Phones,15.00,O2 (UK) Ltd,Mobile Phones,2022147,202010
Rother District Council,13/10/2020,101RESOURCES,Resources,20215,Revenue and Benefits,D2622,Mobile Phones,11.97,O2 (UK) Ltd,Mobile Phones,2022146,202011
Rother District Council,13/10/2020,101RESOURCES,Resources,20215,Revenue and Benefits,D2622,Mobile Phones,10.00,O2 (UK) Ltd,Mobile Phones,2022146,202011
Rother District Council,13/10/2020,101RESOURCES,Resources,20215,Revenue and Benefits,D2622,Mobile Phones,10.00,O2 (UK) Ltd,Mobile Phones,2022146,202011
Rother District Council,13/10/2020,101RESOURCES,Resources,20215,Revenue and Benefits,D2622,Mobile Phones,10.00,O2 (UK) Ltd,Mobile Phones,2022146,202011
Rother District Council,13/10/2020,101RESOURCES,Resources,20215,Revenue and Benefits,D2622,Mobile Phones,10.00,O2 (UK) Ltd,Mobile Phones,2022146,202011
Rother District Council,13/10/2020,101RESOURCES,Resources,20215,Revenue and Benefits,D2622,Mobile Phones,10.00,O2 (UK) Ltd,Mobile Phones,2022146,202011
Rother District Council,13/10/2020,101RESOURCES,Resources,20215,Revenue and Benefits,D2622,Mobile Phones,10.00,O2 (UK) Ltd,Mobile Phones,2022146,202011
Rother District Council,13/10/2020,101RESOURCES,Resources,20239,Computer Services,D2622,Mobile Phones,10.00,O2 (UK) Ltd,Mobile Phones,2022146,202011
Rother District Council,13/10/2020,101RESOURCES,Resources,20239,Computer Services,D2622,Mobile Phones,10.00,O2 (UK) Ltd,Mobile Phones,2022146,202011
Rother District Council,13/10/2020,101RESOURCES,Resources,20239,Computer Services,D2622,Mobile Phones,10.00,O2 (UK) Ltd,Mobile Phones,2022146,202011
Rother District Council,13/10/2020,101RESOURCES,Resources,20239,Computer Services,D2622,Mobile Phones,10.00,O2 (UK) Ltd,Mobile Phones,2022146,202011
Rother District Council,13/10/2020,101RESOURCES,Resources,20239,Computer Services,D2622,Mobile Phones,10.00,O2 (UK) Ltd,Mobile Phones,2022146,202011
Rother District Council,13/10/2020,101RESOURCES,Resources,20239,Computer Services,D2622,Mobile Phones,10.00,O2 (UK) Ltd,Mobile Phones,2022146,202011
Rother District Council,15/10/2020,999NOREPORT,Environmental Services,70706,Capital - Disabled Facilities Grant,N1012,Capital Advances,"6,000.00",REDACTED PERSONAL DATA,Capital Advances Disabled Facilities Grant,2021943,202010
Rother District Council,19/10/2020,091HOUSING,Housing and Community Services,20145,Maintenance Services,D1201,Equipment & Materials,36.32,Saint-Gobain Building Distribution Ltd t/a Jewson,Equipment & Materials - Purchase of Tools,2021777,202010
Rother District Council,21/10/2020,999NOREPORT,"Acquisitions, Transformation and Regeneration",70725,Capital - Blackfriars,N1002,Land & Property fees,"2,000.00",Bevan Brittan LLP,Land & Property fees Capital-Land and Propty - Fees Etc.,2022065,202010
Rother District Council,22/10/2020,031RESOURCES,Chief Executive & Corporate Core,20175,Administrative Offices - T.H. Annex (NOT CHP),B2201,Electricity,770.31,Laser Energy Buying Group (Kent County Council Commercial Services),Electricity - Electricity Charges,2022922,202011
Rother District Council,22/10/2020,031RESOURCES,Chief Executive & Corporate Core,20173,Administrative Offices - Town Hall,B2201,Electricity,"2,022.75",Laser Energy Buying Group (Kent County Council Commercial Services),Electricity - Electricity Charges,2022922,202011
Rother District Council,22/10/2020,031RESOURCES,Chief Executive & Corporate Core,20177,Administrative Offices - Rear Depot,B2201,Electricity,50.32,Laser Energy Buying Group (Kent County Council Commercial Services),Electricity - Electricity Charges,2022922,202011
Rother District Council,22/10/2020,091HOUSING,Housing and Community Services,20128,Public Conveniences,B2201,Electricity,33.33,Laser Energy Buying Group (Kent County Council Commercial Services),Electricity - Electricity Charges,2022922,202011
Rother District Council,22/10/2020,091HOUSING,Housing and Community Services,20128,Public Conveniences,B2201,Electricity,86.99,Laser Energy Buying Group (Kent County Council Commercial Services),Electricity - Electricity Charges,2022922,202011
Rother District Council,22/10/2020,091HOUSING,Housing and Community Services,20128,Public Conveniences,B2201,Electricity,79.88,Laser Energy Buying Group (Kent County Council Commercial Services),Electricity - Electricity Charges,2022922,202011
Rother District Council,22/10/2020,091HOUSING,Housing and Community Services,20128,Public Conveniences,B2201,Electricity,10.20,Laser Energy Buying Group (Kent County Council Commercial Services),Electricity - Electricity Charges,2022922,202011
Rother District Council,22/10/2020,081ACQUISIT,"Acquisitions, Transformation and Regeneration",20155,Investment properties,B2201,Electricity,79.87,Laser Energy Buying Group (Kent County Council Commercial Services),Electricity - Electricity Charges,2022922,202011
Rother District Council,22/10/2020,091HOUSING,Housing and Community Services,20107,Camber Beach & Foreshore,B2201,Electricity,43.17,Laser Energy Buying Group (Kent County Council Commercial Services),Electricity - Electricity Charges,2022922,202011
Rother District Council,22/10/2020,091HOUSING,Housing and Community Services,20114,Bexhill Parks & Open Spaces,B2201,Electricity,23.56,Laser Energy Buying Group (Kent County Council Commercial Services),Electricity - Electricity Charges,2022922,202011
Rother District Council,22/10/2020,091HOUSING,Housing and Community Services,20114,Bexhill Parks & Open Spaces,B2201,Electricity,57.78,Laser Energy Buying Group (Kent County Council Commercial Services),Electricity - Electricity Charges,2022922,202011
Rother District Council,22/10/2020,091HOUSING,Housing and Community Services,20114,Bexhill Parks & Open Spaces,B2201,Electricity,42.42,Laser Energy Buying Group (Kent County Council Commercial Services),Electricity - Electricity Charges,2022922,202011
Rother District Council,22/10/2020,091HOUSING,Housing and Community Services,20115,Rye Area Parks & Gardens,B2201,Electricity,20.87,Laser Energy Buying Group (Kent County Council Commercial Services),Electricity - Electricity Charges,2022922,202011
Rother District Council,22/10/2020,081ACQUISIT,"Acquisitions, Transformation and Regeneration",20150,Peasmarsh Workshops,B2201,Electricity,35.46,Laser Energy Buying Group (Kent County Council Commercial Services),Electricity - Electricity Charges,2022922,202011
Rother District Council,22/10/2020,091HOUSING,Housing and Community Services,20128,Public Conveniences,B2201,Electricity,164.22,Laser Energy Buying Group (Kent County Council Commercial Services),Electricity - Electricity Charges,2022922,202011
Rother District Council,22/10/2020,091HOUSING,Housing and Community Services,20128,Public Conveniences,B2201,Electricity,5.89,Laser Energy Buying Group (Kent County Council Commercial Services),Electricity - Electricity Charges,2022922,202011
Rother District Council,22/10/2020,091HOUSING,Housing and Community Services,20128,Public Conveniences,B2201,Electricity,84.26,Laser Energy Buying Group (Kent County Council Commercial Services),Electricity - Electricity Charges,2022922,202011
Rother District Council,22/10/2020,091HOUSING,Housing and Community Services,20128,Public Conveniences,B2201,Electricity,208.52,Laser Energy Buying Group (Kent County Council Commercial Services),Electricity - Electricity Charges,2022922,202011
Rother District Council,22/10/2020,091HOUSING,Housing and Community Services,20128,Public Conveniences,B2201,Electricity,47.04,Laser Energy Buying Group (Kent County Council Commercial Services),Electricity - Electricity Charges,2022922,202011
Rother District Council,22/10/2020,091HOUSING,Housing and Community Services,20128,Public Conveniences,B2201,Electricity,362.05,Laser Energy Buying Group (Kent County Council Commercial Services),Electricity - Electricity Charges,2022922,202011
Rother District Council,22/10/2020,091HOUSING,Housing and Community Services,20128,Public Conveniences,B2201,Electricity,112.49,Laser Energy Buying Group (Kent County Council Commercial Services),Electricity - Electricity Charges,2022922,202011
Rother District Council,22/10/2020,091HOUSING,Housing and Community Services,20128,Public Conveniences,B2201,Electricity,27.51,Laser Energy Buying Group (Kent County Council Commercial Services),Electricity - Electricity Charges,2022922,202011
Rother District Council,22/10/2020,091HOUSING,Housing and Community Services,20128,Public Conveniences,B2201,Electricity,51.51,Laser Energy Buying Group (Kent County Council Commercial Services),Electricity - Electricity Charges,2022922,202011
Rother District Council,22/10/2020,091HOUSING,Housing and Community Services,20128,Public Conveniences,B2201,Electricity,158.98,Laser Energy Buying Group (Kent County Council Commercial Services),Electricity - Electricity Charges,2022922,202011
Rother District Council,22/10/2020,091HOUSING,Housing and Community Services,20128,Public Conveniences,B2201,Electricity,223.10,Laser Energy Buying Group (Kent County Council Commercial Services),Electricity - Electricity Charges,2022922,202011
Rother District Council,22/10/2020,091HOUSING,Housing and Community Services,20128,Public Conveniences,B2201,Electricity,32.88,Laser Energy Buying Group (Kent County Council Commercial Services),Electricity - Electricity Charges,2022922,202011
Rother District Council,22/10/2020,091HOUSING,Housing and Community Services,20128,Public Conveniences,B2201,Electricity,37.80,Laser Energy Buying Group (Kent County Council Commercial Services),Electricity - Electricity Charges,2022922,202011
Rother District Council,22/10/2020,091HOUSING,Housing and Community Services,20128,Public Conveniences,B2201,Electricity,35.41,Laser Energy Buying Group (Kent County Council Commercial Services),Electricity - Electricity Charges,2022922,202011
Rother District Council,22/10/2020,091HOUSING,Housing and Community Services,20128,Public Conveniences,B2201,Electricity,8.61,Laser Energy Buying Group (Kent County Council Commercial Services),Electricity - Electricity Charges,2022922,202011
Rother District Council,22/10/2020,091HOUSING,Housing and Community Services,20128,Public Conveniences,B2201,Electricity,53.77,Laser Energy Buying Group (Kent County Council Commercial Services),Electricity - Electricity Charges,2022922,202011
Rother District Council,22/10/2020,091HOUSING,Housing and Community Services,20128,Public Conveniences,B2201,Electricity,138.77,Laser Energy Buying Group (Kent County Council Commercial Services),Electricity - Electricity Charges,2022922,202011
Rother District Council,22/10/2020,081ACQUISIT,"Acquisitions, Transformation and Regeneration",20151,Udimore Workshops,B2201,Electricity,29.45,Laser Energy Buying Group (Kent County Council Commercial Services),Electricity - Electricity Charges,2022922,202011
Rother District Council,22/10/2020,081ACQUISIT,"Acquisitions, Transformation and Regeneration",20153,"Elva Business Centre, Bexhill",B2201,Electricity,661.26,Laser Energy Buying Group (Kent County Council Commercial Services),Electricity - Electricity Charges,2022922,202011
Rother District Council,22/10/2020,091HOUSING,Housing and Community Services,20114,Bexhill Parks & Open Spaces,B2201,Electricity,35.14,Laser Energy Buying Group (Kent County Council Commercial Services),Electricity - Electricity Charges,2022922,202011
Rother District Council,22/10/2020,091HOUSING,Housing and Community Services,20114,Bexhill Parks & Open Spaces,B2201,Electricity,34.43,Laser Energy Buying Group (Kent County Council Commercial Services),Electricity - Electricity Charges,2022922,202011
Rother District Council,22/10/2020,091HOUSING,Housing and Community Services,20107,Camber Beach & Foreshore,B2201,Electricity,299.88,Laser Energy Buying Group (Kent County Council Commercial Services),Electricity - Electricity Charges,2022922,202011
Rother District Council,22/10/2020,081ACQUISIT,"Acquisitions, Transformation and Regeneration",20155,Investment properties,B2201,Electricity,-54.64,Laser Energy Buying Group (Kent County Council Commercial Services),Electricity - Electricity Charges,2022922,202011
Rother District Council,22/10/2020,081ACQUISIT,"Acquisitions, Transformation and Regeneration",20155,Investment properties,B2201,Electricity,52.32,Laser Energy Buying Group (Kent County Council Commercial Services),Electricity - Electricity Charges,2022922,202011
Rother District Council,22/10/2020,081ACQUISIT,"Acquisitions, Transformation and Regeneration",20267,Property Investment Strategy - 18-40 Beeching Road ( Land and Buildings),B2201,Electricity,72.24,Laser Energy Buying Group (Kent County Council Commercial Services),Electricity - Electricity Charges,2022922,202011
Rother District Council,22/10/2020,091HOUSING,Housing and Community Services,20114,Bexhill Parks & Open Spaces,B2201,Electricity,62.25,Laser Energy Buying Group (Kent County Council Commercial Services),Electricity - Electricity Charges,2022922,202011
Rother District Council,22/10/2020,091HOUSING,Housing and Community Services,20115,Rye Area Parks & Gardens,B2201,Electricity,24.04,Laser Energy Buying Group (Kent County Council Commercial Services),Electricity - Electricity Charges,2022922,202011
Rother District Council,22/10/2020,091HOUSING,Housing and Community Services,20123,Cemeteries,B2201,Electricity,74.47,Laser Energy Buying Group (Kent County Council Commercial Services),Electricity - Electricity Charges,2022922,202011
Rother District Council,22/10/2020,081ACQUISIT,"Acquisitions, Transformation and Regeneration",20154,Committee Property Account,B2201,Electricity,56.73,Laser Energy Buying Group (Kent County Council Commercial Services),Electricity - Electricity Charges,2022922,202011
Rother District Council,22/10/2020,081ACQUISIT,"Acquisitions, Transformation and Regeneration",20104,Ancient Monuments & Gazebo,B2201,Electricity,29.45,Laser Energy Buying Group (Kent County Council Commercial Services),Electricity - Electricity Charges,2022922,202011
Rother District Council,22/10/2020,081ACQUISIT,"Acquisitions, Transformation and Regeneration",20148,Misc Land & Buildings,B2201,Electricity,24.05,Laser Energy Buying Group (Kent County Council Commercial Services),Electricity - Electricity Charges,2022922,202011
Rother District Council,22/10/2020,091HOUSING,Housing and Community Services,20128,Public Conveniences,B2201,Electricity,50.77,Laser Energy Buying Group (Kent County Council Commercial Services),Electricity - Electricity Charges,2022922,202011
Rother District Council,22/10/2020,091HOUSING,Housing and Community Services,20128,Public Conveniences,B2201,Electricity,70.45,Laser Energy Buying Group (Kent County Council Commercial Services),Electricity - Electricity Charges,2022922,202011
Rother District Council,22/10/2020,091HOUSING,Housing and Community Services,20128,Public Conveniences,B2201,Electricity,51.66,Laser Energy Buying Group (Kent County Council Commercial Services),Electricity - Electricity Charges,2022922,202011
Rother District Council,22/10/2020,091HOUSING,Housing and Community Services,20128,Public Conveniences,B2201,Electricity,78.35,Laser Energy Buying Group (Kent County Council Commercial Services),Electricity - Electricity Charges,2022922,202011
Rother District Council,22/10/2020,091HOUSING,Housing and Community Services,20128,Public Conveniences,B2201,Electricity,110.70,Laser Energy Buying Group (Kent County Council Commercial Services),Electricity - Electricity Charges,2022922,202011
Rother District Council,22/10/2020,091HOUSING,Housing and Community Services,20128,Public Conveniences,B2201,Electricity,31.98,Laser Energy Buying Group (Kent County Council Commercial Services),Electricity - Electricity Charges,2022922,202011
Rother District Council,22/10/2020,091HOUSING,Housing and Community Services,20137,Car Parks,B2201,Electricity,96.09,Laser Energy Buying Group (Kent County Council Commercial Services),Electricity - Electricity Charges,2022922,202011
Rother District Council,22/10/2020,091HOUSING,Housing and Community Services,20128,Public Conveniences,B2201,Electricity,20.30,Laser Energy Buying Group (Kent County Council Commercial Services),Electricity - Electricity Charges,2022922,202011
Rother District Council,22/10/2020,091HOUSING,Housing and Community Services,20128,Public Conveniences,B2201,Electricity,43.76,Laser Energy Buying Group (Kent County Council Commercial Services),Electricity - Electricity Charges,2022922,202011
Rother District Council,22/10/2020,091HOUSING,Housing and Community Services,20125,Coast Protection,B2201,Electricity,402.11,Laser Energy Buying Group (Kent County Council Commercial Services),Electricity - Electricity Charges,2022922,202011
Rother District Council,22/10/2020,081ACQUISIT,"Acquisitions, Transformation and Regeneration",20154,Committee Property Account,B2201,Electricity,52.15,Laser Energy Buying Group (Kent County Council Commercial Services),Electricity - Electricity Charges,2022922,202011
Rother District Council,22/10/2020,081ACQUISIT,"Acquisitions, Transformation and Regeneration",20154,Committee Property Account,B2201,Electricity,52.15,Laser Energy Buying Group (Kent County Council Commercial Services),Electricity - Electricity Charges,2022922,202011
Rother District Council,22/10/2020,081ACQUISIT,"Acquisitions, Transformation and Regeneration",20154,Committee Property Account,B2201,Electricity,52.14,Laser Energy Buying Group (Kent County Council Commercial Services),Electricity - Electricity Charges,2022922,202011
Rother District Council,22/10/2020,081ACQUISIT,"Acquisitions, Transformation and Regeneration",20154,Committee Property Account,B2201,Electricity,52.14,Laser Energy Buying Group (Kent County Council Commercial Services),Electricity - Electricity Charges,2022922,202011
Rother District Council,22/10/2020,081ACQUISIT,"Acquisitions, Transformation and Regeneration",20154,Committee Property Account,B2201,Electricity,"2,346.69",Laser Energy Buying Group (Kent County Council Commercial Services),Electricity - Electricity Charges,2022922,202011
Rother District Council,22/10/2020,081ACQUISIT,"Acquisitions, Transformation and Regeneration",20154,Committee Property Account,B2201,Electricity,16.55,Laser Energy Buying Group (Kent County Council Commercial Services),Electricity - Electricity Charges,2022922,202011
Rother District Council,22/10/2020,081ACQUISIT,"Acquisitions, Transformation and Regeneration",20154,Committee Property Account,B2201,Electricity,16.54,Laser Energy Buying Group (Kent County Council Commercial Services),Electricity - Electricity Charges,2022922,202011
Rother District Council,22/10/2020,081ACQUISIT,"Acquisitions, Transformation and Regeneration",20154,Committee Property Account,B2201,Electricity,16.54,Laser Energy Buying Group (Kent County Council Commercial Services),Electricity - Electricity Charges,2022922,202011
Rother District Council,22/10/2020,081ACQUISIT,"Acquisitions, Transformation and Regeneration",20154,Committee Property Account,B2201,Electricity,16.54,Laser Energy Buying Group (Kent County Council Commercial Services),Electricity - Electricity Charges,2022922,202011
Rother District Council,22/10/2020,091HOUSING,Housing and Community Services,20108,Bexhill Promenade & Foreshore,B2201,Electricity,26.07,Laser Energy Buying Group (Kent County Council Commercial Services),Electricity - Electricity Charges,2022922,202011
Rother District Council,22/10/2020,091HOUSING,Housing and Community Services,20108,Bexhill Promenade & Foreshore,B2201,Electricity,26.07,Laser Energy Buying Group (Kent County Council Commercial Services),Electricity - Electricity Charges,2022922,202011
Rother District Council,22/10/2020,091HOUSING,Housing and Community Services,20108,Bexhill Promenade & Foreshore,B2201,Electricity,80.42,Laser Energy Buying Group (Kent County Council Commercial Services),Electricity - Electricity Charges,2022922,202011
Rother District Council,22/10/2020,081ACQUISIT,"Acquisitions, Transformation and Regeneration",20154,Committee Property Account,B2201,Electricity,14.34,Laser Energy Buying Group (Kent County Council Commercial Services),Electricity - Electricity Charges,2022922,202011
Rother District Council,22/10/2020,081ACQUISIT,"Acquisitions, Transformation and Regeneration",20154,Committee Property Account,B2201,Electricity,14.34,Laser Energy Buying Group (Kent County Council Commercial Services),Electricity - Electricity Charges,2022922,202011
Rother District Council,22/10/2020,081ACQUISIT,"Acquisitions, Transformation and Regeneration",20154,Committee Property Account,B2201,Electricity,14.34,Laser Energy Buying Group (Kent County Council Commercial Services),Electricity - Electricity Charges,2022922,202011
Rother District Council,22/10/2020,091HOUSING,Housing and Community Services,20102,Rother Museum Services,B2201,Electricity,794.69,Laser Energy Buying Group (Kent County Council Commercial Services),Electricity - Electricity Charges,2022922,202011
Rother District Council,22/10/2020,091HOUSING,Housing and Community Services,20108,Bexhill Promenade & Foreshore,B2201,Electricity,14.34,Laser Energy Buying Group (Kent County Council Commercial Services),Electricity - Electricity Charges,2022922,202011
Rother District Council,22/10/2020,091HOUSING,Housing and Community Services,20108,Bexhill Promenade & Foreshore,B2201,Electricity,43.50,Laser Energy Buying Group (Kent County Council Commercial Services),Electricity - Electricity Charges,2022922,202011
Rother District Council,22/10/2020,091HOUSING,Housing and Community Services,20108,Bexhill Promenade & Foreshore,B2201,Electricity,123.63,Laser Energy Buying Group (Kent County Council Commercial Services),Electricity - Electricity Charges,2022922,202011
Rother District Council,22/10/2020,091HOUSING,Housing and Community Services,20108,Bexhill Promenade & Foreshore,B2201,Electricity,32.43,Laser Energy Buying Group (Kent County Council Commercial Services),Electricity - Electricity Charges,2022922,202011
Rother District Council,22/10/2020,091HOUSING,Housing and Community Services,20108,Bexhill Promenade & Foreshore,B2201,Electricity,47.33,Laser Energy Buying Group (Kent County Council Commercial Services),Electricity - Electricity Charges,2022922,202011
Rother District Council,22/10/2020,091HOUSING,Housing and Community Services,20108,Bexhill Promenade & Foreshore,B2201,Electricity,30.73,Laser Energy Buying Group (Kent County Council Commercial Services),Electricity - Electricity Charges,2022922,202011
Rother District Council,22/10/2020,091HOUSING,Housing and Community Services,20114,Bexhill Parks & Open Spaces,B2201,Electricity,27.09,Laser Energy Buying Group (Kent County Council Commercial Services),Electricity - Electricity Charges,2022922,202011
Rother District Council,22/10/2020,091HOUSING,Housing and Community Services,20128,Public Conveniences,B2201,Electricity,81.28,Laser Energy Buying Group (Kent County Council Commercial Services),Electricity - Electricity Charges,2022922,202011
Rother District Council,22/10/2020,091HOUSING,Housing and Community Services,20128,Public Conveniences,B2201,Electricity,419.43,Laser Energy Buying Group (Kent County Council Commercial Services),Electricity - Electricity Charges,2022922,202011
Rother District Council,22/10/2020,091HOUSING,Housing and Community Services,20137,Car Parks,B2201,Electricity,46.15,Laser Energy Buying Group (Kent County Council Commercial Services),Electricity - Electricity Charges,2022922,202011
Rother District Council,22/10/2020,031RESOURCES,Chief Executive & Corporate Core,20173,Administrative Offices - Town Hall,B2202,Gas,185.44,Laser Energy Buying Group (Kent County Council Commercial Services),Gas - Gas Charges,2022928,202012
Rother District Council,22/10/2020,031RESOURCES,Chief Executive & Corporate Core,20175,Administrative Offices - T.H. Annex (NOT CHP),B2202,Gas,125.74,Laser Energy Buying Group (Kent County Council Commercial Services),Gas - Gas Charges,2022928,202012
Rother District Council,22/10/2020,031RESOURCES,Chief Executive & Corporate Core,20176,Administrative Offices - Print Room,B2202,Gas,50.16,Laser Energy Buying Group (Kent County Council Commercial Services),Gas - Gas Charges,2022928,202012
Rother District Council,22/10/2020,081ACQUISIT,"Acquisitions, Transformation and Regeneration",20154,Committee Property Account,B2202,Gas,9.90,Laser Energy Buying Group (Kent County Council Commercial Services),Gas - Gas Charges,2022928,202012
Rother District Council,22/10/2020,081ACQUISIT,"Acquisitions, Transformation and Regeneration",20155,Investment properties,B2202,Gas,8.12,Laser Energy Buying Group (Kent County Council Commercial Services),Gas - Gas Charges,2022928,202012
Rother District Council,22/10/2020,081ACQUISIT,"Acquisitions, Transformation and Regeneration",20155,Investment properties,B2202,Gas,-8.99,Laser Energy Buying Group (Kent County Council Commercial Services),Gas - Gas Charges,2022928,202012
Rother District Council,25/10/2020,031RESOURCES,Chief Executive & Corporate Core,20276,COVID19 RDC expenditure,D2514,Accommodation Costs,300.00,Specialist Care UK Group Ltd,Accomodation Costs - Housing Due to Covid 19,2022557,202011
Rother District Council,27/10/2020,081ACQUISIT,"Acquisitions, Transformation and Regeneration",20154,Committee Property Account,D2509,Consultants and Other Services,140.63,Hawthorn Safety Consultancy,Consultants and other services - Consultants Fees,2022586,202011
Rother District Council,27/10/2020,091HOUSING,Housing and Community Services,20114,Bexhill Parks & Open Spaces,D2509,Consultants and Other Services,"1,406.30",Hawthorn Safety Consultancy,Consultants and other services - Consultants Fees,2022585,202011
Rother District Council,27/10/2020,091HOUSING,Housing and Community Services,20112,Bexhill Leisure Centre,D2509,Consultants and Other Services,140.63,Hawthorn Safety Consultancy,Consultants and other services - Consultants Fees,2022587,202011
Rother District Council,27/10/2020,091HOUSING,Housing and Community Services,20111,Rye Sports Centre & Pool,D2509,Consultants and Other Services,140.63,Hawthorn Safety Consultancy,Consultants and other services - Consultants Fees,2022587,202011
Rother District Council,27/10/2020,091HOUSING,Housing and Community Services,20113,Bexhill Leisure Pool,D2509,Consultants and Other Services,140.63,Hawthorn Safety Consultancy,Consultants and other services - Consultants Fees,2022587,202011
Rother District Council,27/10/2020,091HOUSING,Housing and Community Services,20123,Cemeteries,D2509,Consultants and Other Services,140.63,Hawthorn Safety Consultancy,Consultants and other services - Consultants Fees,2022584,202011
Rother District Council,27/10/2020,091HOUSING,Housing and Community Services,20115,Rye Area Parks & Gardens,D2513,Hired and Contracted services,140.63,Hawthorn Safety Consultancy,Hired and contracted services - Parks-Consultants Fees,2022585,202011
Rother District Council,28/10/2020,999NOREPORT,"Acquisitions, Transformation and Regeneration",70725,Capital - Blackfriars,D2513,Hired and Contracted services,"7,101.50",Bevan Brittan LLP,Hired and contracted services - Legal Advice,2021801,202010
Rother District Council,30/10/2020,091HOUSING,Housing and Community Services,20206,Syrians,D2513,Hired and Contracted services,"2,396.32",REDACTED PERSONAL DATA,Hired and contracted services - Syrian-Education-Exempt VAT,2021914,202010
Rother District Council,31/10/2020,101RESOURCES,Resources,20209,Corporate management,D2513,Hired and Contracted services,19.81,allpay.net Ltd,Hired and contracted services - Allpay Card/Rep/Let Chrg - Vatable,2022050,202010
Rother District Council,31/10/2020,101RESOURCES,Resources,20209,Corporate management,D2513,Hired and Contracted services,11.88,allpay.net Ltd,Hired and contracted services - Allpay Card/Rep/Let Chrg - Vatable,2022051,202010
Rother District Council,31/10/2020,101RESOURCES,Resources,20209,Corporate management,D2513,Hired and Contracted services,27.93,allpay.net Ltd,Hired and contracted services - Allpay Card/Rep/Let Chrg - Vatable,2022053,202010
Rother District Council,31/10/2020,101RESOURCES,Resources,20209,Corporate management,D2513,Hired and Contracted services,912.99,allpay.net Ltd,Hired and contracted services - Allpay Card/Rep/Let Chrg - Vatable,2022054,202010
Rother District Council,31/10/2020,041ENVIRON,Environmental Services,32136,EH Pest Control R + W Partnership,C1104,Derv,1.90,Allstar Business Solutions,Derv - Fuel Service fee payable on fuel cards,2022062,202010
Rother District Council,31/10/2020,091HOUSING,Housing and Community Services,20145,Maintenance Services,C1104,Derv,1.90,Allstar Business Solutions,Derv - Fuel Service fee payable on fuel cards,2022062,202010
Rother District Council,31/10/2020,041ENVIRON,Environmental Services,32136,EH Pest Control R + W Partnership,C1104,Derv,40.00,Allstar Business Solutions,Derv,2022062,202010
Rother District Council,31/10/2020,091HOUSING,Housing and Community Services,20200,Housing Needs - HB (Housing Benefit),D2514,Accommodation Costs,"1,209.00",LESSHOMELESS LTD,Accommodation Costs,2021923,202010
Rother District Council,31/10/2020,091HOUSING,Housing and Community Services,20145,Maintenance Services,C1104,Derv,52.50,Allstar Business Solutions,Derv,2022062,202010
Rother District Council,31/10/2020,091HOUSING,Housing and Community Services,20145,Maintenance Services,C1104,Derv,67.42,Allstar Business Solutions,Derv,2022062,202010
Rother District Council,31/10/2020,091HOUSING,Housing and Community Services,20145,Maintenance Services,C1104,Derv,39.17,Allstar Business Solutions,Derv,2022062,202010
Rother District Council,01/11/2020,101RESOURCES,Resources,20209,Corporate management,D2513,Hired and Contracted services,2.87,Lloyds Bank,Bank Charges,2022072,202010
Rother District Council,01/11/2020,101RESOURCES,Resources,20209,Corporate management,D2513,Hired and Contracted services,785.78,Lloyds Bank,Bank Charges,2022076,202010
Rother District Council,01/11/2020,101RESOURCES,Resources,20209,Corporate management,D2513,Hired and Contracted services,"1,572.13",Lloyds Bank,Bank Charges,2022070,202010
Rother District Council,01/11/2020,101RESOURCES,Resources,20209,Corporate management,D2513,Hired and Contracted services,350.35,Lloyds Bank,Bank Charges,2022075,202010
Rother District Council,01/11/2020,101RESOURCES,Resources,20209,Corporate management,D2513,Hired and Contracted services,5.30,Lloyds Bank,Bank Charges,2022075,202010
Rother District Council,01/11/2020,101RESOURCES,Resources,20209,Corporate management,D2513,Hired and Contracted services,5.40,Lloyds Bank,Bank Charges,2022075,202010
Rother District Council,01/11/2020,031RESOURCES,Chief Executive & Corporate Core,20276,COVID19 RDC expenditure,D2513,Hired and Contracted services,378.41,Specialist Hygiene Services Ltd,Hired and contracted services - Service fees paid relating to Covid-19,2022154,202010
Rother District Council,01/11/2020,091HOUSING,Housing and Community Services,20108,Bexhill Promenade & Foreshore,B1100,Repairs to Premises,190.00,G & Z Blasting Ltd,Repairs to Premises - Specified Repairs and Works listed,2022957,202012
Rother District Council,02/11/2020,101RESOURCES,Resources,20242,Communications-Phones,D2621,Telephones,34.01,TalkTalk Communications Ltd T/A TalkTalk Business,Telephones - Telephone Call Costs+Line Rental,2023718,202012
Rother District Council,05/11/2020,101RESOURCES,Resources,20209,Corporate management,D2513,Hired and Contracted services,115.00,Lloyds Bank,Bank Charges,2022135,202010
Rother District Council,06/11/2020,101RESOURCES,Resources,20239,Computer Services,D2633,Computer Equipment,"2,099.10",Civica UK Ltd,Computer Licences - Computer Licence Renewal,2023621,202012
Rother District Council,07/11/2020,081ACQUISIT,"Acquisitions, Transformation and Regeneration",20146,West Trading Estate,B2201,Electricity,78.18,Pozitive Energy,Electricity - Electricity Charges,2023329,202012
Rother District Council,09/11/2020,031RESOURCES,Chief Executive & Corporate Core,20280,Covid 19 RHSS Reopening High Streets Safely,D2513,Hired and Contracted services,174.84,Lloyds Bank,Hired and contracted services - Service fee paid,2023563,202012
Rother District Council,09/11/2020,081ACQUISIT,"Acquisitions, Transformation and Regeneration",20144,Property Management,D2518,Advertising,37.50,Lloyds Bank,Advertising - ADVERT WEBSITE,2023563,202012
Rother District Council,09/11/2020,999NOREPORT,"Acquisitions, Transformation and Regeneration",70725,Capital - Blackfriars,N1004,Architects & Consultant Fees,"17,890.95",Ecology Consultancy Ltd,Architects & Consultant Fees Capital-Architect and Conslt Fees,2021826,202010
Rother District Council,09/11/2020,101RESOURCES,Resources,20239,Computer Services,D2635,Computer Licences,19.98,Lloyds Bank,Computer Licences - Domain Name Renewal,2023562,202012
Rother District Council,09/11/2020,031RESOURCES,Chief Executive & Corporate Core,20276,COVID19 RDC expenditure,D1201,Equipment & Materials,156.30,Lloyds Bank,Equipment & materials - Miscellaneous,2023561,202012
Rother District Council,09/11/2020,031RESOURCES,Chief Executive & Corporate Core,20276,COVID19 RDC expenditure,D1201,Equipment & Materials,279.90,Lloyds Bank,Equipment & materials - Miscellaneous,2023561,202012
Rother District Council,09/11/2020,091HOUSING,Housing and Community Services,20138,Residual Highway Services,D2513,Hired and Contracted services,150.00,Lloyds Bank,Car Parking - On Street Car Parking,2023552,202012
Rother District Council,09/11/2020,091HOUSING,Housing and Community Services,20204,Housing Administration Account,D2513,Hired and Contracted services,125.00,Lloyds Bank,Car Parking - On Street Car Parking,2023552,202012
Rother District Council,09/11/2020,091HOUSING,Housing and Community Services,20145,Maintenance Services,D2352,Clothing and Uniforms,47.42,Lloyds Bank,Clothing and Uniforms - Mens Protective-Other,2023552,202012
Rother District Council,09/11/2020,091HOUSING,Housing and Community Services,20206,Syrians,D2513,Hired and Contracted services,"1,245.96",Lloyds Bank,Hired and contracted services - Syrian Misc,2023560,202012
Rother District Council,10/11/2020,101RESOURCES,Resources,20209,Corporate management,D2513,Hired and Contracted services,235.20,Lloyds Bank,Bank Charges,2022134,202010
Rother District Council,11/11/2020,101RESOURCES,Resources,20209,Corporate management,D2513,Hired and Contracted services,188.65,Capita Business Services Ltd,Bank Charges,2022066,202010
Rother District Council,11/11/2020,041ENVIRON,Environmental Services,20129,Community Safety,B2201,Electricity,40.12,Ecotricity Ltd,Electricity - Electricity Charges,2022276,202010
Rother District Council,11/11/2020,041ENVIRON,Environmental Services,20129,Community Safety,B2201,Electricity,300.90,Ecotricity Ltd,Electricity - Electricity Charges,2022278,202010
Rother District Council,11/11/2020,091HOUSING,Housing and Community Services,20108,Bexhill Promenade & Foreshore,B2201,Electricity,3.09,Ecotricity Ltd,Electricity - Electricity Charges,2022274,202010
Rother District Council,11/11/2020,091HOUSING,Housing and Community Services,20108,Bexhill Promenade & Foreshore,B2201,Electricity,1.69,Ecotricity Ltd,Electricity - Electricity Charges,2022275,202010
Rother District Council,11/11/2020,091HOUSING,Housing and Community Services,20114,Bexhill Parks & Open Spaces,B2201,Electricity,19.95,Ecotricity Ltd,Electricity - Electricity Charges,2022284,202010
Rother District Council,11/11/2020,091HOUSING,Housing and Community Services,20137,Car Parks,B2201,Electricity,19.62,Ecotricity Ltd,Electricity - Electricity Charges,2022274,202010
Rother District Council,11/11/2020,091HOUSING,Housing and Community Services,20137,Car Parks,B2201,Electricity,10.69,Ecotricity Ltd,Electricity - Electricity Charges,2022275,202010
Rother District Council,11/11/2020,091HOUSING,Housing and Community Services,20137,Car Parks,B2201,Electricity,5.35,Ecotricity Ltd,Electricity - Electricity Charges,2022276,202010
Rother District Council,11/11/2020,091HOUSING,Housing and Community Services,20137,Car Parks,B2201,Electricity,46.57,Ecotricity Ltd,Electricity - Electricity Charges,2022277,202010
Rother District Council,11/11/2020,091HOUSING,Housing and Community Services,20137,Car Parks,B2201,Electricity,40.14,Ecotricity Ltd,Electricity - Electricity Charges,2022278,202010
Rother District Council,11/11/2020,091HOUSING,Housing and Community Services,20138,Residual Highway Services,B2201,Electricity,3.10,Ecotricity Ltd,Electricity - Electricity Charges,2022274,202010
Rother District Council,11/11/2020,091HOUSING,Housing and Community Services,20138,Residual Highway Services,B2201,Electricity,1.69,Ecotricity Ltd,Electricity - Electricity Charges,2022275,202010
Rother District Council,11/11/2020,091HOUSING,Housing and Community Services,20138,Residual Highway Services,B2201,Electricity,4.45,Ecotricity Ltd,Electricity - Electricity Charges,2022276,202010
Rother District Council,11/11/2020,091HOUSING,Housing and Community Services,20138,Residual Highway Services,B2201,Electricity,7.35,Ecotricity Ltd,Electricity - Electricity Charges,2022277,202010
Rother District Council,11/11/2020,091HOUSING,Housing and Community Services,20138,Residual Highway Services,B2201,Electricity,7.35,Ecotricity Ltd,Electricity - Electricity Charges,2022277,202010
Rother District Council,11/11/2020,091HOUSING,Housing and Community Services,20138,Residual Highway Services,B2201,Electricity,33.40,Ecotricity Ltd,Electricity - Electricity Charges,2022278,202010
Rother District Council,11/11/2020,091HOUSING,Housing and Community Services,20261,"TA Purchases (prev - 41 Jameson Mews, Bexhill on Sea)",B1100,Repairs to Premises,"35,546.00",Sonny Maintenance Ltd t/a SM Group Building & Property Maintenance,Repairs to Premises - Repairs Refurbishment of premises,2023175,202012
Rother District Council,12/11/2020,091HOUSING,Housing and Community Services,20114,Bexhill Parks & Open Spaces,D1201,Equipment & Materials,73.00,Palmstead Nurseries Ltd,Equipment & Materials - Carriage/Handling Charge,2022534,202011
Rother District Council,12/11/2020,101RESOURCES,Resources,20239,Computer Services,D2622,Mobile Phones,"1,716.00",O2 (UK) Ltd,Computer Equipment - New - Computer Hardware,2021418,202010
Rother District Council,12/11/2020,091HOUSING,Housing and Community Services,20114,Bexhill Parks & Open Spaces,D1201,Equipment & Materials,"1,917.29",Palmstead Nurseries Ltd,Equipment & Materials - Parks-Purchase of Planting Material,2022534,202011
Rother District Council,13/11/2020,031RESOURCES,Chief Executive & Corporate Core,20158,Committee Service General Exp,D2622,Mobile Phones,10.00,O2 (UK) Ltd,Mobile Phones,2022152,202010
Rother District Council,13/11/2020,031RESOURCES,Chief Executive & Corporate Core,20171,Human Resources,D2622,Mobile Phones,10.00,O2 (UK) Ltd,Mobile Phones,2022152,202010
Rother District Council,13/11/2020,031RESOURCES,Chief Executive & Corporate Core,20171,Human Resources,D2622,Mobile Phones,10.00,O2 (UK) Ltd,Mobile Phones,2022152,202010
Rother District Council,13/11/2020,031RESOURCES,Chief Executive & Corporate Core,20162,Electoral Registration,D2622,Mobile Phones,10.00,O2 (UK) Ltd,Mobile Phones,2022152,202010
Rother District Council,13/11/2020,031RESOURCES,Chief Executive & Corporate Core,20162,Electoral Registration,D2622,Mobile Phones,10.00,O2 (UK) Ltd,Mobile Phones,2022149,202010
Rother District Council,13/11/2020,031RESOURCES,Chief Executive & Corporate Core,20180,Emergency Planning,D2622,Mobile Phones,10.00,O2 (UK) Ltd,Mobile Phones,2022152,202010
Rother District Council,13/11/2020,031RESOURCES,Chief Executive & Corporate Core,20180,Emergency Planning,D2622,Mobile Phones,10.00,O2 (UK) Ltd,Mobile Phones,2022152,202010
Rother District Council,13/11/2020,031RESOURCES,Chief Executive & Corporate Core,20180,Emergency Planning,D2622,Mobile Phones,4.50,O2 (UK) Ltd,Mobile Phones,2022152,202010
Rother District Council,13/11/2020,031RESOURCES,Chief Executive & Corporate Core,20183,Chief Executive,D2622,Mobile Phones,10.00,O2 (UK) Ltd,Mobile Phones,2022152,202010
Rother District Council,13/11/2020,031RESOURCES,Chief Executive & Corporate Core,20183,Chief Executive,D2622,Mobile Phones,30.00,O2 (UK) Ltd,Mobile Phones,2022152,202010
Rother District Council,13/11/2020,031RESOURCES,Chief Executive & Corporate Core,20183,Chief Executive,D2622,Mobile Phones,10.00,O2 (UK) Ltd,Mobile Phones,2022152,202010
Rother District Council,13/11/2020,031RESOURCES,Chief Executive & Corporate Core,20179,Communications,D2622,Mobile Phones,10.00,O2 (UK) Ltd,Mobile Phones,2022152,202010
Rother District Council,13/11/2020,031RESOURCES,Chief Executive & Corporate Core,32132,Joint Waste Contract Client Unit,D2622,Mobile Phones,10.00,O2 (UK) Ltd,Mobile Phones,2022152,202010
Rother District Council,13/11/2020,031RESOURCES,Chief Executive & Corporate Core,32132,Joint Waste Contract Client Unit,D2622,Mobile Phones,10.00,O2 (UK) Ltd,Mobile Phones,2022152,202010
Rother District Council,13/11/2020,041ENVIRON,Environmental Services,20129,Community Safety,D2622,Mobile Phones,10.00,O2 (UK) Ltd,Mobile Phones,2022149,202010
Rother District Council,13/11/2020,071STRAT,Strategy and Planning,20247,Service Manager Strategy and Planning,D2622,Mobile Phones,10.00,O2 (UK) Ltd,Mobile Phones,2022153,202010
Rother District Council,13/11/2020,071STRAT,Strategy and Planning,20246,Planning Applications,D2622,Mobile Phones,10.00,O2 (UK) Ltd,Mobile Phones,2022153,202010
Rother District Council,13/11/2020,071STRAT,Strategy and Planning,20246,Planning Applications,D2622,Mobile Phones,10.00,O2 (UK) Ltd,Mobile Phones,2022153,202010
Rother District Council,13/11/2020,041ENVIRON,Environmental Services,20198,Licensing Team,D2622,Mobile Phones,10.00,O2 (UK) Ltd,Mobile Phones,2022162,202010
Rother District Council,13/11/2020,041ENVIRON,Environmental Services,20199,Food and Safety Team,D2622,Mobile Phones,10.00,O2 (UK) Ltd,Mobile Phones,2022162,202010
Rother District Council,13/11/2020,041ENVIRON,Environmental Services,20199,Food and Safety Team,D2622,Mobile Phones,10.00,O2 (UK) Ltd,Mobile Phones,2022162,202010
Rother District Council,13/11/2020,041ENVIRON,Environmental Services,20199,Food and Safety Team,D2622,Mobile Phones,10.00,O2 (UK) Ltd,Mobile Phones,2022162,202010
Rother District Council,13/11/2020,041ENVIRON,Environmental Services,20199,Food and Safety Team,D2622,Mobile Phones,10.07,O2 (UK) Ltd,Mobile Phones,2022162,202010
Rother District Council,13/11/2020,041ENVIRON,Environmental Services,20199,Food and Safety Team,D2622,Mobile Phones,10.00,O2 (UK) Ltd,Mobile Phones,2022162,202010
Rother District Council,13/11/2020,041ENVIRON,Environmental Services,20199,Food and Safety Team,D2622,Mobile Phones,10.01,O2 (UK) Ltd,Mobile Phones,2022162,202010
Rother District Council,13/11/2020,041ENVIRON,Environmental Services,20199,Food and Safety Team,D2622,Mobile Phones,10.00,O2 (UK) Ltd,Mobile Phones,2022162,202010
Rother District Council,13/11/2020,041ENVIRON,Environmental Services,20199,Food and Safety Team,D2622,Mobile Phones,10.00,O2 (UK) Ltd,Mobile Phones,2022162,202010
Rother District Council,13/11/2020,041ENVIRON,Environmental Services,20199,Food and Safety Team,D2622,Mobile Phones,10.00,O2 (UK) Ltd,Mobile Phones,2022162,202010
Rother District Council,13/11/2020,041ENVIRON,Environmental Services,20198,Licensing Team,D2622,Mobile Phones,10.00,O2 (UK) Ltd,Mobile Phones,2022162,202010
Rother District Council,13/11/2020,041ENVIRON,Environmental Services,20198,Licensing Team,D2622,Mobile Phones,10.00,O2 (UK) Ltd,Mobile Phones,2022162,202010
Rother District Council,13/11/2020,041ENVIRON,Environmental Services,20198,Licensing Team,D2622,Mobile Phones,10.51,O2 (UK) Ltd,Mobile Phones,2022162,202010
Rother District Council,13/11/2020,041ENVIRON,Environmental Services,20198,Licensing Team,D2622,Mobile Phones,10.00,O2 (UK) Ltd,Mobile Phones,2022162,202010
Rother District Council,13/11/2020,041ENVIRON,Environmental Services,20198,Licensing Team,D2622,Mobile Phones,10.00,O2 (UK) Ltd,Mobile Phones,2022162,202010
Rother District Council,13/11/2020,041ENVIRON,Environmental Services,20198,Licensing Team,D2622,Mobile Phones,10.00,O2 (UK) Ltd,Mobile Phones,2022162,202010
Rother District Council,13/11/2020,041ENVIRON,Environmental Services,20198,Licensing Team,D2622,Mobile Phones,10.00,O2 (UK) Ltd,Mobile Phones,2022162,202010
Rother District Council,13/11/2020,041ENVIRON,Environmental Services,20197,Service Manager Env Serv,D2622,Mobile Phones,10.00,O2 (UK) Ltd,Mobile Phones,2022162,202010
Rother District Council,13/11/2020,041ENVIRON,Environmental Services,20199,Food and Safety Team,D2622,Mobile Phones,10.00,O2 (UK) Ltd,Mobile Phones,2022162,202010
Rother District Council,13/11/2020,041ENVIRON,Environmental Services,20199,Food and Safety Team,D2622,Mobile Phones,10.00,O2 (UK) Ltd,Mobile Phones,2022162,202010
Rother District Council,13/11/2020,041ENVIRON,Environmental Services,20199,Food and Safety Team,D2622,Mobile Phones,10.00,O2 (UK) Ltd,Mobile Phones,2022162,202010
Rother District Council,13/11/2020,041ENVIRON,Environmental Services,20199,Food and Safety Team,D2622,Mobile Phones,10.00,O2 (UK) Ltd,Mobile Phones,2022162,202010
Rother District Council,13/11/2020,041ENVIRON,Environmental Services,20199,Food and Safety Team,D2622,Mobile Phones,10.00,O2 (UK) Ltd,Mobile Phones,2022162,202010
Rother District Council,13/11/2020,041ENVIRON,Environmental Services,20199,Food and Safety Team,D2622,Mobile Phones,10.00,O2 (UK) Ltd,Mobile Phones,2022162,202010
Rother District Council,13/11/2020,041ENVIRON,Environmental Services,20199,Food and Safety Team,D2622,Mobile Phones,10.00,O2 (UK) Ltd,Mobile Phones,2022162,202010
Rother District Council,13/11/2020,041ENVIRON,Environmental Services,20199,Food and Safety Team,D2622,Mobile Phones,10.00,O2 (UK) Ltd,Mobile Phones,2022162,202010
Rother District Council,13/11/2020,041ENVIRON,Environmental Services,20199,Food and Safety Team,D2622,Mobile Phones,10.00,O2 (UK) Ltd,Mobile Phones,2022162,202010
Rother District Council,13/11/2020,041ENVIRON,Environmental Services,20265,Pollution Team,D2622,Mobile Phones,10.00,O2 (UK) Ltd,Mobile Phones,2022162,202010
Rother District Council,13/11/2020,041ENVIRON,Environmental Services,20265,Pollution Team,D2622,Mobile Phones,10.00,O2 (UK) Ltd,Mobile Phones,2022162,202010
Rother District Council,13/11/2020,041ENVIRON,Environmental Services,20265,Pollution Team,D2622,Mobile Phones,10.00,O2 (UK) Ltd,Mobile Phones,2022162,202010
Rother District Council,13/11/2020,041ENVIRON,Environmental Services,20265,Pollution Team,D2622,Mobile Phones,10.00,O2 (UK) Ltd,Mobile Phones,2022162,202010
Rother District Council,13/11/2020,041ENVIRON,Environmental Services,20265,Pollution Team,D2622,Mobile Phones,10.00,O2 (UK) Ltd,Mobile Phones,2022162,202010
Rother District Council,13/11/2020,041ENVIRON,Environmental Services,20265,Pollution Team,D2622,Mobile Phones,10.00,O2 (UK) Ltd,Mobile Phones,2022162,202010
Rother District Council,13/11/2020,041ENVIRON,Environmental Services,20265,Pollution Team,D2622,Mobile Phones,10.00,O2 (UK) Ltd,Mobile Phones,2022162,202010
Rother District Council,13/11/2020,041ENVIRON,Environmental Services,20265,Pollution Team,D2622,Mobile Phones,10.00,O2 (UK) Ltd,Mobile Phones,2022162,202010
Rother District Council,13/11/2020,041ENVIRON,Environmental Services,20265,Pollution Team,D2622,Mobile Phones,10.00,O2 (UK) Ltd,Mobile Phones,2022162,202010
Rother District Council,13/11/2020,041ENVIRON,Environmental Services,20265,Pollution Team,D2622,Mobile Phones,10.00,O2 (UK) Ltd,Mobile Phones,2022162,202010
Rother District Council,13/11/2020,041ENVIRON,Environmental Services,20265,Pollution Team,D2622,Mobile Phones,10.00,O2 (UK) Ltd,Mobile Phones,2022162,202010
Rother District Council,13/11/2020,041ENVIRON,Environmental Services,20265,Pollution Team,D2622,Mobile Phones,10.00,O2 (UK) Ltd,Mobile Phones,2022162,202010
Rother District Council,13/11/2020,041ENVIRON,Environmental Services,20265,Pollution Team,D2622,Mobile Phones,10.00,O2 (UK) Ltd,Mobile Phones,2022162,202010
Rother District Council,13/11/2020,041ENVIRON,Environmental Services,20265,Pollution Team,D2622,Mobile Phones,10.00,O2 (UK) Ltd,Mobile Phones,2022162,202010
Rother District Council,13/11/2020,091HOUSING,Housing and Community Services,20120,Neighbourhood Services,D2622,Mobile Phones,10.00,O2 (UK) Ltd,Mobile Phones,2022149,202010
Rother District Council,13/11/2020,091HOUSING,Housing and Community Services,20120,Neighbourhood Services,D2622,Mobile Phones,10.00,O2 (UK) Ltd,Mobile Phones,2022149,202010
Rother District Council,13/11/2020,091HOUSING,Housing and Community Services,20120,Neighbourhood Services,D2622,Mobile Phones,10.00,O2 (UK) Ltd,Mobile Phones,2022149,202010
Rother District Council,13/11/2020,091HOUSING,Housing and Community Services,20120,Neighbourhood Services,D2622,Mobile Phones,10.00,O2 (UK) Ltd,Mobile Phones,2022149,202010
Rother District Council,13/11/2020,091HOUSING,Housing and Community Services,20120,Neighbourhood Services,D2622,Mobile Phones,10.00,O2 (UK) Ltd,Mobile Phones,2022149,202010
Rother District Council,13/11/2020,091HOUSING,Housing and Community Services,20120,Neighbourhood Services,D2622,Mobile Phones,10.00,O2 (UK) Ltd,Mobile Phones,2022149,202010
Rother District Council,13/11/2020,091HOUSING,Housing and Community Services,20109,Sports Development,D2622,Mobile Phones,10.00,O2 (UK) Ltd,Mobile Phones,2022149,202010
Rother District Council,13/11/2020,091HOUSING,Housing and Community Services,20120,Neighbourhood Services,D2622,Mobile Phones,10.00,O2 (UK) Ltd,Mobile Phones,2022149,202010
Rother District Council,13/11/2020,091HOUSING,Housing and Community Services,20120,Neighbourhood Services,D2622,Mobile Phones,10.00,O2 (UK) Ltd,Mobile Phones,2022149,202010
Rother District Council,13/11/2020,091HOUSING,Housing and Community Services,20120,Neighbourhood Services,D2622,Mobile Phones,10.00,O2 (UK) Ltd,Mobile Phones,2022149,202010
Rother District Council,13/11/2020,091HOUSING,Housing and Community Services,20120,Neighbourhood Services,D2622,Mobile Phones,10.00,O2 (UK) Ltd,Mobile Phones,2022149,202010
Rother District Council,13/11/2020,091HOUSING,Housing and Community Services,20120,Neighbourhood Services,D2622,Mobile Phones,10.00,O2 (UK) Ltd,Mobile Phones,2022149,202010
Rother District Council,13/11/2020,091HOUSING,Housing and Community Services,20120,Neighbourhood Services,D2622,Mobile Phones,10.00,O2 (UK) Ltd,Mobile Phones,2022149,202010
Rother District Council,13/11/2020,091HOUSING,Housing and Community Services,20120,Neighbourhood Services,D2622,Mobile Phones,10.00,O2 (UK) Ltd,Mobile Phones,2022149,202010
Rother District Council,13/11/2020,091HOUSING,Housing and Community Services,20120,Neighbourhood Services,D2622,Mobile Phones,36.20,O2 (UK) Ltd,Mobile Phones,2022149,202010
Rother District Council,13/11/2020,091HOUSING,Housing and Community Services,20120,Neighbourhood Services,D2622,Mobile Phones,10.00,O2 (UK) Ltd,Mobile Phones,2022149,202010
Rother District Council,13/11/2020,091HOUSING,Housing and Community Services,20120,Neighbourhood Services,D2622,Mobile Phones,10.00,O2 (UK) Ltd,Mobile Phones,2022149,202010
Rother District Council,13/11/2020,091HOUSING,Housing and Community Services,20120,Neighbourhood Services,D2622,Mobile Phones,10.00,O2 (UK) Ltd,Mobile Phones,2022149,202010
Rother District Council,13/11/2020,091HOUSING,Housing and Community Services,20120,Neighbourhood Services,D2622,Mobile Phones,10.00,O2 (UK) Ltd,Mobile Phones,2022149,202010
Rother District Council,13/11/2020,091HOUSING,Housing and Community Services,20120,Neighbourhood Services,D2622,Mobile Phones,10.00,O2 (UK) Ltd,Mobile Phones,2022149,202010
Rother District Council,13/11/2020,091HOUSING,Housing and Community Services,20120,Neighbourhood Services,D2622,Mobile Phones,10.00,O2 (UK) Ltd,Mobile Phones,2022149,202010
Rother District Council,13/11/2020,091HOUSING,Housing and Community Services,20120,Neighbourhood Services,D2622,Mobile Phones,13.50,O2 (UK) Ltd,Mobile Phones,2022149,202010
Rother District Council,13/11/2020,091HOUSING,Housing and Community Services,20120,Neighbourhood Services,D2622,Mobile Phones,10.00,O2 (UK) Ltd,Mobile Phones,2022149,202010
Rother District Council,13/11/2020,091HOUSING,Housing and Community Services,20120,Neighbourhood Services,D2622,Mobile Phones,10.00,O2 (UK) Ltd,Mobile Phones,2022149,202010
Rother District Council,13/11/2020,091HOUSING,Housing and Community Services,20120,Neighbourhood Services,D2622,Mobile Phones,10.00,O2 (UK) Ltd,Mobile Phones,2022149,202010
Rother District Council,13/11/2020,091HOUSING,Housing and Community Services,20120,Neighbourhood Services,D2622,Mobile Phones,10.00,O2 (UK) Ltd,Mobile Phones,2022149,202010
Rother District Council,13/11/2020,091HOUSING,Housing and Community Services,20120,Neighbourhood Services,D2622,Mobile Phones,10.00,O2 (UK) Ltd,Mobile Phones,2022149,202010
Rother District Council,13/11/2020,091HOUSING,Housing and Community Services,20120,Neighbourhood Services,D2622,Mobile Phones,128.14,O2 (UK) Ltd,Mobile Phones,2022149,202010
Rother District Council,13/11/2020,091HOUSING,Housing and Community Services,20120,Neighbourhood Services,D2622,Mobile Phones,10.90,O2 (UK) Ltd,Mobile Phones,2022149,202010
Rother District Council,13/11/2020,091HOUSING,Housing and Community Services,20120,Neighbourhood Services,D2622,Mobile Phones,28.45,O2 (UK) Ltd,Mobile Phones,2022149,202010
Rother District Council,13/11/2020,091HOUSING,Housing and Community Services,20120,Neighbourhood Services,D2622,Mobile Phones,10.00,O2 (UK) Ltd,Mobile Phones,2022149,202010
Rother District Council,13/11/2020,081ACQUISIT,"Acquisitions, Transformation and Regeneration",20243,Business Improvement,D2622,Mobile Phones,10.00,O2 (UK) Ltd,Mobile Phones,2022150,202010
Rother District Council,13/11/2020,081ACQUISIT,"Acquisitions, Transformation and Regeneration",20121,Programme and Policy Office,D2622,Mobile Phones,10.00,O2 (UK) Ltd,Mobile Phones,2022150,202010
Rother District Council,13/11/2020,081ACQUISIT,"Acquisitions, Transformation and Regeneration",20272,Major Projects unit,D2622,Mobile Phones,10.00,O2 (UK) Ltd,Mobile Phones,2022150,202010
Rother District Council,13/11/2020,081ACQUISIT,"Acquisitions, Transformation and Regeneration",20122,Economic Development,D2622,Mobile Phones,10.00,O2 (UK) Ltd,Mobile Phones,2022150,202010
Rother District Council,13/11/2020,081ACQUISIT,"Acquisitions, Transformation and Regeneration",20122,Economic Development,D2622,Mobile Phones,10.00,O2 (UK) Ltd,Mobile Phones,2022150,202010
Rother District Council,13/11/2020,081ACQUISIT,"Acquisitions, Transformation and Regeneration",20122,Economic Development,D2622,Mobile Phones,10.00,O2 (UK) Ltd,Mobile Phones,2022150,202010
Rother District Council,13/11/2020,081ACQUISIT,"Acquisitions, Transformation and Regeneration",20122,Economic Development,D2622,Mobile Phones,10.00,O2 (UK) Ltd,Mobile Phones,2022150,202010
Rother District Council,13/11/2020,081ACQUISIT,"Acquisitions, Transformation and Regeneration",20122,Economic Development,D2622,Mobile Phones,10.06,O2 (UK) Ltd,Mobile Phones,2022150,202010
Rother District Council,13/11/2020,081ACQUISIT,"Acquisitions, Transformation and Regeneration",20122,Economic Development,D2622,Mobile Phones,10.00,O2 (UK) Ltd,Mobile Phones,2022150,202010
Rother District Council,13/11/2020,081ACQUISIT,"Acquisitions, Transformation and Regeneration",20263,"Head of Service Acquisitions, Transformation and Regeneration",D2622,Mobile Phones,10.00,O2 (UK) Ltd,Mobile Phones,2022150,202010
Rother District Council,13/11/2020,081ACQUISIT,"Acquisitions, Transformation and Regeneration",20272,Major Projects unit,D2622,Mobile Phones,10.00,O2 (UK) Ltd,Mobile Phones,2022150,202010
Rother District Council,13/11/2020,081ACQUISIT,"Acquisitions, Transformation and Regeneration",20243,Business Improvement,D2622,Mobile Phones,10.00,O2 (UK) Ltd,Mobile Phones,2022150,202010
Rother District Council,13/11/2020,081ACQUISIT,"Acquisitions, Transformation and Regeneration",20149,Residual Housing Land,D2622,Mobile Phones,10.00,O2 (UK) Ltd,Mobile Phones,2022149,202010
Rother District Council,13/11/2020,091HOUSING,Housing and Community Services,20120,Neighbourhood Services,D2622,Mobile Phones,10.00,O2 (UK) Ltd,Mobile Phones,2022149,202010
Rother District Council,13/11/2020,071STRAT,Strategy and Planning,20248,"Complaints,Compliance,Enforce",D2622,Mobile Phones,10.00,O2 (UK) Ltd,Mobile Phones,2022153,202010
Rother District Council,13/11/2020,071STRAT,Strategy and Planning,20248,"Complaints,Compliance,Enforce",D2622,Mobile Phones,10.00,O2 (UK) Ltd,Mobile Phones,2022153,202010
Rother District Council,13/11/2020,071STRAT,Strategy and Planning,20248,"Complaints,Compliance,Enforce",D2622,Mobile Phones,21.85,O2 (UK) Ltd,Mobile Phones,2022153,202010
Rother District Council,13/11/2020,091HOUSING,Housing and Community Services,20262,Head of Service Housing and Community Services,D2622,Mobile Phones,10.00,O2 (UK) Ltd,Mobile Phones,2022149,202010
Rother District Council,13/11/2020,101RESOURCES,Resources,20226,Service Manager Finance and Welfare,D2622,Mobile Phones,10.00,O2 (UK) Ltd,Mobile Phones,2022152,202010
Rother District Council,13/11/2020,091HOUSING,Housing and Community Services,20204,Housing Administration Account,D2622,Mobile Phones,10.00,O2 (UK) Ltd,Mobile Phones,2022149,202010
Rother District Council,13/11/2020,091HOUSING,Housing and Community Services,20204,Housing Administration Account,D2622,Mobile Phones,10.00,O2 (UK) Ltd,Mobile Phones,2022149,202010
Rother District Council,13/11/2020,091HOUSING,Housing and Community Services,20204,Housing Administration Account,D2622,Mobile Phones,10.00,O2 (UK) Ltd,Mobile Phones,2022149,202010
Rother District Council,13/11/2020,091HOUSING,Housing and Community Services,20204,Housing Administration Account,D2622,Mobile Phones,10.00,O2 (UK) Ltd,Mobile Phones,2022149,202010
Rother District Council,13/11/2020,091HOUSING,Housing and Community Services,20204,Housing Administration Account,D2622,Mobile Phones,10.00,O2 (UK) Ltd,Mobile Phones,2022149,202010
Rother District Council,13/11/2020,091HOUSING,Housing and Community Services,20204,Housing Administration Account,D2622,Mobile Phones,10.00,O2 (UK) Ltd,Mobile Phones,2022149,202010
Rother District Council,13/11/2020,091HOUSING,Housing and Community Services,20264,Property Maintenance Team,D2622,Mobile Phones,39.14,O2 (UK) Ltd,Mobile Phones,2022149,202010
Rother District Council,13/11/2020,091HOUSING,Housing and Community Services,20204,Housing Administration Account,D2622,Mobile Phones,10.00,O2 (UK) Ltd,Mobile Phones,2022149,202010
Rother District Council,13/11/2020,091HOUSING,Housing and Community Services,20204,Housing Administration Account,D2622,Mobile Phones,10.00,O2 (UK) Ltd,Mobile Phones,2022149,202010
Rother District Council,13/11/2020,091HOUSING,Housing and Community Services,20204,Housing Administration Account,D2622,Mobile Phones,10.00,O2 (UK) Ltd,Mobile Phones,2022149,202010
Rother District Council,13/11/2020,091HOUSING,Housing and Community Services,20204,Housing Administration Account,D2622,Mobile Phones,10.00,O2 (UK) Ltd,Mobile Phones,2022149,202010
Rother District Council,13/11/2020,091HOUSING,Housing and Community Services,20204,Housing Administration Account,D2622,Mobile Phones,10.00,O2 (UK) Ltd,Mobile Phones,2022149,202010
Rother District Council,13/11/2020,091HOUSING,Housing and Community Services,20204,Housing Administration Account,D2622,Mobile Phones,10.00,O2 (UK) Ltd,Mobile Phones,2022149,202010
Rother District Council,13/11/2020,091HOUSING,Housing and Community Services,20204,Housing Administration Account,D2622,Mobile Phones,10.00,O2 (UK) Ltd,Mobile Phones,2022149,202010
Rother District Council,13/11/2020,091HOUSING,Housing and Community Services,20204,Housing Administration Account,D2622,Mobile Phones,10.00,O2 (UK) Ltd,Mobile Phones,2022149,202010
Rother District Council,13/11/2020,091HOUSING,Housing and Community Services,20204,Housing Administration Account,D2622,Mobile Phones,10.06,O2 (UK) Ltd,Mobile Phones,2022149,202010
Rother District Council,13/11/2020,091HOUSING,Housing and Community Services,20204,Housing Administration Account,D2622,Mobile Phones,10.00,O2 (UK) Ltd,Mobile Phones,2022149,202010
Rother District Council,13/11/2020,091HOUSING,Housing and Community Services,20264,Property Maintenance Team,D2622,Mobile Phones,10.00,O2 (UK) Ltd,Mobile Phones,2022149,202010
Rother District Council,13/11/2020,091HOUSING,Housing and Community Services,20264,Property Maintenance Team,D2622,Mobile Phones,27.91,O2 (UK) Ltd,Mobile Phones,2022149,202010
Rother District Council,13/11/2020,091HOUSING,Housing and Community Services,20264,Property Maintenance Team,D2622,Mobile Phones,244.15,O2 (UK) Ltd,Mobile Phones,2022149,202010
Rother District Council,13/11/2020,091HOUSING,Housing and Community Services,20264,Property Maintenance Team,D2622,Mobile Phones,10.00,O2 (UK) Ltd,Mobile Phones,2022149,202010
Rother District Council,13/11/2020,091HOUSING,Housing and Community Services,20264,Property Maintenance Team,D2622,Mobile Phones,10.00,O2 (UK) Ltd,Mobile Phones,2022149,202010
Rother District Council,13/11/2020,091HOUSING,Housing and Community Services,20264,Property Maintenance Team,D2622,Mobile Phones,10.00,O2 (UK) Ltd,Mobile Phones,2022149,202010
Rother District Council,13/11/2020,091HOUSING,Housing and Community Services,20236,Customer Services and Development,D2622,Mobile Phones,15.00,O2 (UK) Ltd,Mobile Phones,2022149,202010
Rother District Council,13/11/2020,091HOUSING,Housing and Community Services,20204,Housing Administration Account,D2622,Mobile Phones,10.00,O2 (UK) Ltd,Mobile Phones,2022149,202010
Rother District Council,13/11/2020,091HOUSING,Housing and Community Services,20204,Housing Administration Account,D2622,Mobile Phones,10.00,O2 (UK) Ltd,Mobile Phones,2022149,202010
Rother District Council,13/11/2020,091HOUSING,Housing and Community Services,20204,Housing Administration Account,D2622,Mobile Phones,10.00,O2 (UK) Ltd,Mobile Phones,2022149,202010
Rother District Council,13/11/2020,091HOUSING,Housing and Community Services,20204,Housing Administration Account,D2622,Mobile Phones,10.00,O2 (UK) Ltd,Mobile Phones,2022149,202010
Rother District Council,13/11/2020,091HOUSING,Housing and Community Services,20264,Property Maintenance Team,D2622,Mobile Phones,10.00,O2 (UK) Ltd,Mobile Phones,2022149,202010
Rother District Council,13/11/2020,101RESOURCES,Resources,20222,Accountancy,D2622,Mobile Phones,10.00,O2 (UK) Ltd,Mobile Phones,2022151,202011
Rother District Council,13/11/2020,101RESOURCES,Resources,20222,Accountancy,D2622,Mobile Phones,10.00,O2 (UK) Ltd,Mobile Phones,2022151,202011
Rother District Council,13/11/2020,101RESOURCES,Resources,20239,Computer Services,D2622,Mobile Phones,10.00,O2 (UK) Ltd,Mobile Phones,2022151,202011
Rother District Council,13/11/2020,101RESOURCES,Resources,20239,Computer Services,D2622,Mobile Phones,10.00,O2 (UK) Ltd,Mobile Phones,2022151,202011
Rother District Council,13/11/2020,101RESOURCES,Resources,20239,Computer Services,D2622,Mobile Phones,10.00,O2 (UK) Ltd,Mobile Phones,2022151,202011
Rother District Council,13/11/2020,101RESOURCES,Resources,20239,Computer Services,D2622,Mobile Phones,10.00,O2 (UK) Ltd,Mobile Phones,2022151,202011
Rother District Council,13/11/2020,101RESOURCES,Resources,20239,Computer Services,D2622,Mobile Phones,10.00,O2 (UK) Ltd,Mobile Phones,2022151,202011
Rother District Council,13/11/2020,101RESOURCES,Resources,20239,Computer Services,D2622,Mobile Phones,10.00,O2 (UK) Ltd,Mobile Phones,2022151,202011
Rother District Council,13/11/2020,101RESOURCES,Resources,20215,Revenue and Benefits,D2622,Mobile Phones,10.00,O2 (UK) Ltd,Mobile Phones,2022151,202011
Rother District Council,13/11/2020,101RESOURCES,Resources,20215,Revenue and Benefits,D2622,Mobile Phones,10.00,O2 (UK) Ltd,Mobile Phones,2022151,202011
Rother District Council,13/11/2020,101RESOURCES,Resources,20215,Revenue and Benefits,D2622,Mobile Phones,-1.64,O2 (UK) Ltd,Mobile Phones,2022151,202011
Rother District Council,13/11/2020,101RESOURCES,Resources,20215,Revenue and Benefits,D2622,Mobile Phones,10.00,O2 (UK) Ltd,Mobile Phones,2022151,202011
Rother District Council,13/11/2020,101RESOURCES,Resources,20215,Revenue and Benefits,D2622,Mobile Phones,10.00,O2 (UK) Ltd,Mobile Phones,2022151,202011
Rother District Council,13/11/2020,101RESOURCES,Resources,20215,Revenue and Benefits,D2622,Mobile Phones,10.00,O2 (UK) Ltd,Mobile Phones,2022151,202011
Rother District Council,13/11/2020,101RESOURCES,Resources,20215,Revenue and Benefits,D2622,Mobile Phones,10.00,O2 (UK) Ltd,Mobile Phones,2022151,202011
Rother District Council,13/11/2020,101RESOURCES,Resources,20215,Revenue and Benefits,D2622,Mobile Phones,10.00,O2 (UK) Ltd,Mobile Phones,2022151,202011
Rother District Council,15/11/2020,041ENVIRON,Environmental Services,32136,EH Pest Control R + W Partnership,C1101,Vehicle Repairs & Servicing,1.90,Allstar Business Solutions,Derv - Fuel Service fee payable on fuel cards,2022064,202010
Rother District Council,15/11/2020,091HOUSING,Housing and Community Services,20107,Camber Beach & Foreshore,C1101,Vehicle Repairs & Servicing,1.90,Allstar Business Solutions,Derv - Fuel Service fee payable on fuel cards,2022064,202010
Rother District Council,15/11/2020,091HOUSING,Housing and Community Services,20145,Maintenance Services,C1101,Vehicle Repairs & Servicing,3.80,Allstar Business Solutions,Derv - Fuel Service fee payable on fuel cards,2022064,202010
Rother District Council,15/11/2020,101RESOURCES,Resources,20242,Communications-Phones,D2621,Telephones,577.00,TalkTalk Communications Ltd T/A TalkTalk Business,Telephones - KCOM Smartnumber Charges,2022136,202011
Rother District Council,15/11/2020,041ENVIRON,Environmental Services,32136,EH Pest Control R + W Partnership,C1101,Vehicle Repairs & Servicing,37.50,Allstar Business Solutions,Vehicle Repairs & Servicing,2022064,202010
Rother District Council,15/11/2020,091HOUSING,Housing and Community Services,20107,Camber Beach & Foreshore,C1101,Vehicle Repairs & Servicing,54.62,Allstar Business Solutions,Vehicle Repairs & Servicing,2022064,202010
Rother District Council,15/11/2020,091HOUSING,Housing and Community Services,20145,Maintenance Services,C1101,Vehicle Repairs & Servicing,50.83,Allstar Business Solutions,Vehicle Repairs & Servicing,2022064,202010
Rother District Council,15/11/2020,091HOUSING,Housing and Community Services,20145,Maintenance Services,C1101,Vehicle Repairs & Servicing,51.67,Allstar Business Solutions,Vehicle Repairs & Servicing,2022064,202010
Rother District Council,15/11/2020,091HOUSING,Housing and Community Services,20145,Maintenance Services,C1101,Vehicle Repairs & Servicing,60.81,Allstar Business Solutions,Vehicle Repairs & Servicing,2022064,202010
Rother District Council,15/11/2020,091HOUSING,Housing and Community Services,20145,Maintenance Services,C1101,Vehicle Repairs & Servicing,63.83,Allstar Business Solutions,Vehicle Repairs & Servicing,2022064,202010
Rother District Council,15/11/2020,091HOUSING,Housing and Community Services,20145,Maintenance Services,C1101,Vehicle Repairs & Servicing,38.45,Allstar Business Solutions,Vehicle Repairs & Servicing,2022064,202010
Rother District Council,17/11/2020,101RESOURCES,Resources,20239,Computer Services,D2635,Computer Licences,488.66,Civica UK Ltd,Computer Licences - Website Management,2023721,202012
Rother District Council,17/11/2020,101RESOURCES,Resources,20217,Reliefs & Benefits-Council Tax Benefit,D2513,Hired and Contracted services,"4,750.00",Hastings Advice and  Representation Centre (HARC),Grants made - SLA Contribution,2021970,202010
Rother District Council,20/11/2020,041ENVIRON,Environmental Services,32142,EH Taxi and Private Hire Licenses R + W Partnership,D2513,Hired and Contracted services,40.00,uCheck,Hired and contracted services - Service fee paid,2022083,202010
Rother District Council,20/11/2020,041ENVIRON,Environmental Services,32142,EH Taxi and Private Hire Licenses R + W Partnership,D2513,Hired and Contracted services,8.67,uCheck,Hired and contracted services - Service fee paid,2022083,202010
Rother District Council,23/11/2020,091HOUSING,Housing and Community Services,20145,Maintenance Services,D2513,Hired and Contracted services,85.00,Amstech Inspections & Testing Ltd,Hired and contracted services - Service fee paid,2022324,202011
Rother District Council,23/11/2020,091HOUSING,Housing and Community Services,20145,Maintenance Services,D2513,Hired and Contracted services,85.00,Amstech Inspections & Testing Ltd,Hired and contracted services - Service fee paid,2022325,202011
Rother District Council,23/11/2020,091HOUSING,Housing and Community Services,20145,Maintenance Services,D2513,Hired and Contracted services,85.00,Amstech Inspections & Testing Ltd,Hired and contracted services - Service fee paid,2022326,202011
Rother District Council,23/11/2020,091HOUSING,Housing and Community Services,20145,Maintenance Services,D2513,Hired and Contracted services,85.00,Amstech Inspections & Testing Ltd,Hired and contracted services - Service fee paid,2022327,202011
Rother District Council,23/11/2020,091HOUSING,Housing and Community Services,20145,Maintenance Services,D2513,Hired and Contracted services,125.00,Amstech Inspections & Testing Ltd,Hired and contracted services - Service fee paid,2022328,202011
Rother District Council,23/11/2020,091HOUSING,Housing and Community Services,20145,Maintenance Services,D2513,Hired and Contracted services,85.00,Amstech Inspections & Testing Ltd,Hired and contracted services - Service fee paid,2022329,202011
Rother District Council,23/11/2020,091HOUSING,Housing and Community Services,20145,Maintenance Services,D2513,Hired and Contracted services,85.00,Amstech Inspections & Testing Ltd,Hired and contracted services - Service fee paid,2022330,202011
Rother District Council,23/11/2020,091HOUSING,Housing and Community Services,20145,Maintenance Services,D2513,Hired and Contracted services,85.00,Amstech Inspections & Testing Ltd,Hired and contracted services - Service fee paid,2022331,202011
Rother District Council,23/11/2020,101RESOURCES,Resources,20239,Computer Services,D2633,Computer Equipment,"2,412.50",Apple Retail UK Ltd,Computer Equipment - New - Computer Hardware,2023182,202012
Rother District Council,23/11/2020,091HOUSING,Housing and Community Services,20137,Car Parks,B1100,Repairs to Premises,23.73,Graham,Repairs to Premises - Purchase of Materials - Build Maint,2021280,202010
Rother District Council,24/11/2020,041ENVIRON,Environmental Services,32134,EH Pollution R + W Partnership,D2513,Hired and Contracted services,"1,650.00",REDACTED PERSONAL DATA,Hired and contracted services - Parks-Public Health Burials,2022425,202011
Rother District Council,25/11/2020,101RESOURCES,Resources,20216,Cost Of Collection,D2509,Consultants and Other Services,"1,050.00",Airey Consultancy Services Ltd,Consultants and other services - Consultants Fees,2021281,202010
Rother District Council,25/11/2020,041ENVIRON,Environmental Services,32134,EH Pollution R + W Partnership,D2513,Hired and Contracted services,27.00,H M Land Registry,Hired and contracted services - Env H-Land Registry,2022133,202010
Rother District Council,25/11/2020,071STRAT,Strategy and Planning,20258,BC Dangerous Structures H+R Partnership,D2513,Hired and Contracted services,3.00,H M Land Registry,Hired and contracted services - Env H-Land Registry,2022133,202010
Rother District Council,25/11/2020,091HOUSING,Housing and Community Services,20114,Bexhill Parks & Open Spaces,D2923,Grants made,"1,000.00",Highwoods Preservation Society,Grants made - No VAT,2022638,202011
Rother District Council,25/11/2020,101RESOURCES,Resources,20216,Cost Of Collection,D2513,Hired and Contracted services,18.00,H M Land Registry,Hired and contracted services - Council Tax-Land Registry Enquiries,2022133,202010
Rother District Council,25/11/2020,071STRAT,Strategy and Planning,20246,Planning Applications,D2513,Hired and Contracted services,15.00,H M Land Registry,Hired and contracted services - Land Registry-Planning,2022133,202010
Rother District Council,25/11/2020,091HOUSING,Housing and Community Services,20132,Street & Beach Cleansing,D1201,Equipment & Materials,52.46,Saint-Gobain Building Distribution Ltd t/a Jewson,Repairs to Premises - Purchase of Materials - Build Maint,2021305,202010
Rother District Council,25/11/2020,091HOUSING,Housing and Community Services,20108,Bexhill Promenade & Foreshore,B1100,Repairs to Premises,5.41,Saint-Gobain Building Distribution Ltd t/a Jewson,Repairs to Premises - Purchase of Materials - Build Maint,2021306,202010
Rother District Council,26/11/2020,091HOUSING,Housing and Community Services,20145,Maintenance Services,D2513,Hired and Contracted services,85.00,Amstech Inspections & Testing Ltd,Hired and contracted services - Service fee paid,2022333,202011
Rother District Council,26/11/2020,091HOUSING,Housing and Community Services,20145,Maintenance Services,D2513,Hired and Contracted services,85.00,Amstech Inspections & Testing Ltd,Hired and contracted services - Service fee paid,2022334,202011
Rother District Council,26/11/2020,091HOUSING,Housing and Community Services,20145,Maintenance Services,D2513,Hired and Contracted services,85.00,Amstech Inspections & Testing Ltd,Hired and contracted services - Service fee paid,2022335,202011
Rother District Council,26/11/2020,091HOUSING,Housing and Community Services,20145,Maintenance Services,D2513,Hired and Contracted services,85.00,Amstech Inspections & Testing Ltd,Hired and contracted services - Service fee paid,2022336,202011
Rother District Council,26/11/2020,091HOUSING,Housing and Community Services,20145,Maintenance Services,D2513,Hired and Contracted services,85.00,Amstech Inspections & Testing Ltd,Hired and contracted services - Service fee paid,2022337,202011
Rother District Council,26/11/2020,091HOUSING,Housing and Community Services,20145,Maintenance Services,D2513,Hired and Contracted services,85.00,Amstech Inspections & Testing Ltd,Hired and contracted services - Service fee paid,2022332,202011
Rother District Council,27/11/2020,091HOUSING,Housing and Community Services,20145,Maintenance Services,D2513,Hired and Contracted services,85.00,Amstech Inspections & Testing Ltd,Hired and contracted services - Service fee paid,2022338,202011
Rother District Council,27/11/2020,091HOUSING,Housing and Community Services,20145,Maintenance Services,D2513,Hired and Contracted services,85.00,Amstech Inspections & Testing Ltd,Hired and contracted services - Service fee paid,2022339,202011
Rother District Council,27/11/2020,101RESOURCES,Resources,20242,Communications-Phones,D2621,Telephones,287.08,BT British Telecommunications plc,Telephones - BT-Rental-General,2021242,202010
Rother District Council,27/11/2020,101RESOURCES,Resources,20242,Communications-Phones,D2621,Telephones,40.00,BT British Telecommunications plc,Telephones - BT-Rental-General,2021242,202010
Rother District Council,27/11/2020,041ENVIRON,Environmental Services,32144,EH Environmental Services Admin R + W Partnership,D2513,Hired and Contracted services,3.00,H M Land Registry,Hired and contracted services - Env H-Land Registry,2022128,202010
Rother District Council,27/11/2020,071STRAT,Strategy and Planning,20258,BC Dangerous Structures H+R Partnership,D2513,Hired and Contracted services,3.00,H M Land Registry,Hired and contracted services - Env H-Land Registry,2022128,202010
Rother District Council,27/11/2020,031RESOURCES,Chief Executive & Corporate Core,20176,Administrative Offices - Print Room,B2201,Electricity,-423.62,Laser Energy Buying Group (Kent County Council Commercial Services),Electricity - Electricity Charges,2022929,202012
Rother District Council,27/11/2020,031RESOURCES,Chief Executive & Corporate Core,20176,Administrative Offices - Print Room,B2201,Electricity,229.96,Laser Energy Buying Group (Kent County Council Commercial Services),Electricity - Electricity Charges,2022929,202012
Rother District Council,27/11/2020,031RESOURCES,Chief Executive & Corporate Core,20176,Administrative Offices - Print Room,B2201,Electricity,77.13,Laser Energy Buying Group (Kent County Council Commercial Services),Electricity - Electricity Charges,2022929,202012
Rother District Council,27/11/2020,031RESOURCES,Chief Executive & Corporate Core,20175,Administrative Offices - T.H. Annex (NOT CHP),B2202,Gas,91.61,Laser Energy Buying Group (Kent County Council Commercial Services),Gas - Gas Charges,2022930,202012
Rother District Council,27/11/2020,031RESOURCES,Chief Executive & Corporate Core,20175,Administrative Offices - T.H. Annex (NOT CHP),B2202,Gas,91.33,Laser Energy Buying Group (Kent County Council Commercial Services),Gas - Gas Charges,2022930,202012
Rother District Council,27/11/2020,031RESOURCES,Chief Executive & Corporate Core,20175,Administrative Offices - T.H. Annex (NOT CHP),B2202,Gas,87.56,Laser Energy Buying Group (Kent County Council Commercial Services),Gas - Gas Charges,2022930,202012
Rother District Council,27/11/2020,031RESOURCES,Chief Executive & Corporate Core,20175,Administrative Offices - T.H. Annex (NOT CHP),B2202,Gas,84.59,Laser Energy Buying Group (Kent County Council Commercial Services),Gas - Gas Charges,2022930,202012
Rother District Council,27/11/2020,031RESOURCES,Chief Executive & Corporate Core,20175,Administrative Offices - T.H. Annex (NOT CHP),B2202,Gas,85.13,Laser Energy Buying Group (Kent County Council Commercial Services),Gas - Gas Charges,2022930,202012
Rother District Council,27/11/2020,031RESOURCES,Chief Executive & Corporate Core,20175,Administrative Offices - T.H. Annex (NOT CHP),B2202,Gas,-175.71,Laser Energy Buying Group (Kent County Council Commercial Services),Gas - Gas Charges,2022930,202012
Rother District Council,27/11/2020,031RESOURCES,Chief Executive & Corporate Core,20175,Administrative Offices - T.H. Annex (NOT CHP),B2202,Gas,-104.11,Laser Energy Buying Group (Kent County Council Commercial Services),Gas - Gas Charges,2022930,202012
Rother District Council,27/11/2020,031RESOURCES,Chief Executive & Corporate Core,20175,Administrative Offices - T.H. Annex (NOT CHP),B2202,Gas,-111.87,Laser Energy Buying Group (Kent County Council Commercial Services),Gas - Gas Charges,2022930,202012
Rother District Council,27/11/2020,031RESOURCES,Chief Executive & Corporate Core,20175,Administrative Offices - T.H. Annex (NOT CHP),B2202,Gas,-101.28,Laser Energy Buying Group (Kent County Council Commercial Services),Gas - Gas Charges,2022930,202012
Rother District Council,27/11/2020,031RESOURCES,Chief Executive & Corporate Core,20175,Administrative Offices - T.H. Annex (NOT CHP),B2202,Gas,-125.74,Laser Energy Buying Group (Kent County Council Commercial Services),Gas - Gas Charges,2022930,202012
Rother District Council,27/11/2020,031RESOURCES,Chief Executive & Corporate Core,20175,Administrative Offices - T.H. Annex (NOT CHP),B2202,Gas,90.31,Laser Energy Buying Group (Kent County Council Commercial Services),Gas - Gas Charges,2022930,202012
Rother District Council,27/11/2020,031RESOURCES,Chief Executive & Corporate Core,20173,Administrative Offices - Town Hall,B2202,Gas,806.02,Laser Energy Buying Group (Kent County Council Commercial Services),Gas - Gas Charges,2022930,202012
Rother District Council,27/11/2020,031RESOURCES,Chief Executive & Corporate Core,20176,Administrative Offices - Print Room,B2202,Gas,75.03,Laser Energy Buying Group (Kent County Council Commercial Services),Gas - Gas Charges,2022930,202012
Rother District Council,27/11/2020,081ACQUISIT,"Acquisitions, Transformation and Regeneration",20154,Committee Property Account,B2202,Gas,11.47,Laser Energy Buying Group (Kent County Council Commercial Services),Gas - Gas Charges,2022930,202012
Rother District Council,27/11/2020,101RESOURCES,Resources,20216,Cost Of Collection,D2513,Hired and Contracted services,27.00,H M Land Registry,Hired and contracted services - Council Tax-Land Registry Enquiries,2022128,202010
Rother District Council,27/11/2020,071STRAT,Strategy and Planning,20246,Planning Applications,D2513,Hired and Contracted services,6.00,H M Land Registry,Hired and contracted services - Land Registry-Planning,2022128,202010
Rother District Council,29/11/2020,101RESOURCES,Resources,20222,Accountancy,D2636,Computer Software,"3,631.11",Integra Associates Ltd,Computer Software,2021421,202010
Rother District Council,30/11/2020,091HOUSING,Housing and Community Services,20145,Maintenance Services,D2513,Hired and Contracted services,85.00,Amstech Inspections & Testing Ltd,Hired and contracted services - Service fee paid,2022345,202011
Rother District Council,30/11/2020,091HOUSING,Housing and Community Services,20145,Maintenance Services,D2513,Hired and Contracted services,85.00,Amstech Inspections & Testing Ltd,Hired and contracted services - Service fee paid,2022346,202011
Rother District Council,30/11/2020,091HOUSING,Housing and Community Services,20145,Maintenance Services,D2513,Hired and Contracted services,85.00,Amstech Inspections & Testing Ltd,Hired and contracted services - Service fee paid,2022347,202011
Rother District Council,30/11/2020,091HOUSING,Housing and Community Services,20145,Maintenance Services,D2513,Hired and Contracted services,85.00,Amstech Inspections & Testing Ltd,Hired and contracted services - Service fee paid,2022343,202011
Rother District Council,30/11/2020,091HOUSING,Housing and Community Services,20145,Maintenance Services,D2513,Hired and Contracted services,85.00,Amstech Inspections & Testing Ltd,Hired and contracted services - Service fee paid,2022344,202011
Rother District Council,30/11/2020,091HOUSING,Housing and Community Services,20145,Maintenance Services,D2513,Hired and Contracted services,125.00,Amstech Inspections & Testing Ltd,Hired and contracted services - Service fee paid,2022340,202011
Rother District Council,30/11/2020,091HOUSING,Housing and Community Services,20145,Maintenance Services,D2513,Hired and Contracted services,85.00,Amstech Inspections & Testing Ltd,Hired and contracted services - Service fee paid,2022341,202011
Rother District Council,30/11/2020,091HOUSING,Housing and Community Services,20145,Maintenance Services,D2513,Hired and Contracted services,85.00,Amstech Inspections & Testing Ltd,Hired and contracted services - Service fee paid,2022342,202011
Rother District Council,30/11/2020,101RESOURCES,Resources,20209,Corporate management,D2513,Hired and Contracted services,925.06,allpay.net Ltd,Hired and contracted services - Allpay Card/Rep/Let Chrg - Vatable,2022057,202010
Rother District Council,30/11/2020,101RESOURCES,Resources,20209,Corporate management,D2513,Hired and Contracted services,17.16,allpay.net Ltd,Hired and contracted services - Allpay Card/Rep/Let Chrg - Vatable,2022058,202010
Rother District Council,30/11/2020,101RESOURCES,Resources,20209,Corporate management,D2513,Hired and Contracted services,29.34,allpay.net Ltd,Hired and contracted services - Allpay Card/Rep/Let Chrg - Vatable,2022055,202010
Rother District Council,30/11/2020,101RESOURCES,Resources,20209,Corporate management,D2513,Hired and Contracted services,10.96,allpay.net Ltd,Hired and contracted services - Allpay Card/Rep/Let Chrg - Vatable,2022056,202010
Rother District Council,30/11/2020,031RESOURCES,Chief Executive & Corporate Core,20171,Human Resources,D2513,Hired and Contracted services,69.49,Computershare Voucher Services,Hired and contracted services - Child Care Voucher Service Charge,2022081,202010
Rother District Council,30/11/2020,031RESOURCES,Chief Executive & Corporate Core,20173,Administrative Offices - Town Hall,B2611,Contract cleaning,30.00,Data Shredding Services Ltd,Third party payment private contractors - Commercial Waste Collection Contract,2023038,202012
Rother District Council,30/11/2020,101RESOURCES,Resources,20216,Cost Of Collection,D2513,Hired and Contracted services,"1,000.08",DSI Billing Services Ltd,Hired and contracted services - DSI Billing Printing,2021185,202010
Rother District Council,30/11/2020,041ENVIRON,Environmental Services,32136,EH Pest Control R + W Partnership,C1104,Derv,3.80,Allstar Business Solutions,Derv - Fuel Service fee payable on fuel cards,2022061,202010
Rother District Council,30/11/2020,041ENVIRON,Environmental Services,32136,EH Pest Control R + W Partnership,C1104,Derv,39.18,Allstar Business Solutions,Derv,2022061,202010
Rother District Council,30/11/2020,041ENVIRON,Environmental Services,32136,EH Pest Control R + W Partnership,C1104,Derv,39.58,Allstar Business Solutions,Derv,2022061,202010
Rother District Council,30/11/2020,091HOUSING,Housing and Community Services,20200,Housing Needs - HB (Housing Benefit),D2514,Accommodation Costs,"1,170.00",LESSHOMELESS LTD,Accommodation Costs,2021924,202010
Rother District Council,30/11/2020,091HOUSING,Housing and Community Services,20145,Maintenance Services,C1104,Derv,50.83,Allstar Business Solutions,Derv,2022061,202010
Rother District Council,30/11/2020,999NOREPORT,Resources,90000,Balance sheet all accounts,T1002,Childcare Vouchers,"1,069.00",Computershare Voucher Services,Childcare Vouchers,2022081,202010
Rother District Council,01/12/2020,101RESOURCES,Resources,20209,Corporate management,D2513,Hired and Contracted services,"1,110.11",Lloyds Bank,Bank Charges,2022069,202010
Rother District Council,01/12/2020,101RESOURCES,Resources,20209,Corporate management,D2513,Hired and Contracted services,2.03,Lloyds Bank,Bank Charges,2022071,202010
Rother District Council,01/12/2020,101RESOURCES,Resources,20209,Corporate management,D2513,Hired and Contracted services,207.77,Lloyds Bank,Bank Charges,2022073,202010
Rother District Council,01/12/2020,101RESOURCES,Resources,20209,Corporate management,D2513,Hired and Contracted services,"2,099.16",Lloyds Bank,Bank Charges,2022074,202010
Rother District Council,01/12/2020,101RESOURCES,Resources,20239,Computer Services,D2631,Computer Equip Maintenance,"9,200.00",Ideal Networks Ltd,Computer Equip Maintenance - Maintenance of Network Equipment,2021872,202010
Rother District Council,01/12/2020,031RESOURCES,Chief Executive & Corporate Core,20276,COVID19 RDC expenditure,D2513,Hired and Contracted services,378.41,Specialist Hygiene Services Ltd,Hired and contracted services - Service fees paid relating to Covid-19,2022155,202010
Rother District Council,01/12/2020,091HOUSING,Housing and Community Services,20107,Camber Beach & Foreshore,D2621,Telephones,50.95,Beaming Ltd,Telephones - Broadband Connection,2022049,202010
Rother District Council,01/12/2020,091HOUSING,Housing and Community Services,20235,Rye Community Help Point,D2621,Telephones,50.95,Beaming Ltd,Telephones - Broadband Connection,2022049,202010
Rother District Council,01/12/2020,091HOUSING,Housing and Community Services,20261,"TA Purchases (prev - 41 Jameson Mews, Bexhill on Sea)",B1100,Repairs to Premises,18.63,Trade UK Account (Screwfix & B&Q),Repairs to Premises - Purchase of Materials - Build Maint,2021129,202010
Rother District Council,01/12/2020,101RESOURCES,Resources,20209,Corporate management,D2513,Hired and Contracted services,20.09,Merchant Rentals Ltd,Hired and contracted services - Streamline Machine-Rental,2022140,202010
Rother District Council,02/12/2020,999NOREPORT,Environmental Services,70744,Capital - 1066 Walk Pathways,N1009,Furniture & Fittings,"14,118.15",The Sussex Sign Company Limited,Furniture and Fittings (Capital spend),2022085,202010
Rother District Council,02/12/2020,041ENVIRON,Environmental Services,32142,EH Taxi and Private Hire Licenses R + W Partnership,D2635,Computer Licences,262.50,Diamond People Ltd,Computer Licences - Maintenance/Upgrading of Software,2021959,202010
Rother District Council,02/12/2020,101RESOURCES,Resources,20216,Cost Of Collection,D2626,Postages,458.84,DSI Billing Services Ltd,Postages - DSI Billing,2021152,202010
Rother District Council,02/12/2020,041ENVIRON,Environmental Services,32144,EH Environmental Services Admin R + W Partnership,D2513,Hired and Contracted services,6.00,H M Land Registry,Hired and contracted services - Env H-Land Registry,2022130,202010
Rother District Council,02/12/2020,071STRAT,Strategy and Planning,20258,BC Dangerous Structures H+R Partnership,D2513,Hired and Contracted services,3.00,H M Land Registry,Hired and contracted services - Env H-Land Registry,2022130,202010
Rother District Council,02/12/2020,041ENVIRON,Environmental Services,32143,EH Licenses and Registration R + W Partnership,D2513,Hired and Contracted services,425.00,Fairfield House Veterinary Surgery,Hired and contracted services - EnvH-Veterinary Services for Licens,2021662,202010
Rother District Council,02/12/2020,091HOUSING,Housing and Community Services,20107,Camber Beach & Foreshore,B1100,Repairs to Premises,45.00,Alfa Electric Ltd,Repairs to Premises - Repairs - Electrical Works,2022036,202010
Rother District Council,02/12/2020,101RESOURCES,Resources,20216,Cost Of Collection,D2513,Hired and Contracted services,18.00,H M Land Registry,Hired and contracted services - Council Tax-Land Registry Enquiries,2022130,202010
Rother District Council,02/12/2020,101RESOURCES,Resources,20242,Communications-Phones,D2621,Telephones,33.99,TalkTalk Communications Ltd T/A TalkTalk Business,Telephones - Telephone Call Costs+Line Rental,2023714,202012
Rother District Council,02/12/2020,071STRAT,Strategy and Planning,20246,Planning Applications,D2513,Hired and Contracted services,27.00,H M Land Registry,Hired and contracted services - Land Registry-Planning,2022130,202010
Rother District Council,02/12/2020,091HOUSING,Housing and Community Services,20107,Camber Beach & Foreshore,B1100,Repairs to Premises,9.99,Trade UK Account (Screwfix & B&Q),Repairs to Premises - Purchase of Materials - Build Maint,2021175,202010
Rother District Council,03/12/2020,101RESOURCES,Resources,20209,Corporate management,D2513,Hired and Contracted services,214.27,Capita Business Services Ltd,Bank Charges,2022067,202010
Rother District Council,03/12/2020,091HOUSING,Housing and Community Services,20125,Coast Protection,E2302,Third party payment private contractors,107.60,Kingsdown Compressed Air Systems Ltd,Third party payment private contractors - Fairlight Compressor Maintenance Contract,2021827,202010
Rother District Council,03/12/2020,101RESOURCES,Resources,20216,Cost Of Collection,D2513,Hired and Contracted services,"1,200.00",IRRV Services Ltd,Training,2021146,202010
Rother District Council,03/12/2020,091HOUSING,Housing and Community Services,20138,Residual Highway Services,B1100,Repairs to Premises,37.71,Saint-Gobain Building Distribution Ltd t/a Jewson,Repairs to Premises - Purchase of Materials - Build Maint,2021461,202010
Rother District Council,04/12/2020,101RESOURCES,Resources,20216,Cost Of Collection,D2513,Hired and Contracted services,50.00,Inform CPI Ltd,Hired and contracted services - RV Finder,2021177,202010
Rother District Council,04/12/2020,101RESOURCES,Resources,20216,Cost Of Collection,D2513,Hired and Contracted services,3.00,H M Land Registry,Hired and contracted services - Council Tax-Land Registry Enquiries,2022126,202010
Rother District Council,04/12/2020,081ACQUISIT,"Acquisitions, Transformation and Regeneration",20144,Property Management,D2513,Hired and Contracted services,6.00,H M Land Registry,Hired and contracted services - Land Registry-Property Management,2022126,202010
Rother District Council,04/12/2020,071STRAT,Strategy and Planning,20246,Planning Applications,D2513,Hired and Contracted services,27.00,H M Land Registry,Hired and contracted services - Land Registry-Planning,2022126,202010
Rother District Council,04/12/2020,101RESOURCES,Resources,20222,Accountancy,D1203,Books And Publications,"1,690.00",CIPFA Business Ltd,Books and Publications - general,2023433,202012
Rother District Council,04/12/2020,041ENVIRON,Environmental Services,20130,Crime and Disorder Initiatives,D1201,Equipment & Materials,162.50,Fuzion 4 Limited,Equipment & Materials - Safer Rother Partnership,2022361,202011
Rother District Council,04/12/2020,091HOUSING,Housing and Community Services,20145,Maintenance Services,D1201,Equipment & Materials,37.12,Saint-Gobain Building Distribution Ltd t/a Jewson,Equipment & Materials - Purchase of Tools,2021462,202010
Rother District Council,05/12/2020,041ENVIRON,Environmental Services,32142,EH Taxi and Private Hire Licenses R + W Partnership,D2513,Hired and Contracted services,120.00,uCheck,Hired and contracted services - Service fee paid,2022084,202010
Rother District Council,05/12/2020,041ENVIRON,Environmental Services,32142,EH Taxi and Private Hire Licenses R + W Partnership,D2513,Hired and Contracted services,26.01,uCheck,Hired and contracted services - Service fee paid,2022084,202010
Rother District Council,05/12/2020,071STRAT,Strategy and Planning,20246,Planning Applications,D2519,Statutory Advertising,778.26,JPIMedia Publishing Ltd,Statutory Advertising - Planadv - Rye+Battle Observer,2021828,202010
Rother District Council,05/12/2020,071STRAT,Strategy and Planning,20255,Local Development Framework,D2519,Statutory Advertising,686.70,JPIMedia Publishing Ltd,Statutory Advertising - Planadv - Rye+Battle Observer,2021800,202010
Rother District Council,05/12/2020,091HOUSING,Housing and Community Services,20145,Maintenance Services,D1201,Equipment & Materials,13.16,Parker Building Supplies Ltd,Equipment & Materials - Purchase of Tools,2021357,202010
Rother District Council,05/12/2020,091HOUSING,Housing and Community Services,20200,Housing Needs - HB (Housing Benefit),D2514,Accommodation Costs,"7,500.00",Paramount Independent Property Services LLP,Accommodation Costs,2022489,202011
Rother District Council,07/12/2020,101RESOURCES,Resources,20209,Corporate management,D2513,Hired and Contracted services,101.00,Lloyds Bank,Bank Charges,2023213,202012
Rother District Council,07/12/2020,101RESOURCES,Resources,20209,Corporate management,D2513,Hired and Contracted services,64.15,Lloyds Bank,Bank Charges,2023218,202012
Rother District Council,07/12/2020,081ACQUISIT,"Acquisitions, Transformation and Regeneration",20153,"Elva Business Centre, Bexhill",B1100,Repairs to Premises,171.40,J M Waste Management Limited,Contract cleaning - Office Cleaning,2021463,202010
Rother District Council,07/12/2020,081ACQUISIT,"Acquisitions, Transformation and Regeneration",20101,Cultural Development,D2923,Grants made,"1,250.00",Culture Shift,Grants made - Arts Development Projects,2021942,202010
Rother District Council,07/12/2020,091HOUSING,Housing and Community Services,20108,Bexhill Promenade & Foreshore,B1100,Repairs to Premises,115.25,Streetlights,Repairs to Premises - Lighting Repairs,2022538,202011
Rother District Council,07/12/2020,091HOUSING,Housing and Community Services,20137,Car Parks,B1100,Repairs to Premises,96.25,Streetlights,Repairs to Premises - Lighting Repairs,2022539,202011
Rother District Council,07/12/2020,091HOUSING,Housing and Community Services,20137,Car Parks,B1100,Repairs to Premises,261.25,Streetlights,Repairs to Premises - Lighting Repairs,2022540,202011
Rother District Council,07/12/2020,091HOUSING,Housing and Community Services,20137,Car Parks,B1100,Repairs to Premises,154.25,Streetlights,Repairs to Premises - Lighting Repairs,2022541,202011
Rother District Council,07/12/2020,091HOUSING,Housing and Community Services,20137,Car Parks,B1100,Repairs to Premises,207.75,Streetlights,Repairs to Premises - Lighting Repairs,2022542,202011
Rother District Council,08/12/2020,101RESOURCES,Resources,20239,Computer Services,D2635,Computer Licences,488.66,Civica UK Ltd,Computer Licences - Website Management,2023622,202012
Rother District Council,08/12/2020,101RESOURCES,Resources,20216,Cost Of Collection,D2626,Postages,405.11,DSI Billing Services Ltd,Postages - DSI Billing,2021235,202010
Rother District Council,08/12/2020,101RESOURCES,Resources,20207,Reliefs & Benefits-Housing Benefit,D2513,Hired and Contracted services,"2,300.00",Branch and Lee,Hired and contracted services - Subsidy Consultancy,2021971,202010
Rother District Council,08/12/2020,081ACQUISIT,"Acquisitions, Transformation and Regeneration",20275,Development of Council Owned Sites (Non-capital),D2513,Hired and Contracted services,500.00,Ecological Survey and Assessment LTD,Hired and contracted services - Cost of Survey,2021915,202010
Rother District Council,09/12/2020,091HOUSING,Housing and Community Services,20145,Maintenance Services,D2513,Hired and Contracted services,85.00,Amstech Inspections & Testing Ltd,Hired and contracted services - Service fee paid,2022350,202011
Rother District Council,09/12/2020,091HOUSING,Housing and Community Services,20145,Maintenance Services,D2513,Hired and Contracted services,85.00,Amstech Inspections & Testing Ltd,Hired and contracted services - Service fee paid,2022353,202011
Rother District Council,09/12/2020,091HOUSING,Housing and Community Services,20145,Maintenance Services,D2513,Hired and Contracted services,85.00,Amstech Inspections & Testing Ltd,Hired and contracted services - Service fee paid,2022351,202011
Rother District Council,09/12/2020,091HOUSING,Housing and Community Services,20145,Maintenance Services,D2513,Hired and Contracted services,85.00,Amstech Inspections & Testing Ltd,Hired and contracted services - Service fee paid,2022352,202011
Rother District Council,09/12/2020,091HOUSING,Housing and Community Services,20145,Maintenance Services,D2513,Hired and Contracted services,85.00,Amstech Inspections & Testing Ltd,Hired and contracted services - Service fee paid,2022348,202011
Rother District Council,09/12/2020,091HOUSING,Housing and Community Services,20145,Maintenance Services,D2513,Hired and Contracted services,85.00,Amstech Inspections & Testing Ltd,Hired and contracted services - Service fee paid,2022349,202011
Rother District Council,09/12/2020,041ENVIRON,Environmental Services,32134,EH Pollution R + W Partnership,D2513,Hired and Contracted services,15.00,H M Land Registry,Hired and contracted services - Env H-Land Registry,2022131,202010
Rother District Council,09/12/2020,071STRAT,Strategy and Planning,20258,BC Dangerous Structures H+R Partnership,D2513,Hired and Contracted services,9.00,H M Land Registry,Hired and contracted services - Env H-Land Registry,2022131,202010
Rother District Council,09/12/2020,041ENVIRON,Environmental Services,32143,EH Licenses and Registration R + W Partnership,D2513,Hired and Contracted services,525.00,Fairfield House Veterinary Surgery,Hired and contracted services - EnvH-Veterinary Services for Licens,2021663,202010
Rother District Council,09/12/2020,101RESOURCES,Resources,20216,Cost Of Collection,D2513,Hired and Contracted services,575.00,Inform CPI Ltd,Hired and contracted services - RV Finder,2021363,202010
Rother District Council,09/12/2020,091HOUSING,Housing and Community Services,20236,Customer Services and Development,A2203,Training,195.00,Dods Parliamentary Communications Ltd,Training,2023135,202012
Rother District Council,09/12/2020,091HOUSING,Housing and Community Services,20200,Housing Needs - HB (Housing Benefit),D2513,Hired and Contracted services,3.00,H M Land Registry,Hired and contracted services - Housing-Land Registry,2022131,202010
Rother District Council,09/12/2020,101RESOURCES,Resources,20216,Cost Of Collection,D2513,Hired and Contracted services,6.00,H M Land Registry,Hired and contracted services - Council Tax-Land Registry Enquiries,2022131,202010
Rother District Council,09/12/2020,031RESOURCES,Chief Executive & Corporate Core,20182,Legal Services,D2513,Hired and Contracted services,20.00,H M Land Registry,Hired and contracted services - Legal-Land Registry Fees,2022131,202010
Rother District Council,09/12/2020,101RESOURCES,Resources,20242,Communications-Phones,D2621,Telephones,67.50,TalkTalk Communications Ltd T/A TalkTalk Business,Telephones - Telephone Call Costs+Line Rental,2023241,202012
Rother District Council,09/12/2020,071STRAT,Strategy and Planning,20246,Planning Applications,D2513,Hired and Contracted services,3.00,H M Land Registry,Hired and contracted services - Land Registry-Planning,2022131,202010
Rother District Council,09/12/2020,091HOUSING,Housing and Community Services,20206,Syrians,D2513,Hired and Contracted services,226.37,Lloyds Bank,Hired and contracted services - Syrian Misc,2023816,202012
Rother District Council,09/12/2020,091HOUSING,Housing and Community Services,20137,Car Parks,B1100,Repairs to Premises,825.00,Hailsham Roadway Construction Ltd,Repairs to Premises - Specified Repairs and Works listed,2021431,202010
Rother District Council,10/12/2020,101RESOURCES,Resources,20209,Corporate management,D2513,Hired and Contracted services,254.10,Lloyds Bank,Bank Charges,2023217,202012
Rother District Council,10/12/2020,101RESOURCES,Resources,20242,Communications-Phones,D2621,Telephones,516.41,BT British Telecommunications plc,Telephones - BT-Rental-General,2021528,202010
Rother District Council,10/12/2020,101RESOURCES,Resources,20239,Computer Services,D2633,Computer Equipment,127.93,Ricoh UK Limited,Computer Equip Maintenance - Maintenance re Colourwave Printer,2021479,202011
Rother District Council,10/12/2020,041ENVIRON,Environmental Services,20129,Community Safety,B2201,Electricity,282.11,Ecotricity Ltd,Electricity - Electricity Charges,2022179,202010
Rother District Council,10/12/2020,041ENVIRON,Environmental Services,20129,Community Safety,B2201,Electricity,37.61,Ecotricity Ltd,Electricity - Electricity Charges,2022283,202010
Rother District Council,10/12/2020,091HOUSING,Housing and Community Services,20137,Car Parks,B2201,Electricity,37.63,Ecotricity Ltd,Electricity - Electricity Charges,2022179,202010
Rother District Council,10/12/2020,091HOUSING,Housing and Community Services,20114,Bexhill Parks & Open Spaces,B2201,Electricity,18.71,Ecotricity Ltd,Electricity - Electricity Charges,2022279,202010
Rother District Council,10/12/2020,091HOUSING,Housing and Community Services,20137,Car Parks,B2201,Electricity,43.66,Ecotricity Ltd,Electricity - Electricity Charges,2022280,202010
Rother District Council,10/12/2020,091HOUSING,Housing and Community Services,20137,Car Parks,B2201,Electricity,18.39,Ecotricity Ltd,Electricity - Electricity Charges,2022281,202010
Rother District Council,10/12/2020,091HOUSING,Housing and Community Services,20137,Car Parks,B2201,Electricity,10.02,Ecotricity Ltd,Electricity - Electricity Charges,2022282,202010
Rother District Council,10/12/2020,091HOUSING,Housing and Community Services,20137,Car Parks,B2201,Electricity,5.02,Ecotricity Ltd,Electricity - Electricity Charges,2022283,202010
Rother District Council,10/12/2020,091HOUSING,Housing and Community Services,20108,Bexhill Promenade & Foreshore,B2201,Electricity,6.90,Ecotricity Ltd,Electricity - Electricity Charges,2022280,202010
Rother District Council,10/12/2020,091HOUSING,Housing and Community Services,20108,Bexhill Promenade & Foreshore,B2201,Electricity,2.90,Ecotricity Ltd,Electricity - Electricity Charges,2022281,202010
Rother District Council,10/12/2020,091HOUSING,Housing and Community Services,20108,Bexhill Promenade & Foreshore,B2201,Electricity,1.58,Ecotricity Ltd,Electricity - Electricity Charges,2022282,202010
Rother District Council,10/12/2020,091HOUSING,Housing and Community Services,20138,Residual Highway Services,B2201,Electricity,31.31,Ecotricity Ltd,Electricity - Electricity Charges,2022179,202010
Rother District Council,10/12/2020,091HOUSING,Housing and Community Services,20138,Residual Highway Services,B2201,Electricity,6.89,Ecotricity Ltd,Electricity - Electricity Charges,2022280,202010
Rother District Council,10/12/2020,091HOUSING,Housing and Community Services,20138,Residual Highway Services,B2201,Electricity,2.90,Ecotricity Ltd,Electricity - Electricity Charges,2022281,202010
Rother District Council,10/12/2020,091HOUSING,Housing and Community Services,20138,Residual Highway Services,B2201,Electricity,1.58,Ecotricity Ltd,Electricity - Electricity Charges,2022282,202010
Rother District Council,10/12/2020,091HOUSING,Housing and Community Services,20138,Residual Highway Services,B2201,Electricity,4.17,Ecotricity Ltd,Electricity - Electricity Charges,2022283,202010
Rother District Council,10/12/2020,101RESOURCES,Resources,20216,Cost Of Collection,D2513,Hired and Contracted services,"7,200.00",Inform CPI Ltd,Hired and contracted services - RV Finder,2021364,202010
Rother District Council,10/12/2020,091HOUSING,Housing and Community Services,20138,Residual Highway Services,B1100,Repairs to Premises,8.88,Saint-Gobain Building Distribution Ltd t/a Jewson,Repairs to Premises - Purchase of Materials - Build Maint,2021580,202010
Rother District Council,10/12/2020,091HOUSING,Housing and Community Services,20138,Residual Highway Services,B1100,Repairs to Premises,266.40,Saint-Gobain Building Distribution Ltd t/a Jewson,Repairs to Premises - Purchase of Materials - Build Maint,2021581,202010
Rother District Council,10/12/2020,091HOUSING,Housing and Community Services,20261,"TA Purchases (prev - 41 Jameson Mews, Bexhill on Sea)",B1100,Repairs to Premises,13.29,Saint-Gobain Building Distribution Ltd t/a Jewson,Repairs to Premises - Purchase of Materials - Build Maint,2021582,202010
Rother District Council,10/12/2020,041ENVIRON,Environmental Services,20130,Crime and Disorder Initiatives,D1201,Equipment & Materials,372.66,Biffa Municipal Limited,Equipment & Materials - Safer Rother Partnership,2021331,202010
Rother District Council,10/12/2020,091HOUSING,Housing and Community Services,20261,"TA Purchases (prev - 41 Jameson Mews, Bexhill on Sea)",N1009,Furniture & Fittings,"1,833.75",HFS - Hastings Furniture Service Ltd,Furniture & Fittings,2022200,202010
Rother District Council,10/12/2020,091HOUSING,Housing and Community Services,20261,"TA Purchases (prev - 41 Jameson Mews, Bexhill on Sea)",N1009,Furniture & Fittings,265.00,HFS - Hastings Furniture Service Ltd,Furniture & Fittings,2022200,202010
Rother District Council,11/12/2020,101RESOURCES,Resources,20239,Computer Services,D2635,Computer Licences,881.00,QSR International (UK) Ltd,Computer Licences - New Computer Software,2023385,202012
Rother District Council,11/12/2020,041ENVIRON,Environmental Services,32144,EH Environmental Services Admin R + W Partnership,D2513,Hired and Contracted services,3.00,H M Land Registry,Hired and contracted services - Env H-Land Registry,2022129,202010
Rother District Council,11/12/2020,071STRAT,Strategy and Planning,20258,BC Dangerous Structures H+R Partnership,D2513,Hired and Contracted services,9.00,H M Land Registry,Hired and contracted services - Env H-Land Registry,2022129,202010
Rother District Council,11/12/2020,101RESOURCES,Resources,20239,Computer Services,D1201,Equipment & Materials,43.70,Office Furniture Online,Hired and Contracted Services - Health and Safety Act Equipment risk assessment,2021829,202010
Rother District Council,11/12/2020,101RESOURCES,Resources,20216,Cost Of Collection,D2513,Hired and Contracted services,3.00,H M Land Registry,Hired and contracted services - Council Tax-Land Registry Enquiries,2022129,202010
Rother District Council,11/12/2020,031RESOURCES,Chief Executive & Corporate Core,20182,Legal Services,D2513,Hired and Contracted services,20.00,H M Land Registry,Hired and contracted services - Legal-Land Registry Fees,2022129,202010
Rother District Council,11/12/2020,071STRAT,Strategy and Planning,20246,Planning Applications,D2513,Hired and Contracted services,9.00,H M Land Registry,Hired and contracted services - Land Registry-Planning,2022129,202010
Rother District Council,11/12/2020,091HOUSING,Housing and Community Services,20137,Car Parks,B1100,Repairs to Premises,141.25,Streetlights,Repairs to Premises - Lighting Repairs,2022543,202011
Rother District Council,13/12/2020,101RESOURCES,Resources,20239,Computer Services,D2621,Telephones,309.96,Interoute Networks Ltd,Telephones - Leased Line Rental,2021384,202010
Rother District Council,13/12/2020,101RESOURCES,Resources,20242,Communications-Phones,D2622,Mobile Phones,870.98,,Mobile Phones,2023221,202012
Rother District Council,13/12/2020,101RESOURCES,Resources,20242,Communications-Phones,D2622,Mobile Phones,133.43,O2 (UK) Ltd,Mobile Phones,2023223,202012
Rother District Council,13/12/2020,101RESOURCES,Resources,20242,Communications-Phones,D2622,Mobile Phones,153.93,O2 (UK) Ltd,Mobile Phones,2023224,202012
Rother District Council,13/12/2020,101RESOURCES,Resources,20242,Communications-Phones,D2622,Mobile Phones,162.00,O2 (UK) Ltd,Mobile Phones,2023226,202012
Rother District Council,13/12/2020,101RESOURCES,Resources,20242,Communications-Phones,D2622,Mobile Phones,66.00,O2 (UK) Ltd,Mobile Phones,2023229,202012
Rother District Council,13/12/2020,101RESOURCES,Resources,20242,Communications-Phones,D2622,Mobile Phones,712.63,O2 (UK) Ltd,Mobile Phones,2023231,202012
Rother District Council,14/12/2020,041ENVIRON,Environmental Services,32143,EH Licenses and Registration R + W Partnership,D2513,Hired and Contracted services,600.00,Fairfield House Veterinary Surgery,Hired and contracted services - EnvH-Veterinary Services for Licens,2021660,202010
Rother District Council,14/12/2020,071STRAT,Strategy and Planning,20246,Planning Applications,A2203,Training,"4,416.00",University Of Brighton,Training,2021592,202010
Rother District Council,14/12/2020,091HOUSING,Housing and Community Services,20114,Bexhill Parks & Open Spaces,B1100,Repairs to Premises,131.76,Saint-Gobain Building Distribution Ltd t/a Jewson,Repairs to Premises - Purchase of Materials - Build Maint,2021803,202010
Rother District Council,14/12/2020,091HOUSING,Housing and Community Services,20138,Residual Highway Services,B1100,Repairs to Premises,122.46,Littlewood Fencing Ltd,Repairs to Premises - Purchase of Materials - Build Maint,2021374,202010
Rother District Council,15/12/2020,091HOUSING,Housing and Community Services,20112,Bexhill Leisure Centre,D2509,Consultants and Other Services,"6,500.00",Strategic Leisure Ltd,Consultants and other services - Consultants Fees,2023054,202012
Rother District Council,15/12/2020,091HOUSING,Housing and Community Services,20114,Bexhill Parks & Open Spaces,B1100,Repairs to Premises,109.62,Alfa Electric Ltd,Repairs to Premises - Repairs - Electrical Works,2022251,202010
Rother District Council,15/12/2020,081ACQUISIT,"Acquisitions, Transformation and Regeneration",20153,"Elva Business Centre, Bexhill",B1100,Repairs to Premises,214.00,ADT Fire and  Security Plc,Repairs to Premises - Fire Alarm System Maintenance,2021538,202010
Rother District Council,15/12/2020,041ENVIRON,Environmental Services,32136,EH Pest Control R + W Partnership,C1104,Derv,3.80,Allstar Business Solutions,Derv - Fuel Service fee payable on fuel cards,2023202,202012
Rother District Council,15/12/2020,091HOUSING,Housing and Community Services,20145,Maintenance Services,C1104,Derv,3.80,Allstar Business Solutions,Derv - Fuel Service fee payable on fuel cards,2023202,202012
Rother District Council,15/12/2020,091HOUSING,Housing and Community Services,20107,Camber Beach & Foreshore,B1100,Repairs to Premises,140.00,William Cooke and Son (Farmers) Ltd,Repairs to Premises - Sand Clearance at Camber,2021830,202010
Rother District Council,15/12/2020,091HOUSING,Housing and Community Services,20137,Car Parks,B1100,Repairs to Premises,175.00,William Cooke and Son (Farmers) Ltd,Repairs to Premises - Sand Clearance at Camber,2021830,202010
Rother District Council,15/12/2020,041ENVIRON,Environmental Services,32136,EH Pest Control R + W Partnership,C1104,Derv,44.17,Allstar Business Solutions,Derv,2023202,202012
Rother District Council,15/12/2020,041ENVIRON,Environmental Services,32136,EH Pest Control R + W Partnership,C1104,Derv,37.08,Allstar Business Solutions,Derv,2023202,202012
Rother District Council,15/12/2020,091HOUSING,Housing and Community Services,20145,Maintenance Services,C1104,Derv,65.00,Allstar Business Solutions,Derv,2023202,202012
Rother District Council,15/12/2020,091HOUSING,Housing and Community Services,20145,Maintenance Services,C1104,Derv,62.61,Allstar Business Solutions,Derv,2023202,202012
Rother District Council,15/12/2020,091HOUSING,Housing and Community Services,20145,Maintenance Services,C1104,Derv,70.00,Allstar Business Solutions,Derv,2023202,202012
Rother District Council,16/12/2020,999NOREPORT,Housing and Community Services,70718,Capital - Sidley Recreation Ground,N1004,Architects & Consultant Fees,400.00,Ashdown Site Investigation Ltd,Architects & Consultant Fees Capital-Architect and Conslt Fees,2021458,202010
Rother District Council,16/12/2020,101RESOURCES,Resources,20239,Computer Services,D2631,Computer Equip Maintenance,"9,850.00",Ideal Networks Ltd,Computer Equip Maintenance - Maintenance of Network Equipment,2022192,202011
Rother District Council,16/12/2020,031RESOURCES,Chief Executive & Corporate Core,20156,Representing Local Interest,D2509,Consultants and Other Services,"6,823.08",CH&I Associates Ltd,Consultants and other services - Consultants Fees,2021529,202010
Rother District Council,16/12/2020,041ENVIRON,Environmental Services,32143,EH Licenses and Registration R + W Partnership,D2513,Hired and Contracted services,425.00,Fairfield House Veterinary Surgery,Hired and contracted services - EnvH-Veterinary Services for Licens,2021664,202010
Rother District Council,16/12/2020,081ACQUISIT,"Acquisitions, Transformation and Regeneration",20146,West Trading Estate,B2201,Electricity,36.42,Pozitive Energy,Electricity - Electricity Charges,2022919,202011
Rother District Council,16/12/2020,031RESOURCES,Chief Executive & Corporate Core,20173,Administrative Offices - Town Hall,B1100,Repairs to Premises,296.33,Alfa Electric Ltd,Repairs to Premises - Repairs - Electrical Works,2021665,202010
Rother District Council,16/12/2020,999NOREPORT,"Acquisitions, Transformation and Regeneration",70725,Capital - Blackfriars,D2513,Hired and Contracted services,55.50,Bevan Brittan LLP,Hired and contracted services - Legal Advice,2022637,202011
Rother District Council,16/12/2020,091HOUSING,Housing and Community Services,20114,Bexhill Parks & Open Spaces,B1100,Repairs to Premises,"1,127.88",Spray Genie Ltd,Repairs to Premises - Parks - Redecoration Works,2021628,202010
Rother District Council,16/12/2020,031RESOURCES,Chief Executive & Corporate Core,20173,Administrative Offices - Town Hall,B1100,Repairs to Premises,15.40,Saint-Gobain Building Distribution Ltd t/a Jewson,Repairs to Premises - Purchase of Materials - Build Maint,2021805,202010
Rother District Council,16/12/2020,091HOUSING,Housing and Community Services,20114,Bexhill Parks & Open Spaces,B1100,Repairs to Premises,124.79,Saint-Gobain Building Distribution Ltd t/a Jewson,Repairs to Premises - Purchase of Materials - Build Maint,2021804,202010
Rother District Council,16/12/2020,031RESOURCES,Chief Executive & Corporate Core,20175,Administrative Offices - T.H. Annex (NOT CHP),B1100,Repairs to Premises,298.43,Stannah Lift Services Ltd,Repairs to Premises - Specified Repairs and Works listed,2021583,202010
Rother District Council,16/12/2020,091HOUSING,Housing and Community Services,20137,Car Parks,B1100,Repairs to Premises,162.50,Hailsham Roadway Construction Ltd,Repairs to Premises - Specified Repairs and Works listed,2021780,202010
Rother District Council,17/12/2020,091HOUSING,Housing and Community Services,20137,Car Parks,B2422,Sewerage,235.00,CountyClean Environmental Services Ltd,Sewerage - Sewage/Cesspool Emptying,2021468,202010
Rother District Council,17/12/2020,091HOUSING,Housing and Community Services,20128,Public Conveniences,B2422,Sewerage,235.00,CountyClean Environmental Services Ltd,Sewerage - Sewage/Cesspool Emptying,2021468,202010
Rother District Council,17/12/2020,091HOUSING,Housing and Community Services,20128,Public Conveniences,B2422,Sewerage,235.00,CountyClean Environmental Services Ltd,Sewerage - Sewage/Cesspool Emptying,2021468,202010
Rother District Council,17/12/2020,081ACQUISIT,"Acquisitions, Transformation and Regeneration",20153,"Elva Business Centre, Bexhill",B2422,Sewerage,235.00,CountyClean Environmental Services Ltd,Sewerage - Sewage/Cesspool Emptying,2021468,202010
Rother District Council,17/12/2020,081ACQUISIT,"Acquisitions, Transformation and Regeneration",20154,Committee Property Account,B2422,Sewerage,235.00,CountyClean Environmental Services Ltd,Sewerage - Sewage/Cesspool Emptying,2021468,202010
Rother District Council,17/12/2020,091HOUSING,Housing and Community Services,20137,Car Parks,B2422,Sewerage,175.00,CountyClean Environmental Services Ltd,Repairs to Premises - Cesspool Pumping station service/Call out,2021468,202010
Rother District Council,17/12/2020,091HOUSING,Housing and Community Services,20128,Public Conveniences,B2422,Sewerage,175.00,CountyClean Environmental Services Ltd,Repairs to Premises - Cesspool Pumping station service/Call out,2021468,202010
Rother District Council,17/12/2020,091HOUSING,Housing and Community Services,20128,Public Conveniences,B2422,Sewerage,175.00,CountyClean Environmental Services Ltd,Repairs to Premises - Cesspool Pumping station service/Call out,2021468,202010
Rother District Council,17/12/2020,081ACQUISIT,"Acquisitions, Transformation and Regeneration",20153,"Elva Business Centre, Bexhill",B2422,Sewerage,195.00,CountyClean Environmental Services Ltd,Repairs to Premises - Cesspool Pumping station service/Call out,2021468,202010
Rother District Council,17/12/2020,081ACQUISIT,"Acquisitions, Transformation and Regeneration",20153,"Elva Business Centre, Bexhill",B2422,Sewerage,295.00,CountyClean Environmental Services Ltd,Repairs to Premises - Cesspool Pumping station service/Call out,2021468,202010
Rother District Council,17/12/2020,081ACQUISIT,"Acquisitions, Transformation and Regeneration",20154,Committee Property Account,B2422,Sewerage,175.00,CountyClean Environmental Services Ltd,Repairs to Premises - Cesspool Pumping station service/Call out,2021468,202010
Rother District Council,17/12/2020,101RESOURCES,Resources,20216,Cost Of Collection,D2626,Postages,377.90,DSI Billing Services Ltd,Postages - DSI Billing,2021478,202010
Rother District Council,17/12/2020,041ENVIRON,Environmental Services,32144,EH Environmental Services Admin R + W Partnership,D2513,Hired and Contracted services,3.00,H M Land Registry,Hired and contracted services - Env H-Land Registry,2022132,202010
Rother District Council,17/12/2020,041ENVIRON,Environmental Services,20129,Community Safety,D2513,Hired and Contracted services,3.00,H M Land Registry,Hired and contracted services - Env H-Land Registry,2022132,202010
Rother District Council,17/12/2020,041ENVIRON,Environmental Services,32134,EH Pollution R + W Partnership,D2513,Hired and Contracted services,36.00,H M Land Registry,Hired and contracted services - Env H-Land Registry,2022132,202010
Rother District Council,17/12/2020,101RESOURCES,Resources,20216,Cost Of Collection,D2513,Hired and Contracted services,"1,800.00",Inform CPI Ltd,Hired and contracted services - RV Finder,2021466,202010
Rother District Council,17/12/2020,101RESOURCES,Resources,20216,Cost Of Collection,D2513,Hired and Contracted services,12.00,H M Land Registry,Hired and contracted services - Council Tax-Land Registry Enquiries,2022132,202010
Rother District Council,17/12/2020,071STRAT,Strategy and Planning,20246,Planning Applications,D2513,Hired and Contracted services,9.00,H M Land Registry,Hired and contracted services - Land Registry-Planning,2022132,202010
Rother District Council,17/12/2020,091HOUSING,Housing and Community Services,20108,Bexhill Promenade & Foreshore,B1100,Repairs to Premises,250.00,CMJ Joinery (Southern) Ltd,Repairs to Premises - Purchase of Materials - Build Maint,2022473,202011
Rother District Council,17/12/2020,081ACQUISIT,"Acquisitions, Transformation and Regeneration",20154,Committee Property Account,B1100,Repairs to Premises,162.30,I.B. Lock & Safe,Repairs to Premises - Specified Repairs and Works listed,2021556,202010
Rother District Council,18/12/2020,091HOUSING,Housing and Community Services,20145,Maintenance Services,D2513,Hired and Contracted services,225.00,Amstech Inspections & Testing Ltd,Hired and contracted services - Service fee paid,2022377,202011
Rother District Council,18/12/2020,091HOUSING,Housing and Community Services,20145,Maintenance Services,D2513,Hired and Contracted services,100.00,Amstech Inspections & Testing Ltd,Hired and contracted services - Service fee paid,2022378,202011
Rother District Council,18/12/2020,091HOUSING,Housing and Community Services,20145,Maintenance Services,D2513,Hired and Contracted services,100.00,Amstech Inspections & Testing Ltd,Hired and contracted services - Service fee paid,2022379,202011
Rother District Council,18/12/2020,091HOUSING,Housing and Community Services,20145,Maintenance Services,D2513,Hired and Contracted services,100.00,Amstech Inspections & Testing Ltd,Hired and contracted services - Service fee paid,2022380,202011
Rother District Council,18/12/2020,999NOREPORT,"Acquisitions, Transformation and Regeneration",70737,Capital � Barnhorn Green,N1004,Architects & Consultant Fees,"11,500.00",R H Partnership Architects Ltd,Architects & Consultant Fees Capital-Architect and Conslt Fees,2021482,202010
Rother District Council,18/12/2020,999NOREPORT,"Acquisitions, Transformation and Regeneration",70725,Capital - Blackfriars,N1004,Architects & Consultant Fees,"1,500.00",Rebellion for Social Entrepreneurs,Architects & Consultant Fees Capital-Architect and Conslt Fees,2021773,202010
Rother District Council,18/12/2020,041ENVIRON,Environmental Services,32134,EH Pollution R + W Partnership,D2513,Hired and Contracted services,3.00,H M Land Registry,Hired and contracted services - Env H-Land Registry,2022125,202010
Rother District Council,18/12/2020,041ENVIRON,Environmental Services,32144,EH Environmental Services Admin R + W Partnership,D2513,Hired and Contracted services,3.00,H M Land Registry,Hired and contracted services - Env H-Land Registry,2022125,202010
Rother District Council,18/12/2020,041ENVIRON,Environmental Services,32143,EH Licenses and Registration R + W Partnership,D2513,Hired and Contracted services,425.00,Fairfield House Veterinary Surgery,Hired and contracted services - EnvH-Veterinary Services for Licens,2021661,202010
Rother District Council,18/12/2020,081ACQUISIT,"Acquisitions, Transformation and Regeneration",20146,West Trading Estate,B2201,Electricity,-35.47,Pozitive Energy,Electricity - Electricity Charges,2023330,202012
Rother District Council,18/12/2020,081ACQUISIT,"Acquisitions, Transformation and Regeneration",20144,Property Management,D2983,Professional Services - Surveys and Enquiries,750.00,Hunt Commercial Property Ltd,Hired and contracted services - Cost of Survey,2021436,202010
Rother District Council,18/12/2020,071STRAT,Strategy and Planning,20246,Planning Applications,D2513,Hired and Contracted services,6.00,H M Land Registry,Hired and contracted services - Land Registry-Planning,2022125,202010
Rother District Council,18/12/2020,081ACQUISIT,"Acquisitions, Transformation and Regeneration",20146,West Trading Estate,B1100,Repairs to Premises,"1,890.00",Hailsham Roadway Construction Ltd,Repairs to Premises - Repairs Refurbishment of premises,2021531,202010
Rother District Council,18/12/2020,091HOUSING,Housing and Community Services,20206,Syrians,D2513,Hired and Contracted services,412.50,REDACTED PERSONAL DATA,Hired and contracted services - Syrian-Education-Exempt VAT,2022116,202010
Rother District Council,18/12/2020,091HOUSING,Housing and Community Services,20145,Maintenance Services,C1101,Vehicle Repairs & Servicing,23.09,Autolec Motor Factors,Vehicle Repairs & Servicing,2021813,202010
Rother District Council,19/12/2020,031RESOURCES,Chief Executive & Corporate Core,20171,Human Resources,D2922,Subscriptions,92.98,Agora Business Publications LLP,Subscriptions - Subscription to Organisations,2021806,202010
Rother District Council,20/12/2020,071STRAT,Strategy and Planning,20246,Planning Applications,D2519,Statutory Advertising,273.60,Reach Publishing Services Ltd,Statutory Advertising - Planadv-Kent+East Sussex Courier,2021575,202010
Rother District Council,21/12/2020,999NOREPORT,"Acquisitions, Transformation and Regeneration",70725,Capital - Blackfriars,N1004,Architects & Consultant Fees,"2,454.80",REDACTED PERSONAL DATA,Architects & Consultant Fees Capital-Architect and Conslt Fees,2021491,202010
Rother District Council,21/12/2020,999NOREPORT,"Acquisitions, Transformation and Regeneration",70725,Capital - Blackfriars,N1004,Architects & Consultant Fees,"8,385.68",REDACTED PERSONAL DATA,Architects & Consultant Fees Capital-Architect and Conslt Fees,2021540,202010
Rother District Council,21/12/2020,999NOREPORT,Environmental Services,70706,Capital - Disabled Facilities Grant,N1012,Capital Advances,300.00,Peabody South East Ltd,Capital Advances Disabled Facilities Grant,2021625,202010
Rother District Council,21/12/2020,999NOREPORT,Environmental Services,70706,Capital - Disabled Facilities Grant,N1012,Capital Advances,300.00,Peabody South East Ltd,Capital Advances Disabled Facilities Grant,2021626,202010
Rother District Council,21/12/2020,999NOREPORT,Environmental Services,70706,Capital - Disabled Facilities Grant,N1012,Capital Advances,600.00,Peabody South East Ltd,Capital Advances Disabled Facilities Grant,2021624,202010
Rother District Council,21/12/2020,091HOUSING,Housing and Community Services,20236,Customer Services and Development,D2635,Computer Licences,19.95,Click4Assistance,Computer Licences - Computer Licence Renewal,2022299,202010
Rother District Council,21/12/2020,091HOUSING,Housing and Community Services,20236,Customer Services and Development,D2635,Computer Licences,"1,437.60",Click4Assistance,Computer Licences - Maintenance/Upgrading of Software,2022299,202010
Rother District Council,21/12/2020,081ACQUISIT,"Acquisitions, Transformation and Regeneration",20144,Property Management,D2983,Professional Services - Surveys and Enquiries,750.00,Hunt Commercial Property Ltd,Professional Services - Surveys and Enquiries,2021635,202010
Rother District Council,22/12/2020,999NOREPORT,Environmental Services,70706,Capital - Disabled Facilities Grant,N1012,Capital Advances,"8,500.00",Alfa Electric Ltd,Capital Advances Disabled Facilities Grant,2021627,202010
Rother District Council,22/12/2020,081ACQUISIT,"Acquisitions, Transformation and Regeneration",20153,"Elva Business Centre, Bexhill",B1100,Repairs to Premises,80.00,C-Thru Window Cleaning,Contract cleaning - Office Cleaning,2021618,202010
Rother District Council,22/12/2020,101RESOURCES,Resources,20216,Cost Of Collection,D2626,Postages,456.15,DSI Billing Services Ltd,Postages - DSI Billing,2021547,202010
Rother District Council,22/12/2020,041ENVIRON,Environmental Services,32134,EH Pollution R + W Partnership,D1201,Equipment & Materials,499.19,We Care 4 Air Ltd,Equipment & Materials - EnvH- Air Quality Maintenance Contr,2021610,202010
Rother District Council,22/12/2020,081ACQUISIT,"Acquisitions, Transformation and Regeneration",20150,Peasmarsh Workshops,D2513,Hired and Contracted services,439.61,Alfa Electric Ltd,Hired and contracted services - election special stationery supplies,2021608,202010
Rother District Council,22/12/2020,031RESOURCES,Chief Executive & Corporate Core,20177,Administrative Offices - Rear Depot,B2201,Electricity,27.60,Laser Energy Buying Group (Kent County Council Commercial Services),Electricity - Electricity Charges,2023422,202012
Rother District Council,22/12/2020,031RESOURCES,Chief Executive & Corporate Core,20177,Administrative Offices - Rear Depot,B2201,Electricity,30.04,Laser Energy Buying Group (Kent County Council Commercial Services),Electricity - Electricity Charges,2023422,202012
Rother District Council,22/12/2020,031RESOURCES,Chief Executive & Corporate Core,20176,Administrative Offices - Print Room,B2201,Electricity,89.40,Laser Energy Buying Group (Kent County Council Commercial Services),Electricity - Electricity Charges,2023422,202012
Rother District Council,22/12/2020,091HOUSING,Housing and Community Services,20128,Public Conveniences,B2201,Electricity,37.05,Laser Energy Buying Group (Kent County Council Commercial Services),Electricity - Electricity Charges,2023422,202012
Rother District Council,22/12/2020,081ACQUISIT,"Acquisitions, Transformation and Regeneration",20154,Committee Property Account,B2201,Electricity,309.40,Laser Energy Buying Group (Kent County Council Commercial Services),Electricity - Electricity Charges,2023422,202012
Rother District Council,22/12/2020,081ACQUISIT,"Acquisitions, Transformation and Regeneration",20154,Committee Property Account,B2201,Electricity,15.51,Laser Energy Buying Group (Kent County Council Commercial Services),Electricity - Electricity Charges,2023422,202012
Rother District Council,22/12/2020,091HOUSING,Housing and Community Services,20107,Camber Beach & Foreshore,B2201,Electricity,105.94,Laser Energy Buying Group (Kent County Council Commercial Services),Electricity - Electricity Charges,2023422,202012
Rother District Council,22/12/2020,091HOUSING,Housing and Community Services,20123,Cemeteries,B2201,Electricity,50.25,Laser Energy Buying Group (Kent County Council Commercial Services),Electricity - Electricity Charges,2023422,202012
Rother District Council,22/12/2020,091HOUSING,Housing and Community Services,20128,Public Conveniences,B2201,Electricity,59.87,Laser Energy Buying Group (Kent County Council Commercial Services),Electricity - Electricity Charges,2023422,202012
Rother District Council,22/12/2020,091HOUSING,Housing and Community Services,20128,Public Conveniences,B2201,Electricity,39.29,Laser Energy Buying Group (Kent County Council Commercial Services),Electricity - Electricity Charges,2023422,202012
Rother District Council,22/12/2020,091HOUSING,Housing and Community Services,20128,Public Conveniences,B2201,Electricity,108.14,Laser Energy Buying Group (Kent County Council Commercial Services),Electricity - Electricity Charges,2023422,202012
Rother District Council,22/12/2020,091HOUSING,Housing and Community Services,20128,Public Conveniences,B2201,Electricity,31.69,Laser Energy Buying Group (Kent County Council Commercial Services),Electricity - Electricity Charges,2023422,202012
Rother District Council,22/12/2020,091HOUSING,Housing and Community Services,20128,Public Conveniences,B2201,Electricity,28.94,Laser Energy Buying Group (Kent County Council Commercial Services),Electricity - Electricity Charges,2023422,202012
Rother District Council,22/12/2020,091HOUSING,Housing and Community Services,20128,Public Conveniences,B2201,Electricity,43.60,Laser Energy Buying Group (Kent County Council Commercial Services),Electricity - Electricity Charges,2023422,202012
Rother District Council,22/12/2020,091HOUSING,Housing and Community Services,20128,Public Conveniences,B2201,Electricity,29.49,Laser Energy Buying Group (Kent County Council Commercial Services),Electricity - Electricity Charges,2023422,202012
Rother District Council,22/12/2020,091HOUSING,Housing and Community Services,20128,Public Conveniences,B2201,Electricity,53.55,Laser Energy Buying Group (Kent County Council Commercial Services),Electricity - Electricity Charges,2023422,202012
Rother District Council,22/12/2020,091HOUSING,Housing and Community Services,20128,Public Conveniences,B2201,Electricity,47.25,Laser Energy Buying Group (Kent County Council Commercial Services),Electricity - Electricity Charges,2023422,202012
Rother District Council,22/12/2020,081ACQUISIT,"Acquisitions, Transformation and Regeneration",20154,Committee Property Account,B2201,Electricity,15.50,Laser Energy Buying Group (Kent County Council Commercial Services),Electricity - Electricity Charges,2023422,202012
Rother District Council,22/12/2020,081ACQUISIT,"Acquisitions, Transformation and Regeneration",20154,Committee Property Account,B2201,Electricity,15.50,Laser Energy Buying Group (Kent County Council Commercial Services),Electricity - Electricity Charges,2023422,202012
Rother District Council,22/12/2020,081ACQUISIT,"Acquisitions, Transformation and Regeneration",20154,Committee Property Account,B2201,Electricity,15.51,Laser Energy Buying Group (Kent County Council Commercial Services),Electricity - Electricity Charges,2023422,202012
Rother District Council,22/12/2020,081ACQUISIT,"Acquisitions, Transformation and Regeneration",20154,Committee Property Account,B2201,Electricity,697.92,Laser Energy Buying Group (Kent County Council Commercial Services),Electricity - Electricity Charges,2023422,202012
Rother District Council,22/12/2020,091HOUSING,Housing and Community Services,20108,Bexhill Promenade & Foreshore,B2201,Electricity,7.76,Laser Energy Buying Group (Kent County Council Commercial Services),Electricity - Electricity Charges,2023422,202012
Rother District Council,22/12/2020,091HOUSING,Housing and Community Services,20108,Bexhill Promenade & Foreshore,B2201,Electricity,7.76,Laser Energy Buying Group (Kent County Council Commercial Services),Electricity - Electricity Charges,2023422,202012
Rother District Council,22/12/2020,091HOUSING,Housing and Community Services,20108,Bexhill Promenade & Foreshore,B2201,Electricity,35.01,Laser Energy Buying Group (Kent County Council Commercial Services),Electricity - Electricity Charges,2023422,202012
Rother District Council,22/12/2020,091HOUSING,Housing and Community Services,20128,Public Conveniences,B2201,Electricity,28.55,Laser Energy Buying Group (Kent County Council Commercial Services),Electricity - Electricity Charges,2023422,202012
Rother District Council,22/12/2020,091HOUSING,Housing and Community Services,20128,Public Conveniences,B2201,Electricity,57.74,Laser Energy Buying Group (Kent County Council Commercial Services),Electricity - Electricity Charges,2023422,202012
Rother District Council,22/12/2020,091HOUSING,Housing and Community Services,20128,Public Conveniences,B2201,Electricity,35.26,Laser Energy Buying Group (Kent County Council Commercial Services),Electricity - Electricity Charges,2023422,202012
Rother District Council,22/12/2020,091HOUSING,Housing and Community Services,20128,Public Conveniences,B2201,Electricity,31.16,Laser Energy Buying Group (Kent County Council Commercial Services),Electricity - Electricity Charges,2023422,202012
Rother District Council,22/12/2020,091HOUSING,Housing and Community Services,20128,Public Conveniences,B2201,Electricity,35.29,Laser Energy Buying Group (Kent County Council Commercial Services),Electricity - Electricity Charges,2023422,202012
Rother District Council,22/12/2020,091HOUSING,Housing and Community Services,20128,Public Conveniences,B2201,Electricity,33.36,Laser Energy Buying Group (Kent County Council Commercial Services),Electricity - Electricity Charges,2023422,202012
Rother District Council,22/12/2020,081ACQUISIT,"Acquisitions, Transformation and Regeneration",20150,Peasmarsh Workshops,B2201,Electricity,27.82,Laser Energy Buying Group (Kent County Council Commercial Services),Electricity - Electricity Charges,2023422,202012
Rother District Council,22/12/2020,081ACQUISIT,"Acquisitions, Transformation and Regeneration",20148,Misc Land & Buildings,B2201,Electricity,42.16,Laser Energy Buying Group (Kent County Council Commercial Services),Electricity - Electricity Charges,2023422,202012
Rother District Council,22/12/2020,091HOUSING,Housing and Community Services,20114,Bexhill Parks & Open Spaces,B2201,Electricity,19.25,Laser Energy Buying Group (Kent County Council Commercial Services),Electricity - Electricity Charges,2023422,202012
Rother District Council,22/12/2020,091HOUSING,Housing and Community Services,20123,Cemeteries,B2201,Electricity,49.31,Laser Energy Buying Group (Kent County Council Commercial Services),Electricity - Electricity Charges,2023422,202012
Rother District Council,22/12/2020,091HOUSING,Housing and Community Services,20102,Rother Museum Services,B2201,Electricity,564.59,Laser Energy Buying Group (Kent County Council Commercial Services),Electricity - Electricity Charges,2023422,202012
Rother District Council,22/12/2020,091HOUSING,Housing and Community Services,20108,Bexhill Promenade & Foreshore,B2201,Electricity,46.94,Laser Energy Buying Group (Kent County Council Commercial Services),Electricity - Electricity Charges,2023422,202012
Rother District Council,22/12/2020,091HOUSING,Housing and Community Services,20108,Bexhill Promenade & Foreshore,B2201,Electricity,23.85,Laser Energy Buying Group (Kent County Council Commercial Services),Electricity - Electricity Charges,2023422,202012
Rother District Council,22/12/2020,091HOUSING,Housing and Community Services,20108,Bexhill Promenade & Foreshore,B2201,Electricity,27.15,Laser Energy Buying Group (Kent County Council Commercial Services),Electricity - Electricity Charges,2023422,202012
Rother District Council,22/12/2020,091HOUSING,Housing and Community Services,20114,Bexhill Parks & Open Spaces,B2201,Electricity,22.51,Laser Energy Buying Group (Kent County Council Commercial Services),Electricity - Electricity Charges,2023422,202012
Rother District Council,22/12/2020,081ACQUISIT,"Acquisitions, Transformation and Regeneration",20151,Udimore Workshops,B2201,Electricity,23.06,Laser Energy Buying Group (Kent County Council Commercial Services),Electricity - Electricity Charges,2023422,202012
Rother District Council,22/12/2020,081ACQUISIT,"Acquisitions, Transformation and Regeneration",20154,Committee Property Account,B2201,Electricity,10.54,Laser Energy Buying Group (Kent County Council Commercial Services),Electricity - Electricity Charges,2023422,202012
Rother District Council,22/12/2020,081ACQUISIT,"Acquisitions, Transformation and Regeneration",20154,Committee Property Account,B2201,Electricity,10.54,Laser Energy Buying Group (Kent County Council Commercial Services),Electricity - Electricity Charges,2023422,202012
Rother District Council,22/12/2020,081ACQUISIT,"Acquisitions, Transformation and Regeneration",20154,Committee Property Account,B2201,Electricity,10.53,Laser Energy Buying Group (Kent County Council Commercial Services),Electricity - Electricity Charges,2023422,202012
Rother District Council,22/12/2020,081ACQUISIT,"Acquisitions, Transformation and Regeneration",20154,Committee Property Account,B2201,Electricity,10.53,Laser Energy Buying Group (Kent County Council Commercial Services),Electricity - Electricity Charges,2023422,202012
Rother District Council,22/12/2020,081ACQUISIT,"Acquisitions, Transformation and Regeneration",20154,Committee Property Account,B2201,Electricity,18.28,Laser Energy Buying Group (Kent County Council Commercial Services),Electricity - Electricity Charges,2023422,202012
Rother District Council,22/12/2020,081ACQUISIT,"Acquisitions, Transformation and Regeneration",20154,Committee Property Account,B2201,Electricity,18.29,Laser Energy Buying Group (Kent County Council Commercial Services),Electricity - Electricity Charges,2023422,202012
Rother District Council,22/12/2020,081ACQUISIT,"Acquisitions, Transformation and Regeneration",20154,Committee Property Account,B2201,Electricity,18.29,Laser Energy Buying Group (Kent County Council Commercial Services),Electricity - Electricity Charges,2023422,202012
Rother District Council,22/12/2020,091HOUSING,Housing and Community Services,20108,Bexhill Promenade & Foreshore,B2201,Electricity,24.25,Laser Energy Buying Group (Kent County Council Commercial Services),Electricity - Electricity Charges,2023422,202012
Rother District Council,22/12/2020,091HOUSING,Housing and Community Services,20128,Public Conveniences,B2201,Electricity,32.65,Laser Energy Buying Group (Kent County Council Commercial Services),Electricity - Electricity Charges,2023422,202012
Rother District Council,22/12/2020,091HOUSING,Housing and Community Services,20128,Public Conveniences,B2201,Electricity,63.86,Laser Energy Buying Group (Kent County Council Commercial Services),Electricity - Electricity Charges,2023422,202012
Rother District Council,22/12/2020,091HOUSING,Housing and Community Services,20137,Car Parks,B2201,Electricity,41.04,Laser Energy Buying Group (Kent County Council Commercial Services),Electricity - Electricity Charges,2023422,202012
Rother District Council,22/12/2020,091HOUSING,Housing and Community Services,20128,Public Conveniences,B2201,Electricity,28.41,Laser Energy Buying Group (Kent County Council Commercial Services),Electricity - Electricity Charges,2023422,202012
Rother District Council,22/12/2020,091HOUSING,Housing and Community Services,20128,Public Conveniences,B2201,Electricity,33.23,Laser Energy Buying Group (Kent County Council Commercial Services),Electricity - Electricity Charges,2023422,202012
Rother District Council,22/12/2020,091HOUSING,Housing and Community Services,20128,Public Conveniences,B2201,Electricity,28.00,Laser Energy Buying Group (Kent County Council Commercial Services),Electricity - Electricity Charges,2023422,202012
Rother District Council,22/12/2020,091HOUSING,Housing and Community Services,20128,Public Conveniences,B2201,Electricity,34.99,Laser Energy Buying Group (Kent County Council Commercial Services),Electricity - Electricity Charges,2023422,202012
Rother District Council,22/12/2020,091HOUSING,Housing and Community Services,20107,Camber Beach & Foreshore,B2201,Electricity,29.79,Laser Energy Buying Group (Kent County Council Commercial Services),Electricity - Electricity Charges,2023422,202012
Rother District Council,22/12/2020,091HOUSING,Housing and Community Services,20114,Bexhill Parks & Open Spaces,B2201,Electricity,34.16,Laser Energy Buying Group (Kent County Council Commercial Services),Electricity - Electricity Charges,2023422,202012
Rother District Council,22/12/2020,091HOUSING,Housing and Community Services,20114,Bexhill Parks & Open Spaces,B2201,Electricity,31.03,Laser Energy Buying Group (Kent County Council Commercial Services),Electricity - Electricity Charges,2023422,202012
Rother District Council,22/12/2020,091HOUSING,Housing and Community Services,20108,Bexhill Promenade & Foreshore,B2201,Electricity,18.29,Laser Energy Buying Group (Kent County Council Commercial Services),Electricity - Electricity Charges,2023422,202012
Rother District Council,22/12/2020,091HOUSING,Housing and Community Services,20128,Public Conveniences,B2201,Electricity,40.62,Laser Energy Buying Group (Kent County Council Commercial Services),Electricity - Electricity Charges,2023422,202012
Rother District Council,22/12/2020,091HOUSING,Housing and Community Services,20128,Public Conveniences,B2201,Electricity,33.79,Laser Energy Buying Group (Kent County Council Commercial Services),Electricity - Electricity Charges,2023422,202012
Rother District Council,22/12/2020,091HOUSING,Housing and Community Services,20128,Public Conveniences,B2201,Electricity,34.05,Laser Energy Buying Group (Kent County Council Commercial Services),Electricity - Electricity Charges,2023422,202012
Rother District Council,22/12/2020,091HOUSING,Housing and Community Services,20108,Bexhill Promenade & Foreshore,B2201,Electricity,31.41,Laser Energy Buying Group (Kent County Council Commercial Services),Electricity - Electricity Charges,2023422,202012
Rother District Council,22/12/2020,081ACQUISIT,"Acquisitions, Transformation and Regeneration",20155,Investment properties,B2201,Electricity,33.78,Laser Energy Buying Group (Kent County Council Commercial Services),Electricity - Electricity Charges,2023422,202012
Rother District Council,22/12/2020,091HOUSING,Housing and Community Services,20114,Bexhill Parks & Open Spaces,B2201,Electricity,25.95,Laser Energy Buying Group (Kent County Council Commercial Services),Electricity - Electricity Charges,2023422,202012
Rother District Council,22/12/2020,081ACQUISIT,"Acquisitions, Transformation and Regeneration",20151,Udimore Workshops,B2201,Electricity,28.94,Laser Energy Buying Group (Kent County Council Commercial Services),Electricity - Electricity Charges,2023422,202012
Rother District Council,22/12/2020,081ACQUISIT,"Acquisitions, Transformation and Regeneration",20154,Committee Property Account,B2201,Electricity,147.32,Laser Energy Buying Group (Kent County Council Commercial Services),Electricity - Electricity Charges,2023422,202012
Rother District Council,22/12/2020,081ACQUISIT,"Acquisitions, Transformation and Regeneration",20154,Committee Property Account,B2201,Electricity,20.43,Laser Energy Buying Group (Kent County Council Commercial Services),Electricity - Electricity Charges,2023422,202012
Rother District Council,22/12/2020,081ACQUISIT,"Acquisitions, Transformation and Regeneration",20154,Committee Property Account,B2201,Electricity,20.43,Laser Energy Buying Group (Kent County Council Commercial Services),Electricity - Electricity Charges,2023422,202012
Rother District Council,22/12/2020,081ACQUISIT,"Acquisitions, Transformation and Regeneration",20154,Committee Property Account,B2201,Electricity,20.43,Laser Energy Buying Group (Kent County Council Commercial Services),Electricity - Electricity Charges,2023422,202012
Rother District Council,22/12/2020,081ACQUISIT,"Acquisitions, Transformation and Regeneration",20154,Committee Property Account,B2201,Electricity,20.43,Laser Energy Buying Group (Kent County Council Commercial Services),Electricity - Electricity Charges,2023422,202012
Rother District Council,22/12/2020,091HOUSING,Housing and Community Services,20108,Bexhill Promenade & Foreshore,B2201,Electricity,38.44,Laser Energy Buying Group (Kent County Council Commercial Services),Electricity - Electricity Charges,2023422,202012
Rother District Council,22/12/2020,091HOUSING,Housing and Community Services,20108,Bexhill Promenade & Foreshore,B2201,Electricity,10.21,Laser Energy Buying Group (Kent County Council Commercial Services),Electricity - Electricity Charges,2023422,202012
Rother District Council,22/12/2020,091HOUSING,Housing and Community Services,20108,Bexhill Promenade & Foreshore,B2201,Electricity,10.21,Laser Energy Buying Group (Kent County Council Commercial Services),Electricity - Electricity Charges,2023422,202012
Rother District Council,22/12/2020,091HOUSING,Housing and Community Services,20137,Car Parks,B2201,Electricity,35.40,Laser Energy Buying Group (Kent County Council Commercial Services),Electricity - Electricity Charges,2023422,202012
Rother District Council,22/12/2020,091HOUSING,Housing and Community Services,20128,Public Conveniences,B2201,Electricity,126.42,Laser Energy Buying Group (Kent County Council Commercial Services),Electricity - Electricity Charges,2023422,202012
Rother District Council,22/12/2020,091HOUSING,Housing and Community Services,20128,Public Conveniences,B2201,Electricity,20.24,Laser Energy Buying Group (Kent County Council Commercial Services),Electricity - Electricity Charges,2023422,202012
Rother District Council,22/12/2020,091HOUSING,Housing and Community Services,20128,Public Conveniences,B2201,Electricity,67.30,Laser Energy Buying Group (Kent County Council Commercial Services),Electricity - Electricity Charges,2023422,202012
Rother District Council,22/12/2020,091HOUSING,Housing and Community Services,20108,Bexhill Promenade & Foreshore,B2201,Electricity,20.30,Laser Energy Buying Group (Kent County Council Commercial Services),Electricity - Electricity Charges,2023422,202012
Rother District Council,22/12/2020,091HOUSING,Housing and Community Services,20114,Bexhill Parks & Open Spaces,B2201,Electricity,28.25,Laser Energy Buying Group (Kent County Council Commercial Services),Electricity - Electricity Charges,2023422,202012
Rother District Council,22/12/2020,081ACQUISIT,"Acquisitions, Transformation and Regeneration",20154,Committee Property Account,B2201,Electricity,919.29,Laser Energy Buying Group (Kent County Council Commercial Services),Electricity - Electricity Charges,2023422,202012
Rother District Council,22/12/2020,081ACQUISIT,"Acquisitions, Transformation and Regeneration",20154,Committee Property Account,B2201,Electricity,20.32,Laser Energy Buying Group (Kent County Council Commercial Services),Electricity - Electricity Charges,2023422,202012
Rother District Council,22/12/2020,081ACQUISIT,"Acquisitions, Transformation and Regeneration",20154,Committee Property Account,B2201,Electricity,20.31,Laser Energy Buying Group (Kent County Council Commercial Services),Electricity - Electricity Charges,2023422,202012
Rother District Council,22/12/2020,081ACQUISIT,"Acquisitions, Transformation and Regeneration",20154,Committee Property Account,B2201,Electricity,20.32,Laser Energy Buying Group (Kent County Council Commercial Services),Electricity - Electricity Charges,2023422,202012
Rother District Council,22/12/2020,081ACQUISIT,"Acquisitions, Transformation and Regeneration",20154,Committee Property Account,B2201,Electricity,11.66,Laser Energy Buying Group (Kent County Council Commercial Services),Electricity - Electricity Charges,2023422,202012
Rother District Council,22/12/2020,081ACQUISIT,"Acquisitions, Transformation and Regeneration",20154,Committee Property Account,B2201,Electricity,11.66,Laser Energy Buying Group (Kent County Council Commercial Services),Electricity - Electricity Charges,2023422,202012
Rother District Council,22/12/2020,081ACQUISIT,"Acquisitions, Transformation and Regeneration",20154,Committee Property Account,B2201,Electricity,11.66,Laser Energy Buying Group (Kent County Council Commercial Services),Electricity - Electricity Charges,2023422,202012
Rother District Council,22/12/2020,081ACQUISIT,"Acquisitions, Transformation and Regeneration",20154,Committee Property Account,B2201,Electricity,11.65,Laser Energy Buying Group (Kent County Council Commercial Services),Electricity - Electricity Charges,2023422,202012
Rother District Council,22/12/2020,091HOUSING,Housing and Community Services,20128,Public Conveniences,B2201,Electricity,10.51,Laser Energy Buying Group (Kent County Council Commercial Services),Electricity - Electricity Charges,2023422,202012
Rother District Council,22/12/2020,091HOUSING,Housing and Community Services,20128,Public Conveniences,B2201,Electricity,58.49,Laser Energy Buying Group (Kent County Council Commercial Services),Electricity - Electricity Charges,2023422,202012
Rother District Council,22/12/2020,091HOUSING,Housing and Community Services,20128,Public Conveniences,B2201,Electricity,62.55,Laser Energy Buying Group (Kent County Council Commercial Services),Electricity - Electricity Charges,2023422,202012
Rother District Council,22/12/2020,091HOUSING,Housing and Community Services,20102,Rother Museum Services,B2201,Electricity,571.90,Laser Energy Buying Group (Kent County Council Commercial Services),Electricity - Electricity Charges,2023422,202012
Rother District Council,22/12/2020,091HOUSING,Housing and Community Services,20114,Bexhill Parks & Open Spaces,B2201,Electricity,19.50,Laser Energy Buying Group (Kent County Council Commercial Services),Electricity - Electricity Charges,2023422,202012
Rother District Council,22/12/2020,081ACQUISIT,"Acquisitions, Transformation and Regeneration",20155,Investment properties,B2201,Electricity,27.69,Laser Energy Buying Group (Kent County Council Commercial Services),Electricity - Electricity Charges,2023422,202012
Rother District Council,22/12/2020,091HOUSING,Housing and Community Services,20128,Public Conveniences,B2201,Electricity,109.13,Laser Energy Buying Group (Kent County Council Commercial Services),Electricity - Electricity Charges,2023422,202012
Rother District Council,22/12/2020,091HOUSING,Housing and Community Services,20128,Public Conveniences,B2201,Electricity,94.70,Laser Energy Buying Group (Kent County Council Commercial Services),Electricity - Electricity Charges,2023422,202012
Rother District Council,22/12/2020,091HOUSING,Housing and Community Services,20128,Public Conveniences,B2201,Electricity,27.69,Laser Energy Buying Group (Kent County Council Commercial Services),Electricity - Electricity Charges,2023422,202012
Rother District Council,22/12/2020,091HOUSING,Housing and Community Services,20128,Public Conveniences,B2201,Electricity,58.67,Laser Energy Buying Group (Kent County Council Commercial Services),Electricity - Electricity Charges,2023422,202012
Rother District Council,22/12/2020,091HOUSING,Housing and Community Services,20128,Public Conveniences,B2201,Electricity,75.86,Laser Energy Buying Group (Kent County Council Commercial Services),Electricity - Electricity Charges,2023422,202012
Rother District Council,22/12/2020,091HOUSING,Housing and Community Services,20128,Public Conveniences,B2201,Electricity,33.09,Laser Energy Buying Group (Kent County Council Commercial Services),Electricity - Electricity Charges,2023422,202012
Rother District Council,22/12/2020,091HOUSING,Housing and Community Services,20128,Public Conveniences,B2201,Electricity,38.88,Laser Energy Buying Group (Kent County Council Commercial Services),Electricity - Electricity Charges,2023422,202012
Rother District Council,22/12/2020,091HOUSING,Housing and Community Services,20128,Public Conveniences,B2201,Electricity,22.10,Laser Energy Buying Group (Kent County Council Commercial Services),Electricity - Electricity Charges,2023422,202012
Rother District Council,22/12/2020,091HOUSING,Housing and Community Services,20128,Public Conveniences,B2201,Electricity,93.15,Laser Energy Buying Group (Kent County Council Commercial Services),Electricity - Electricity Charges,2023422,202012
Rother District Council,22/12/2020,091HOUSING,Housing and Community Services,20137,Car Parks,B2201,Electricity,28.42,Laser Energy Buying Group (Kent County Council Commercial Services),Electricity - Electricity Charges,2023422,202012
Rother District Council,22/12/2020,091HOUSING,Housing and Community Services,20137,Car Parks,B2201,Electricity,30.49,Laser Energy Buying Group (Kent County Council Commercial Services),Electricity - Electricity Charges,2023422,202012
Rother District Council,22/12/2020,091HOUSING,Housing and Community Services,20128,Public Conveniences,B2201,Electricity,31.18,Laser Energy Buying Group (Kent County Council Commercial Services),Electricity - Electricity Charges,2023422,202012
Rother District Council,22/12/2020,081ACQUISIT,"Acquisitions, Transformation and Regeneration",20104,Ancient Monuments & Gazebo,B2201,Electricity,28.25,Laser Energy Buying Group (Kent County Council Commercial Services),Electricity - Electricity Charges,2023422,202012
Rother District Council,22/12/2020,081ACQUISIT,"Acquisitions, Transformation and Regeneration",20148,Misc Land & Buildings,B2201,Electricity,12.50,Laser Energy Buying Group (Kent County Council Commercial Services),Electricity - Electricity Charges,2023422,202012
Rother District Council,22/12/2020,091HOUSING,Housing and Community Services,20114,Bexhill Parks & Open Spaces,B2201,Electricity,31.98,Laser Energy Buying Group (Kent County Council Commercial Services),Electricity - Electricity Charges,2023422,202012
Rother District Council,22/12/2020,091HOUSING,Housing and Community Services,20114,Bexhill Parks & Open Spaces,B2201,Electricity,33.34,Laser Energy Buying Group (Kent County Council Commercial Services),Electricity - Electricity Charges,2023422,202012
Rother District Council,22/12/2020,091HOUSING,Housing and Community Services,20115,Rye Area Parks & Gardens,B2201,Electricity,12.49,Laser Energy Buying Group (Kent County Council Commercial Services),Electricity - Electricity Charges,2023422,202012
Rother District Council,22/12/2020,091HOUSING,Housing and Community Services,20128,Public Conveniences,B2201,Electricity,22.51,Laser Energy Buying Group (Kent County Council Commercial Services),Electricity - Electricity Charges,2023422,202012
Rother District Council,22/12/2020,091HOUSING,Housing and Community Services,20128,Public Conveniences,B2201,Electricity,22.37,Laser Energy Buying Group (Kent County Council Commercial Services),Electricity - Electricity Charges,2023422,202012
Rother District Council,22/12/2020,091HOUSING,Housing and Community Services,20128,Public Conveniences,B2201,Electricity,23.89,Laser Energy Buying Group (Kent County Council Commercial Services),Electricity - Electricity Charges,2023422,202012
Rother District Council,22/12/2020,091HOUSING,Housing and Community Services,20128,Public Conveniences,B2201,Electricity,26.36,Laser Energy Buying Group (Kent County Council Commercial Services),Electricity - Electricity Charges,2023422,202012
Rother District Council,22/12/2020,091HOUSING,Housing and Community Services,20128,Public Conveniences,B2201,Electricity,35.54,Laser Energy Buying Group (Kent County Council Commercial Services),Electricity - Electricity Charges,2023422,202012
Rother District Council,22/12/2020,091HOUSING,Housing and Community Services,20128,Public Conveniences,B2201,Electricity,28.80,Laser Energy Buying Group (Kent County Council Commercial Services),Electricity - Electricity Charges,2023422,202012
Rother District Council,22/12/2020,091HOUSING,Housing and Community Services,20128,Public Conveniences,B2201,Electricity,33.61,Laser Energy Buying Group (Kent County Council Commercial Services),Electricity - Electricity Charges,2023422,202012
Rother District Council,22/12/2020,091HOUSING,Housing and Community Services,20128,Public Conveniences,B2201,Electricity,33.47,Laser Energy Buying Group (Kent County Council Commercial Services),Electricity - Electricity Charges,2023422,202012
Rother District Council,22/12/2020,091HOUSING,Housing and Community Services,20128,Public Conveniences,B2201,Electricity,29.76,Laser Energy Buying Group (Kent County Council Commercial Services),Electricity - Electricity Charges,2023422,202012
Rother District Council,22/12/2020,091HOUSING,Housing and Community Services,20128,Public Conveniences,B2201,Electricity,49.97,Laser Energy Buying Group (Kent County Council Commercial Services),Electricity - Electricity Charges,2023422,202012
Rother District Council,22/12/2020,091HOUSING,Housing and Community Services,20128,Public Conveniences,B2201,Electricity,94.39,Laser Energy Buying Group (Kent County Council Commercial Services),Electricity - Electricity Charges,2023422,202012
Rother District Council,22/12/2020,091HOUSING,Housing and Community Services,20128,Public Conveniences,B2201,Electricity,6.31,Laser Energy Buying Group (Kent County Council Commercial Services),Electricity - Electricity Charges,2023422,202012
Rother District Council,22/12/2020,091HOUSING,Housing and Community Services,20128,Public Conveniences,B2201,Electricity,31.55,Laser Energy Buying Group (Kent County Council Commercial Services),Electricity - Electricity Charges,2023422,202012
Rother District Council,22/12/2020,091HOUSING,Housing and Community Services,20128,Public Conveniences,B2201,Electricity,46.93,Laser Energy Buying Group (Kent County Council Commercial Services),Electricity - Electricity Charges,2023422,202012
Rother District Council,22/12/2020,091HOUSING,Housing and Community Services,20115,Rye Area Parks & Gardens,B2201,Electricity,16.12,Laser Energy Buying Group (Kent County Council Commercial Services),Electricity - Electricity Charges,2023422,202012
Rother District Council,22/12/2020,091HOUSING,Housing and Community Services,20115,Rye Area Parks & Gardens,B2201,Electricity,28.66,Laser Energy Buying Group (Kent County Council Commercial Services),Electricity - Electricity Charges,2023422,202012
Rother District Council,22/12/2020,091HOUSING,Housing and Community Services,20114,Bexhill Parks & Open Spaces,B2201,Electricity,25.24,Laser Energy Buying Group (Kent County Council Commercial Services),Electricity - Electricity Charges,2023422,202012
Rother District Council,22/12/2020,091HOUSING,Housing and Community Services,20114,Bexhill Parks & Open Spaces,B2201,Electricity,31.51,Laser Energy Buying Group (Kent County Council Commercial Services),Electricity - Electricity Charges,2023422,202012
Rother District Council,22/12/2020,091HOUSING,Housing and Community Services,20107,Camber Beach & Foreshore,B2201,Electricity,42.00,Laser Energy Buying Group (Kent County Council Commercial Services),Electricity - Electricity Charges,2023422,202012
Rother District Council,22/12/2020,091HOUSING,Housing and Community Services,20108,Bexhill Promenade & Foreshore,B2201,Electricity,28.51,Laser Energy Buying Group (Kent County Council Commercial Services),Electricity - Electricity Charges,2023422,202012
Rother District Council,22/12/2020,091HOUSING,Housing and Community Services,20108,Bexhill Promenade & Foreshore,B2201,Electricity,43.71,Laser Energy Buying Group (Kent County Council Commercial Services),Electricity - Electricity Charges,2023422,202012
Rother District Council,22/12/2020,081ACQUISIT,"Acquisitions, Transformation and Regeneration",20148,Misc Land & Buildings,B2201,Electricity,16.11,Laser Energy Buying Group (Kent County Council Commercial Services),Electricity - Electricity Charges,2023422,202012
Rother District Council,22/12/2020,081ACQUISIT,"Acquisitions, Transformation and Regeneration",20148,Misc Land & Buildings,B2201,Electricity,28.25,Laser Energy Buying Group (Kent County Council Commercial Services),Electricity - Electricity Charges,2023422,202012
Rother District Council,22/12/2020,081ACQUISIT,"Acquisitions, Transformation and Regeneration",20150,Peasmarsh Workshops,B2201,Electricity,29.67,Laser Energy Buying Group (Kent County Council Commercial Services),Electricity - Electricity Charges,2023422,202012
Rother District Council,22/12/2020,091HOUSING,Housing and Community Services,20107,Camber Beach & Foreshore,B2201,Electricity,131.81,Laser Energy Buying Group (Kent County Council Commercial Services),Electricity - Electricity Charges,2023422,202012
Rother District Council,22/12/2020,091HOUSING,Housing and Community Services,20107,Camber Beach & Foreshore,B2201,Electricity,83.31,Laser Energy Buying Group (Kent County Council Commercial Services),Electricity - Electricity Charges,2023422,202012
Rother District Council,22/12/2020,091HOUSING,Housing and Community Services,20107,Camber Beach & Foreshore,B2201,Electricity,83.74,Laser Energy Buying Group (Kent County Council Commercial Services),Electricity - Electricity Charges,2023422,202012
Rother District Council,22/12/2020,091HOUSING,Housing and Community Services,20114,Bexhill Parks & Open Spaces,B2201,Electricity,42.04,Laser Energy Buying Group (Kent County Council Commercial Services),Electricity - Electricity Charges,2023422,202012
Rother District Council,22/12/2020,091HOUSING,Housing and Community Services,20128,Public Conveniences,B2201,Electricity,35.26,Laser Energy Buying Group (Kent County Council Commercial Services),Electricity - Electricity Charges,2023422,202012
Rother District Council,22/12/2020,031RESOURCES,Chief Executive & Corporate Core,20175,Administrative Offices - T.H. Annex (NOT CHP),B2202,Gas,329.17,Laser Energy Buying Group (Kent County Council Commercial Services),Gas - Gas Charges,2023413,202012
Rother District Council,22/12/2020,031RESOURCES,Chief Executive & Corporate Core,20173,Administrative Offices - Town Hall,B2202,Gas,872.97,Laser Energy Buying Group (Kent County Council Commercial Services),Gas - Gas Charges,2023413,202012
Rother District Council,22/12/2020,031RESOURCES,Chief Executive & Corporate Core,20176,Administrative Offices - Print Room,B2202,Gas,87.08,Laser Energy Buying Group (Kent County Council Commercial Services),Gas - Gas Charges,2023413,202012
Rother District Council,22/12/2020,081ACQUISIT,"Acquisitions, Transformation and Regeneration",20154,Committee Property Account,B2202,Gas,11.10,Laser Energy Buying Group (Kent County Council Commercial Services),Gas - Gas Charges,2023413,202012
Rother District Council,22/12/2020,071STRAT,Strategy and Planning,20246,Planning Applications,A2203,Training,-119.03,Carrington West Ltd,Training,2021591,202010
Rother District Council,22/12/2020,091HOUSING,Housing and Community Services,20132,Street & Beach Cleansing,D1201,Equipment & Materials,11.99,Trade UK Account (Screwfix & B&Q),Repairs to Premises - Purchase of Materials - Build Maint,2021594,202010
Rother District Council,22/12/2020,091HOUSING,Housing and Community Services,20137,Car Parks,B2422,Sewerage,105.06,Scottish Water Business Stream Limited,Sewerage - Sewerage Charges,2021774,202010
Rother District Council,22/12/2020,091HOUSING,Housing and Community Services,20128,Public Conveniences,B2422,Sewerage,226.50,Scottish Water Business Stream Limited,Sewerage - Sewerage Charges,2021774,202010
Rother District Council,22/12/2020,091HOUSING,Housing and Community Services,20204,Housing Administration Account,A1110,Agency Staff,798.00,"G2V Recruitment Group Ltd, t/a Vivid Resourcing",Agency Staff,2021585,202010
Rother District Council,22/12/2020,091HOUSING,Housing and Community Services,20204,Housing Administration Account,A1110,Agency Staff,"1,221.00","G2V Recruitment Group Ltd, t/a Vivid Resourcing",Agency Staff,2021584,202010
Rother District Council,22/12/2020,091HOUSING,Housing and Community Services,20137,Car Parks,B2421,Water,42.66,Scottish Water Business Stream Limited,Water - Water Charges,2021774,202010
Rother District Council,22/12/2020,091HOUSING,Housing and Community Services,20128,Public Conveniences,B2421,Water,155.04,Scottish Water Business Stream Limited,Water - Water Charges,2021774,202010
Rother District Council,23/12/2020,999NOREPORT,Housing and Community Services,70749,Capital - Bexhill Promenade Protective Barriers,N1007,Plant & Machinery,"2,989.19",Benchmark Woodworking Ltd,Capital - Plant and Property,2022157,202010
Rother District Council,23/12/2020,081ACQUISIT,"Acquisitions, Transformation and Regeneration",20144,Property Management,D2509,Consultants and Other Services,775.00,REDACTED PERSONAL DATA,Consultants and other services - Consultants Fees,2022969,202012
Rother District Council,23/12/2020,031RESOURCES,Chief Executive & Corporate Core,20173,Administrative Offices - Town Hall,B1100,Repairs to Premises,179.82,Alfa Electric Ltd,Repairs to Premises - Repairs - Electrical Works,2021831,202010
Rother District Council,23/12/2020,081ACQUISIT,"Acquisitions, Transformation and Regeneration",20153,"Elva Business Centre, Bexhill",D1201,Equipment & Materials,895.00,Strata Safety Solutions,Hired and Contracted Services - Health and Safety Act Equipment risk assessment,2021588,202010
Rother District Council,23/12/2020,081ACQUISIT,"Acquisitions, Transformation and Regeneration",20267,Property Investment Strategy - 18-40 Beeching Road ( Land and Buildings),D1201,Equipment & Materials,685.00,Strata Safety Solutions,Hired and Contracted Services - Health and Safety Act Equipment risk assessment,2021588,202010
Rother District Council,23/12/2020,081ACQUISIT,"Acquisitions, Transformation and Regeneration",20150,Peasmarsh Workshops,D1201,Equipment & Materials,510.00,Strata Safety Solutions,Hired and Contracted Services - Health and Safety Act Equipment risk assessment,2021587,202010
Rother District Council,23/12/2020,081ACQUISIT,"Acquisitions, Transformation and Regeneration",20151,Udimore Workshops,D1201,Equipment & Materials,485.00,Strata Safety Solutions,Hired and Contracted Services - Health and Safety Act Equipment risk assessment,2021587,202010
Rother District Council,23/12/2020,081ACQUISIT,"Acquisitions, Transformation and Regeneration",20146,West Trading Estate,D1201,Equipment & Materials,435.00,Strata Safety Solutions,Hired and Contracted Services - Health and Safety Act Equipment risk assessment,2021587,202010
Rother District Council,23/12/2020,081ACQUISIT,"Acquisitions, Transformation and Regeneration",20146,West Trading Estate,D1201,Equipment & Materials,862.50,Strata Safety Solutions,Hired and Contracted Services - Health and Safety Act Equipment risk assessment,2022108,202010
Rother District Council,23/12/2020,081ACQUISIT,"Acquisitions, Transformation and Regeneration",20153,"Elva Business Centre, Bexhill",D1201,Equipment & Materials,"1,035.00",Strata Safety Solutions,Hired and Contracted Services - Health and Safety Act Equipment risk assessment,2021617,202010
Rother District Council,23/12/2020,091HOUSING,Housing and Community Services,20125,Coast Protection,D2922,Subscriptions,330.00,South Tyneside Council,Subscriptions - LGA Coastal Issues Membership,2021798,202010
Rother District Council,23/12/2020,091HOUSING,Housing and Community Services,20112,Bexhill Leisure Centre,B1100,Repairs to Premises,750.00,JS Wadeson Cleaning Services Ltd,Repairs to Premises - Specified Repairs and Works listed,2021603,202010
